Body Name,Body,Service Label,Service Code,CIPFA Detailed Expenditure Type,CIPFA Detailed Expenditure Code,Date,Transaction Number,Net Amount,Supplier Name
Nottinghamshire County Council,1111/1001,Surplus or Deficit from Trading Undertak,TRADING,#N/A,#N/A,07/09/2016,06-10001,"1,410.20",Robert Scott & Sons Ltd
Nottinghamshire County Council,1111/1001,Surplus or Deficit from Trading Undertak,TRADING,#N/A,#N/A,28/09/2016,06-10001,"1,757.20",Robert Scott & Sons Ltd
Nottinghamshire County Council,1111/1001,Surplus or Deficit from Trading Undertak,TRADING,#N/A,#N/A,16/09/2016,06-10001,677.96,Wybone Ltd
Nottinghamshire County Council,1111/1001,Surplus or Deficit from Trading Undertak,TRADING,#N/A,#N/A,23/09/2016,06-10001,576.52,Xma Ltd
Nottinghamshire County Council,1111/1001,Surplus or Deficit from Trading Undertak,TRADING,#N/A,#N/A,07/09/2016,06-10001,652.96,Ransome Sporting Goods Group Ltd
Nottinghamshire County Council,1111/1001,Surplus or Deficit from Trading Undertak,TRADING,#N/A,#N/A,07/09/2016,06-10001,884.93,Gopak Ltd
Nottinghamshire County Council,1111/1001,Surplus or Deficit from Trading Undertak,TRADING,#N/A,#N/A,07/09/2016,06-10001,655.3,Newclay Products Ltd
Nottinghamshire County Council,1111/1001,Surplus or Deficit from Trading Undertak,TRADING,#N/A,#N/A,02/09/2016,06-10001,674.4,R H Ritchings Ltd
Nottinghamshire County Council,1111/1001,Surplus or Deficit from Trading Undertak,TRADING,#N/A,#N/A,02/09/2016,06-10001,674.4,R H Ritchings Ltd
Nottinghamshire County Council,1111/1001,Surplus or Deficit from Trading Undertak,TRADING,#N/A,#N/A,02/09/2016,06-10001,"1,124.00",R H Ritchings Ltd
Nottinghamshire County Council,1111/1001,Surplus or Deficit from Trading Undertak,TRADING,#N/A,#N/A,12/09/2016,06-10001,654.28,Gratnells Ltd
Nottinghamshire County Council,1111/1001,Surplus or Deficit from Trading Undertak,TRADING,#N/A,#N/A,23/09/2016,06-10001,788.5,Rotatrim Ltd
Nottinghamshire County Council,1111/1001,Surplus or Deficit from Trading Undertak,TRADING,#N/A,#N/A,02/09/2016,06-10001,"1,479.25",Bic Uk Ltd
Nottinghamshire County Council,1111/1001,Surplus or Deficit from Trading Undertak,TRADING,#N/A,#N/A,27/09/2016,06-10001,520.66,Allen Glenold Ltd
Nottinghamshire County Council,1111/1001,Surplus or Deficit from Trading Undertak,TRADING,#N/A,#N/A,02/09/2016,06-10001,"2,021.02",Diversey
Nottinghamshire County Council,1111/1001,Surplus or Deficit from Trading Undertak,TRADING,#N/A,#N/A,07/09/2016,06-10001,"1,395.04",Diversey
Nottinghamshire County Council,1111/1001,Surplus or Deficit from Trading Undertak,TRADING,#N/A,#N/A,27/09/2016,06-10001,"2,328.64",Diversey
Nottinghamshire County Council,1111/1001,Surplus or Deficit from Trading Undertak,TRADING,#N/A,#N/A,27/09/2016,06-10001,611.79,Profile Education Ltd
Nottinghamshire County Council,1111/1001,Surplus or Deficit from Trading Undertak,TRADING,#N/A,#N/A,13/09/2016,06-10001,612,Vita Cellular Foams (Uk) Ltd
Nottinghamshire County Council,1111/1001,Surplus or Deficit from Trading Undertak,TRADING,#N/A,#N/A,22/09/2016,06-10001,"1,377.30",Scot Young Research Ltd
Nottinghamshire County Council,1111/1001,Surplus or Deficit from Trading Undertak,TRADING,#N/A,#N/A,07/09/2016,06-10001,774.32,Evans Vanodine International Ltd
Nottinghamshire County Council,1111/1001,Surplus or Deficit from Trading Undertak,TRADING,#N/A,#N/A,22/09/2016,06-10001,624.04,Evans Vanodine International Ltd
Nottinghamshire County Council,1111/1001,Surplus or Deficit from Trading Undertak,TRADING,#N/A,#N/A,19/09/2016,06-10001,673.92,Vivid Laminating Technologies Ltd
Nottinghamshire County Council,1111/1001,Surplus or Deficit from Trading Undertak,TRADING,#N/A,#N/A,07/09/2016,06-10001,"1,047.26",Monarch Education Furniture
Nottinghamshire County Council,1111/1001,Surplus or Deficit from Trading Undertak,TRADING,#N/A,#N/A,07/09/2016,06-10001,859.15,Monarch Education Furniture
Nottinghamshire County Council,1111/1001,Surplus or Deficit from Trading Undertak,TRADING,#N/A,#N/A,07/09/2016,06-10001,"4,060.72",Monarch Education Furniture
Nottinghamshire County Council,1111/1001,Surplus or Deficit from Trading Undertak,TRADING,#N/A,#N/A,12/09/2016,06-10001,533.45,Monarch Education Furniture
Nottinghamshire County Council,1111/1001,Surplus or Deficit from Trading Undertak,TRADING,#N/A,#N/A,13/09/2016,06-10001,"1,108.70",Monarch Education Furniture
Nottinghamshire County Council,1111/1001,Surplus or Deficit from Trading Undertak,TRADING,#N/A,#N/A,13/09/2016,06-10001,611.71,Monarch Education Furniture
Nottinghamshire County Council,1111/1001,Surplus or Deficit from Trading Undertak,TRADING,#N/A,#N/A,23/09/2016,06-10001,919.72,Monarch Education Furniture
Nottinghamshire County Council,1111/1001,Surplus or Deficit from Trading Undertak,TRADING,#N/A,#N/A,07/09/2016,06-10001,938.8,Grosvenor House Papers Ltd
Nottinghamshire County Council,1111/1001,Surplus or Deficit from Trading Undertak,TRADING,#N/A,#N/A,29/09/2016,06-10001,"15,600.00",Grosvenor House Papers Ltd
Nottinghamshire County Council,1111/1001,Surplus or Deficit from Trading Undertak,TRADING,#N/A,#N/A,29/09/2016,06-10001,"2,233.00",Premier Paper Group Ltd
Nottinghamshire County Council,1111/1001,Surplus or Deficit from Trading Undertak,TRADING,#N/A,#N/A,22/09/2016,06-10001,569.07,Addis Houseware Ltd
Nottinghamshire County Council,1111/1001,Surplus or Deficit from Trading Undertak,TRADING,#N/A,#N/A,12/09/2016,06-10001,602.76,Niels Larsen Ltd
Nottinghamshire County Council,1111/1001,Surplus or Deficit from Trading Undertak,TRADING,#N/A,#N/A,07/09/2016,06-10001,"1,730.25",Advanced Educational Division
Nottinghamshire County Council,1111/1001,Surplus or Deficit from Trading Undertak,TRADING,#N/A,#N/A,13/09/2016,06-10001,"1,600.00",Advanced Educational Division
Nottinghamshire County Council,1111/1001,Surplus or Deficit from Trading Undertak,TRADING,#N/A,#N/A,13/09/2016,06-10001,782,Advanced Educational Division
Nottinghamshire County Council,1111/1001,Surplus or Deficit from Trading Undertak,TRADING,#N/A,#N/A,23/09/2016,06-10001,"1,792.00",Advanced Educational Division
Nottinghamshire County Council,1111/1001,Surplus or Deficit from Trading Undertak,TRADING,#N/A,#N/A,07/09/2016,06-10001,"4,675.40",Sca Hygiene Products Uk Ltd
Nottinghamshire County Council,1111/1001,Surplus or Deficit from Trading Undertak,TRADING,#N/A,#N/A,08/09/2016,06-10001,"2,917.00",Sca Hygiene Products Uk Ltd
Nottinghamshire County Council,1111/1001,Surplus or Deficit from Trading Undertak,TRADING,#N/A,#N/A,27/09/2016,06-10001,"4,556.57",Sca Hygiene Products Uk Ltd
Nottinghamshire County Council,1111/1001,Surplus or Deficit from Trading Undertak,TRADING,#N/A,#N/A,29/09/2016,06-10001,"5,952.60",Sca Hygiene Products Uk Ltd
Nottinghamshire County Council,1111/1001,Surplus or Deficit from Trading Undertak,TRADING,#N/A,#N/A,07/09/2016,06-10001,"1,446.81",Banner Group Limited
Nottinghamshire County Council,1111/1001,Surplus or Deficit from Trading Undertak,TRADING,#N/A,#N/A,07/09/2016,06-10001,504.6,Banner Group Limited
Nottinghamshire County Council,1111/1001,Surplus or Deficit from Trading Undertak,TRADING,#N/A,#N/A,12/09/2016,06-10001,899.83,Banner Group Limited
Nottinghamshire County Council,1111/1001,Surplus or Deficit from Trading Undertak,TRADING,#N/A,#N/A,22/09/2016,06-10001,552.51,Banner Group Limited
Nottinghamshire County Council,1111/1001,Surplus or Deficit from Trading Undertak,TRADING,#N/A,#N/A,12/09/2016,06-10001,666.7,Freudenberg Household Products Lp
Nottinghamshire County Council,1111/1001,Surplus or Deficit from Trading Undertak,TRADING,#N/A,#N/A,29/09/2016,06-10001,597,Freudenberg Household Products Lp
Nottinghamshire County Council,1111/1001,Surplus or Deficit from Trading Undertak,TRADING,#N/A,#N/A,13/09/2016,06-10001,"1,285.66",Hamelin Brands Ltd
Nottinghamshire County Council,1111/1001,Surplus or Deficit from Trading Undertak,TRADING,#N/A,#N/A,22/09/2016,06-10001,"1,094.99",Hamelin Brands Ltd
Nottinghamshire County Council,1111/1001,Surplus or Deficit from Trading Undertak,TRADING,#N/A,#N/A,28/09/2016,06-10001,"1,729.60",Hamelin Brands Ltd
Nottinghamshire County Council,1111/1001,Surplus or Deficit from Trading Undertak,TRADING,#N/A,#N/A,07/09/2016,06-10001,546.84,Office Innovations
Nottinghamshire County Council,1111/1001,Surplus or Deficit from Trading Undertak,TRADING,#N/A,#N/A,12/09/2016,06-10001,719.84,Office Innovations
Nottinghamshire County Council,1111/1001,Surplus or Deficit from Trading Undertak,TRADING,#N/A,#N/A,12/09/2016,06-10001,"13,384.55",Office Innovations
Nottinghamshire County Council,1111/1001,Surplus or Deficit from Trading Undertak,TRADING,#N/A,#N/A,19/09/2016,06-10001,"2,984.19",Office Innovations
Nottinghamshire County Council,1111/1001,Surplus or Deficit from Trading Undertak,TRADING,#N/A,#N/A,19/09/2016,06-10001,"1,539.00",Office Innovations
Nottinghamshire County Council,1111/1001,Surplus or Deficit from Trading Undertak,TRADING,#N/A,#N/A,28/09/2016,06-10001,"3,000.00",Office Innovations
Nottinghamshire County Council,1111/1001,Surplus or Deficit from Trading Undertak,TRADING,#N/A,#N/A,02/09/2016,06-10001,718,Snopake Ltd
Nottinghamshire County Council,1111/1001,Surplus or Deficit from Trading Undertak,TRADING,#N/A,#N/A,07/09/2016,06-10001,918,Principal Furniture
Nottinghamshire County Council,1111/1001,Surplus or Deficit from Trading Undertak,TRADING,#N/A,#N/A,28/09/2016,06-10001,798.32,Newell Rubbermaid Uk Ltd
Nottinghamshire County Council,1111/1001,Surplus or Deficit from Trading Undertak,TRADING,#N/A,#N/A,29/09/2016,06-10001,915.8,Newell Rubbermaid Uk Ltd
Nottinghamshire County Council,1111/1001,Surplus or Deficit from Trading Undertak,TRADING,#N/A,#N/A,02/09/2016,06-10001,850,Lucy Friend Paper Co
Nottinghamshire County Council,1111/1001,Surplus or Deficit from Trading Undertak,TRADING,#N/A,#N/A,07/09/2016,06-10001,"1,119.00",Candor Services Ltd
Nottinghamshire County Council,1111/1001,Surplus or Deficit from Trading Undertak,TRADING,#N/A,#N/A,29/09/2016,06-10001,680.95,Slater Harrison & Company Ltd
Nottinghamshire County Council,1111/1001,Surplus or Deficit from Trading Undertak,TRADING,#N/A,#N/A,27/09/2016,06-10001,608.43,Kb Packaging
Nottinghamshire County Council,1111/1001,Surplus or Deficit from Trading Undertak,TRADING,#N/A,#N/A,13/09/2016,06-10001,"4,063.63",Eastpoint
Nottinghamshire County Council,1111/1001,Surplus or Deficit from Trading Undertak,TRADING,#N/A,#N/A,22/09/2016,06-10001,502.06,Eastpoint
Nottinghamshire County Council,1111/1001,Surplus or Deficit from Trading Undertak,TRADING,#N/A,#N/A,12/09/2016,06-10001,"1,289.20",Bunzl Retail & Healthcare Supp Ltd
Nottinghamshire County Council,1111/1001,Surplus or Deficit from Trading Undertak,TRADING,#N/A,#N/A,13/09/2016,06-10001,752,Bunzl Retail & Healthcare Supp Ltd
Nottinghamshire County Council,1111/1001,Surplus or Deficit from Trading Undertak,TRADING,#N/A,#N/A,23/09/2016,06-10001,"1,852.80",Bunzl Retail & Healthcare Supp Ltd
Nottinghamshire County Council,1111/1001,Surplus or Deficit from Trading Undertak,TRADING,#N/A,#N/A,29/09/2016,06-10001,987.3,Bunzl Retail & Healthcare Supp Ltd
Nottinghamshire County Council,1111/1001,Surplus or Deficit from Trading Undertak,TRADING,#N/A,#N/A,26/09/2016,06-10001,702.1,A & T Active Recruitment Ltd
Nottinghamshire County Council,1111/1001,Surplus or Deficit from Trading Undertak,TRADING,#N/A,#N/A,26/09/2016,06-10001,"1,599.15",A & T Active Recruitment Ltd
Nottinghamshire County Council,1111/1001,Surplus or Deficit from Trading Undertak,TRADING,#N/A,#N/A,26/09/2016,06-10001,"1,137.75",A & T Active Recruitment Ltd
Nottinghamshire County Council,1111/1001,Surplus or Deficit from Trading Undertak,TRADING,#N/A,#N/A,26/09/2016,06-10001,666.99,A & T Active Recruitment Ltd
Nottinghamshire County Council,1111/1001,Surplus or Deficit from Trading Undertak,TRADING,#N/A,#N/A,28/09/2016,06-10001,"1,066.00",A & T Active Recruitment Ltd
Nottinghamshire County Council,1111/1001,Surplus or Deficit from Trading Undertak,TRADING,#N/A,#N/A,02/09/2016,06-10001,586.54,Bunzl Cleaning & Hygiene Supplies
Nottinghamshire County Council,1111/1001,Surplus or Deficit from Trading Undertak,TRADING,#N/A,#N/A,07/09/2016,06-10001,"1,925.10",Bunzl Cleaning & Hygiene Supplies
Nottinghamshire County Council,1111/1001,Surplus or Deficit from Trading Undertak,TRADING,#N/A,#N/A,13/09/2016,06-10001,920.06,Bunzl Cleaning & Hygiene Supplies
Nottinghamshire County Council,1111/1001,Surplus or Deficit from Trading Undertak,TRADING,#N/A,#N/A,07/09/2016,06-10001,744.64,Kit For Kids Ltd
Nottinghamshire County Council,1111/1001,Surplus or Deficit from Trading Undertak,TRADING,#N/A,#N/A,12/09/2016,06-10001,"3,581.76",Hille Educational Products Ltd
Nottinghamshire County Council,1111/1001,Surplus or Deficit from Trading Undertak,TRADING,#N/A,#N/A,23/09/2016,06-10001,"1,563.24",Hille Educational Products Ltd
Nottinghamshire County Council,1111/1001,Surplus or Deficit from Trading Undertak,TRADING,#N/A,#N/A,22/09/2016,06-10001,522.46,Hartnoll Ltd
Nottinghamshire County Council,1111/1001,Surplus or Deficit from Trading Undertak,TRADING,#N/A,#N/A,28/09/2016,06-10001,573.44,North West Tea Service Ltd
Nottinghamshire County Council,1111/1001,Surplus or Deficit from Trading Undertak,TRADING,#N/A,#N/A,16/09/2016,06-10001,"1,018.56",Cromwell Polythene Ltd
Nottinghamshire County Council,1111/1001,Surplus or Deficit from Trading Undertak,TRADING,#N/A,#N/A,27/09/2016,06-10001,"1,411.20",Cromwell Polythene Ltd
Nottinghamshire County Council,1111/1001,Surplus or Deficit from Trading Undertak,TRADING,#N/A,#N/A,29/09/2016,06-10001,723.44,Reliance Medical Ltd
Nottinghamshire County Council,1111/1001,Surplus or Deficit from Trading Undertak,TRADING,#N/A,#N/A,23/09/2016,06-10001,502.4,Hardy & Hanson Ltd
Nottinghamshire County Council,1111/1001,Surplus or Deficit from Trading Undertak,TRADING,#N/A,#N/A,19/09/2016,06-10001,530.4,Heritage Envelopes
Nottinghamshire County Council,1111/1001,Surplus or Deficit from Trading Undertak,TRADING,#N/A,#N/A,22/09/2016,06-10001,824.36,Kimberly Clark European Services Lt
Nottinghamshire County Council,1111/1001,Surplus or Deficit from Trading Undertak,TRADING,#N/A,#N/A,28/09/2016,06-10001,"1,080.84",Kimberly Clark European Services Lt
Nottinghamshire County Council,1111/1001,Surplus or Deficit from Trading Undertak,TRADING,#N/A,#N/A,07/09/2016,06-10001,539.28,Plastoreg Smidt Gmbh
Nottinghamshire County Council,1111/1001,Surplus or Deficit from Trading Undertak,TRADING,#N/A,#N/A,28/09/2016,06-10001,607.3,Rollstore Ltd
Nottinghamshire County Council,1111/1001,Surplus or Deficit from Trading Undertak,TRADING,#N/A,#N/A,23/09/2016,06-10001,"2,277.00",Kent County Supplies
Nottinghamshire County Council,1111/1001,Surplus or Deficit from Trading Undertak,TRADING,#N/A,#N/A,29/09/2016,06-10001,"1,223.00",Kent County Supplies
Nottinghamshire County Council,1111/1001,Surplus or Deficit from Trading Undertak,TRADING,#N/A,#N/A,29/09/2016,06-10001,"1,066.80",Kent County Supplies
Nottinghamshire County Council,1111/1001,Surplus or Deficit from Trading Undertak,TRADING,#N/A,#N/A,13/09/2016,06-10001,730,Bew Electrical Distributors Ltd
Nottinghamshire County Council,1111/1001,Surplus or Deficit from Trading Undertak,TRADING,#N/A,#N/A,07/09/2016,06-10001,"7,729.70",James Briggs Holdingst/Apremier Pro
Nottinghamshire County Council,1111/1001,Surplus or Deficit from Trading Undertak,TRADING,#N/A,#N/A,29/09/2016,06-10001,788.56,James Briggs Holdingst/Apremier Pro
Nottinghamshire County Council,1111/1001,Surplus or Deficit from Trading Undertak,TRADING,#N/A,#N/A,29/09/2016,06-10001,"2,532.50",Deco-Pak Ltd
Nottinghamshire County Council,1111/1001,Surplus or Deficit from Trading Undertak,TRADING,#N/A,#N/A,22/09/2016,06-10001,586.8,Ww (Uk) Ltd T/A Tc Group
Nottinghamshire County Council,1111/1001,Children and Young People,CYP,Employee Related,ABA,16/09/2016,06-16382,650,PSLA Newstead Childcare (HO)
Nottinghamshire County Council,1111/1001,Children and Young People,CYP,Employee Related,ABA,19/09/2016,06-16418,"1,000.00",Fountaindale Special School
Nottinghamshire County Council,1111/1001,Children and Young People,CYP,Premises Related,BAA,07/09/2016,06-13758,"3,510.00",ARC Property Services Partnership L
Nottinghamshire County Council,1111/1001,Children and Young People,CYP,Premises Related,BAA,09/09/2016,06-13939,"4,281.67",ARC Property Services Partnership L
Nottinghamshire County Council,1111/1001,Children and Young People,CYP,Premises Related,BAA,16/09/2016,06-14532,"5,637.11",ARC Property Services Partnership L
Nottinghamshire County Council,1111/1001,Children and Young People,CYP,Premises Related,BAA,22/09/2016,06-15630,"2,088.30",ARC Property Services Partnership L
Nottinghamshire County Council,1111/1001,Children and Young People,CYP,Premises Related,BCA,20/09/2016,06-14714,645.41,British Independent Utilities (BIU)
Nottinghamshire County Council,1111/1001,Children and Young People,CYP,Premises Related,BCA,20/09/2016,06-14824,901.39,British Independent Utilities (BIU)
Nottinghamshire County Council,1111/1001,Children and Young People,CYP,Premises Related,BDA,01/09/2016,06-10001,"1,237.50",Welbeck Estates Company Ltd
Nottinghamshire County Council,1111/1001,Children and Young People,CYP,Premises Related,BDA,01/09/2016,06-10011,605,High Peak Borough Council
Nottinghamshire County Council,1111/1001,Children and Young People,CYP,Premises Related,BDA,01/09/2016,06-10013,"4,768.26",Making It! Enterprises Ltd
Nottinghamshire County Council,1111/1001,Children and Young People,CYP,Premises Related,BDA,01/09/2016,06-10016,606.67,J Sedoo t/a Sedoo Investments
Nottinghamshire County Council,1111/1001,Children and Young People,CYP,Premises Related,BDA,01/09/2016,06-10017,606.67,J Sedoo t/a Sedoo Investments
Nottinghamshire County Council,1111/1001,Children and Young People,CYP,Premises Related,BDA,01/09/2016,06-10018,606.67,J Sedoo t/a Sedoo Investments
Nottinghamshire County Council,1111/1001,Children and Young People,CYP,Premises Related,BDA,01/09/2016,06-10020,"4,600.00",Bauland Properties Limited
Nottinghamshire County Council,1111/1001,Children and Young People,CYP,Premises Related,BDA,01/09/2016,06-10021,805,Bauland Properties Limited
Nottinghamshire County Council,1111/1001,Children and Young People,CYP,Premises Related,BDA,01/09/2016,06-10023,"8,274.24",Ekmw Summit Centre
Nottinghamshire County Council,1111/1001,Children and Young People,CYP,Premises Related,BDA,01/09/2016,06-10025,575,Jillings Estates Ltd
Nottinghamshire County Council,1111/1001,Children and Young People,CYP,Premises Related,BDA,01/09/2016,06-10027,"5,862.49",Making It! Enterprises Ltd
Nottinghamshire County Council,1111/1001,Children and Young People,CYP,Premises Related,BDA,02/09/2016,06-10030,"2,935.46",Making It! Enterprises Ltd
Nottinghamshire County Council,1111/1001,Children and Young People,CYP,Premises Related,BDA,15/09/2016,06-10032,693,Nottinghamshire Womens Aid Ltd
Nottinghamshire County Council,1111/1001,Children and Young People,CYP,Premises Related,BDA,19/09/2016,06-16433,530.4,Acacia Centre Ltd
Nottinghamshire County Council,1111/1001,Children and Young People,CYP,Premises Related,BDA,19/09/2016,06-16434,"1,584.00",Acacia Centre Ltd
Nottinghamshire County Council,1111/1001,Children and Young People,CYP,Premises Related,BDA,22/09/2016,06-16409,"1,400.00",Harworth & Bircotes Town Council
Nottinghamshire County Council,1111/1001,Children and Young People,CYP,Premises Related,BDA,30/09/2016,06-16295,"2,579.50",Brierley Forest Primary & Nursery S
Nottinghamshire County Council,1111/1001,Children and Young People,CYP,Premises Related,BJA,19/09/2016,06-16125,629.46,Bassetlaw District Council
Nottinghamshire County Council,1111/1001,Children and Young People,CYP,Premises Related,BJA,30/09/2016,06-16291,"1,019.39",Hi Spec Facilities Services Plc
Nottinghamshire County Council,1111/1001,Children and Young People,CYP,Transport Related,CCA,08/09/2016,06-13795,937.28,Shelleys Taxis Ltd
Nottinghamshire County Council,1111/1001,Children and Young People,CYP,Transport Related,CCA,08/09/2016,06-13796,616,Shelleys Taxis Ltd
Nottinghamshire County Council,1111/1001,Children and Young People,CYP,Transport Related,CCA,08/09/2016,06-13797,782.75,Shelleys Taxis Ltd
Nottinghamshire County Council,1111/1001,Children and Young People,CYP,Transport Related,CCA,08/09/2016,06-13798,909,Shelleys Taxis Ltd
Nottinghamshire County Council,1111/1001,Children and Young People,CYP,Transport Related,CCA,08/09/2016,06-13799,"1,260.00",Shelleys Taxis Ltd
Nottinghamshire County Council,1111/1001,Children and Young People,CYP,Transport Related,CCA,08/09/2016,06-13800,"1,500.00",Shelleys Taxis Ltd
Nottinghamshire County Council,1111/1001,Children and Young People,CYP,Transport Related,CCA,08/09/2016,06-13802,995.5,Shelleys Taxis Ltd
Nottinghamshire County Council,1111/1001,Children and Young People,CYP,Transport Related,CCA,08/09/2016,06-13804,727.2,Shelleys Taxis Ltd
Nottinghamshire County Council,1111/1001,Children and Young People,CYP,Transport Related,CCA,08/09/2016,06-13806,"1,056.00",Shelleys Taxis Ltd
Nottinghamshire County Council,1111/1001,Children and Young People,CYP,Transport Related,CCA,08/09/2016,06-13807,"1,120.00",Shelleys Taxis Ltd
Nottinghamshire County Council,1111/1001,Children and Young People,CYP,Transport Related,CCA,09/09/2016,06-13895,665,Eurocab 2000 Ltd
Nottinghamshire County Council,1111/1001,Children and Young People,CYP,Transport Related,CCA,13/09/2016,06-16150,725,Johnson Bros Tours Ltd
Nottinghamshire County Council,1111/1001,Children and Young People,CYP,Transport Related,CCA,15/09/2016,06-14515,"2,152.50",Central Cars Nottm Ltd
Nottinghamshire County Council,1111/1001,Children and Young People,CYP,Transport Related,CCA,16/09/2016,06-14525,"1,272.00",Tiger European Uk Ltd
Nottinghamshire County Council,1111/1001,Children and Young People,CYP,Transport Related,CCA,22/09/2016,06-15638,675,Sharpes Of Nottingham
Nottinghamshire County Council,1111/1001,Children and Young People,CYP,Transport Related,CCA,22/09/2016,06-15639,675,Sharpes Of Nottingham
Nottinghamshire County Council,1111/1001,Children and Young People,CYP,Transport Related,CCA,22/09/2016,06-15642,"1,085.00",Arrow Specialised Transport Ltd
Nottinghamshire County Council,1111/1001,Children and Young People,CYP,Transport Related,CCA,22/09/2016,06-15643,600,Arrow Specialised Transport Ltd
Nottinghamshire County Council,1111/1001,Children and Young People,CYP,Transport Related,CDA,08/09/2016,06-13808,800,Shelleys Taxis Ltd
Nottinghamshire County Council,1111/1001,Children and Young People,CYP,Transport Related,CDA,08/09/2016,06-13824,"2,380.00",Nottingham Minibuses & Coaches
Nottinghamshire County Council,1111/1001,Children and Young People,CYP,Transport Related,CDA,08/09/2016,06-13826,"2,403.80",Nottingham Minibuses & Coaches
Nottinghamshire County Council,1111/1001,Children and Young People,CYP,Transport Related,CDA,08/09/2016,06-13827,"2,210.00",Nottingham Minibuses & Coaches
Nottinghamshire County Council,1111/1001,Children and Young People,CYP,Transport Related,CDA,09/09/2016,06-16160,640,Welcare Secure Escorts Ltd
Nottinghamshire County Council,1111/1001,Children and Young People,CYP,Transport Related,CDA,16/09/2016,06-14524,"5,091.84",Paul S Winson Coaches
Nottinghamshire County Council,1111/1001,Children and Young People,CYP,Transport Related,CDA,20/09/2016,06-14682,"2,658.80",Nottingham Minibuses & Coaches
Nottinghamshire County Council,1111/1001,Children and Young People,CYP,Transport Related,CDA,20/09/2016,06-14684,"3,870.90",Nottingham Minibuses & Coaches
Nottinghamshire County Council,1111/1001,Children and Young People,CYP,Transport Related,CDA,22/09/2016,06-15598,"15,000.00",Travel Wright Ltd
Nottinghamshire County Council,1111/1001,Children and Young People,CYP,Transport Related,CDA,22/09/2016,06-15599,"15,000.00",Travel Wright Ltd
Nottinghamshire County Council,1111/1001,Children and Young People,CYP,Supplies & Services,DAA,06/09/2016,06-16044,695,Hilltop Communications
Nottinghamshire County Council,1111/1001,Children and Young People,CYP,Supplies & Services,DAA,12/09/2016,06-13933,50,Midland Landfill Ltd
Nottinghamshire County Council,1111/1001,Children and Young People,CYP,Supplies & Services,DAA,13/09/2016,06-16275,"1,500.00",Erdington Hall Primary School
Nottinghamshire County Council,1111/1001,Children and Young People,CYP,Supplies & Services,DAA,16/09/2016,06-16391,"1,011.20",Connevans Ltd
Nottinghamshire County Council,1111/1001,Children and Young People,CYP,Supplies & Services,DAA,23/09/2016,06-15996,"3,108.00",Tough Furniture Ltd
Nottinghamshire County Council,1111/1001,Children and Young People,CYP,Supplies & Services,DAA,27/09/2016,06-15684,"115,937.19",Selston High Academy
Nottinghamshire County Council,1111/1001,Children and Young People,CYP,Supplies & Services,DAA,27/09/2016,06-15931,"20,000.00",St Peters Cross Keys Academy
Nottinghamshire County Council,1111/1001,Children and Young People,CYP,Supplies & Services,DBA,06/09/2016,06-13493,63.44,Brake Bros Ltd
Nottinghamshire County Council,1111/1001,Children and Young People,CYP,Supplies & Services,DBA,06/09/2016,06-13496,205.27,Brake Bros Ltd
Nottinghamshire County Council,1111/1001,Children and Young People,CYP,Supplies & Services,DBA,09/09/2016,06-13897,190.96,Brake Bros Ltd
Nottinghamshire County Council,1111/1001,Children and Young People,CYP,Supplies & Services,DBA,09/09/2016,06-13904,592.73,Brake Bros Ltd
Nottinghamshire County Council,1111/1001,Children and Young People,CYP,Supplies & Services,DBA,13/09/2016,06-14433,761.3,John Palin (Wholesale) Ltd
Nottinghamshire County Council,1111/1001,Children and Young People,CYP,Supplies & Services,DBA,20/09/2016,06-14686,87.47,M Maloney Country Butchers & B Ltd
Nottinghamshire County Council,1111/1001,Children and Young People,CYP,Supplies & Services,DBA,20/09/2016,06-14690,63.53,M Maloney Country Butchers & B Ltd
Nottinghamshire County Council,1111/1001,Children and Young People,CYP,Supplies & Services,DBA,20/09/2016,06-14694,432.17,Brake Bros Ltd
Nottinghamshire County Council,1111/1001,Children and Young People,CYP,Supplies & Services,DBA,20/09/2016,06-14698,416.88,Brake Bros Ltd
Nottinghamshire County Council,1111/1001,Children and Young People,CYP,Supplies & Services,DBA,20/09/2016,06-14701,217.37,Brake Bros Ltd
Nottinghamshire County Council,1111/1001,Children and Young People,CYP,Supplies & Services,DBA,20/09/2016,06-14704,288.58,Brake Bros Ltd
Nottinghamshire County Council,1111/1001,Children and Young People,CYP,Supplies & Services,DBA,20/09/2016,06-14709,77.41,M Maloney Country Butchers & B Ltd
Nottinghamshire County Council,1111/1001,Children and Young People,CYP,Supplies & Services,DBA,23/09/2016,06-15686,208.62,Brake Bros Ltd
Nottinghamshire County Council,1111/1001,Children and Young People,CYP,Supplies & Services,DBA,23/09/2016,06-15689,80.15,Brake Bros Ltd
Nottinghamshire County Council,1111/1001,Children and Young People,CYP,Supplies & Services,DBA,23/09/2016,06-15692,248.86,Brake Bros Ltd
Nottinghamshire County Council,1111/1001,Children and Young People,CYP,Supplies & Services,DBA,23/09/2016,06-15695,188.09,Brake Bros Ltd
Nottinghamshire County Council,1111/1001,Children and Young People,CYP,Supplies & Services,DEA,02/09/2016,06-16017,"17,000.00","Futures Advice, Skills & Employment"
Nottinghamshire County Council,1111/1001,Children and Young People,CYP,Supplies & Services,DEA,05/09/2016,06-16043,880,Birgitta Lundberg Independent Socia
Nottinghamshire County Council,1111/1001,Children and Young People,CYP,Supplies & Services,DEA,08/09/2016,06-16081,"1,164.04","Futures Advice, Skills & Employment"
Nottinghamshire County Council,1111/1001,Children and Young People,CYP,Supplies & Services,DEA,09/09/2016,06-16174,"1,386.00",Learning Ladder Childcare Ltd
Nottinghamshire County Council,1111/1001,Children and Young People,CYP,Supplies & Services,DEA,12/09/2016,06-16230,"9,950.00",Blinkbright ltd
Nottinghamshire County Council,1111/1001,Children and Young People,CYP,Supplies & Services,DEA,13/09/2016,06-16268,"1,386.00",Learning Ladder Childcare Ltd
Nottinghamshire County Council,1111/1001,Children and Young People,CYP,Supplies & Services,DEA,14/09/2016,06-16293,"2,667.50",Chris Few Consultancy Ltd
Nottinghamshire County Council,1111/1001,Children and Young People,CYP,Supplies & Services,DEA,14/09/2016,06-16304,"1,002.00",[Redacted]
Nottinghamshire County Council,1111/1001,Children and Young People,CYP,Supplies & Services,DEA,19/09/2016,06-16436,870,Michael Mandelstam Ltd
Nottinghamshire County Council,1111/1001,Children and Young People,CYP,Supplies & Services,DEA,20/09/2016,06-16455,895,Kids
Nottinghamshire County Council,1111/1001,Children and Young People,CYP,Supplies & Services,DEA,21/09/2016,06-15980,"1,485.00",Blunderbus Theatre Company
Nottinghamshire County Council,1111/1001,Children and Young People,CYP,Supplies & Services,DEA,21/09/2016,06-16468,"1,575.00",Jo Sharpe Education Consultant
Nottinghamshire County Council,1111/1001,Children and Young People,CYP,Supplies & Services,DEA,23/09/2016,06-16139,"8,610.07",Tin Hat Centre
Nottinghamshire County Council,1111/1001,Children and Young People,CYP,Supplies & Services,DEA,23/09/2016,06-16305,"1,920.00",Hands Free Computing Ltd
Nottinghamshire County Council,1111/1001,Children and Young People,CYP,Supplies & Services,DEA,23/09/2016,06-16463,"1,076.67",Lane Family Decorators Ltd
Nottinghamshire County Council,1111/1001,Children and Young People,CYP,Supplies & Services,DFA,06/09/2016,06-13619,561.33,Lantec Services Ltd
Nottinghamshire County Council,1111/1001,Children and Young People,CYP,Supplies & Services,DFA,07/09/2016,06-13753,"10,572.00",Careworks Ltd
Nottinghamshire County Council,1111/1001,Children and Young People,CYP,Supplies & Services,DFA,08/09/2016,06-13762,575.05,Lantec Services Ltd
Nottinghamshire County Council,1111/1001,Children and Young People,CYP,Supplies & Services,DFA,13/09/2016,06-14437,"1,094.47",Adept Telecom
Nottinghamshire County Council,1111/1001,Children and Young People,CYP,Supplies & Services,DHA,19/09/2016,06-16420,644,Fostering Network
Nottinghamshire County Council,1111/1001,Children and Young People,CYP,Supplies & Services,DHA,30/09/2016,06-15975,"2,637.22",Prism Medical Uk
Nottinghamshire County Council,1111/1001,Children and Young People,CYP,Supplies & Services,DKA,02/09/2016,06-10068,"4,420.28",Broxtowe Borough Council
Nottinghamshire County Council,1111/1001,Children and Young People,CYP,Supplies & Services,DKA,06/09/2016,06-16056,811.58,Hitch N Hike Ltd
Nottinghamshire County Council,1111/1001,Children and Young People,CYP,Supplies & Services,DKA,07/09/2016,06-13752,"11,692.67",Bunny C Of E Primary School
Nottinghamshire County Council,1111/1001,Children and Young People,CYP,Supplies & Services,DKA,08/09/2016,06-16133,"2,627.04",First Class Tailored Solutions Ltd
Nottinghamshire County Council,1111/1001,Children and Young People,CYP,Supplies & Services,DKA,09/09/2016,06-13853,"26,920.48",Abbey Gates Primary School
Nottinghamshire County Council,1111/1001,Children and Young People,CYP,Supplies & Services,DKA,09/09/2016,06-13854,"40,000.00",Misterton Primary School
Nottinghamshire County Council,1111/1001,Children and Young People,CYP,Supplies & Services,DKA,22/09/2016,06-15609,"23,307.33",Bunny C Of E Primary School
Nottinghamshire County Council,1111/1001,Children and Young People,CYP,Supplies & Services,DKA,22/09/2016,06-16104,800,The Adventure Service
Nottinghamshire County Council,1111/1001,Children and Young People,CYP,Supplies & Services,DKA,27/09/2016,06-15925,500,Broxtowe Borough Council
Nottinghamshire County Council,1111/1001,Children and Young People,CYP,Supplies & Services,DKA,30/09/2016,06-16385,731.16,Robinson Healthcare Ltd
Nottinghamshire County Council,1111/1001,Children and Young People,CYP,Supplies & Services,DNA,06/09/2016,06-16054,990,Rose Callan Education Services
Nottinghamshire County Council,1111/1001,Children and Young People,CYP,Third Party Payments,EBA,09/09/2016,06-16148,"2,569.86",Diseworth Church of England Primary
Nottinghamshire County Council,1111/1001,Children and Young People,CYP,Third Party Payments,EBA,28/09/2016,06-15709,"17,355.08",Transform Schools
Nottinghamshire County Council,1111/1001,Children and Young People,CYP,Third Party Payments,EBA,28/09/2016,06-15710,713.29,Transform Schools
Nottinghamshire County Council,1111/1001,Children and Young People,CYP,Third Party Payments,EBA,28/09/2016,06-15711,"6,732.10",Transform Schools
Nottinghamshire County Council,1111/1001,Children and Young People,CYP,Third Party Payments,EBA,28/09/2016,06-15712,"42,744.00",Transform Schools
Nottinghamshire County Council,1111/1001,Children and Young People,CYP,Third Party Payments,EBA,28/09/2016,06-15713,"8,717.74",Transform Schools
Nottinghamshire County Council,1111/1001,Children and Young People,CYP,Third Party Payments,EBA,28/09/2016,06-15714,"9,603.58",East Leake Schools Ltd
Nottinghamshire County Council,1111/1001,Children and Young People,CYP,Third Party Payments,EBA,28/09/2016,06-15720,"243,112.39",East Leake Schools Ltd
Nottinghamshire County Council,1111/1001,Children and Young People,CYP,Third Party Payments,EBA,28/09/2016,06-15721,"1,469,147.36",Transform Schools
Nottinghamshire County Council,1111/1001,Children and Young People,CYP,Third Party Payments,EDA,02/09/2016,06-10056,"2,421.00",Outwood Academy Portland
Nottinghamshire County Council,1111/1001,Children and Young People,CYP,Third Party Payments,EDA,02/09/2016,06-10057,"2,959.00",Outwood Academy - Valley
Nottinghamshire County Council,1111/1001,Children and Young People,CYP,Third Party Payments,EDA,02/09/2016,06-10058,"3,008.00",Greythorn Primary Academy
Nottinghamshire County Council,1111/1001,Children and Young People,CYP,Third Party Payments,EDA,02/09/2016,06-10059,"1,000.00",Birklands Primary (Academy)
Nottinghamshire County Council,1111/1001,Children and Young People,CYP,Third Party Payments,EDA,02/09/2016,06-10060,"2,460.00",Meden School - A Torch Academy
Nottinghamshire County Council,1111/1001,Children and Young People,CYP,Third Party Payments,EDA,02/09/2016,06-10061,"50,667.00",Sutton Community Academy
Nottinghamshire County Council,1111/1001,Children and Young People,CYP,Third Party Payments,EDA,02/09/2016,06-10062,"33,480.00",Meden School - A Torch Academy
Nottinghamshire County Council,1111/1001,Children and Young People,CYP,Third Party Payments,EDA,02/09/2016,06-10063,"13,896.00",Birklands Primary (Academy)
Nottinghamshire County Council,1111/1001,Children and Young People,CYP,Third Party Payments,EDA,09/09/2016,06-13851,"6,339.00",Holy Cross Catholic Voluntary Acade
Nottinghamshire County Council,1111/1001,Children and Young People,CYP,Third Party Payments,EDA,13/09/2016,06-14302,"66,081.25",The Beech Academy
Nottinghamshire County Council,1111/1001,Children and Young People,CYP,Third Party Payments,EDA,13/09/2016,06-14303,"16,666.67",The Beech Academy
Nottinghamshire County Council,1111/1001,Children and Young People,CYP,Third Party Payments,EDA,13/09/2016,06-14304,"4,166.67",The Beech Academy
Nottinghamshire County Council,1111/1001,Children and Young People,CYP,Third Party Payments,EDA,13/09/2016,06-14305,"74,281.25",Foxwood Academy
Nottinghamshire County Council,1111/1001,Children and Young People,CYP,Third Party Payments,EDA,14/09/2016,06-14453,"4,648.00",Seely C Of E Primary Scho
Nottinghamshire County Council,1111/1001,Children and Young People,CYP,Third Party Payments,EDA,16/09/2016,06-10177,"6,339.00",Holy Trinity Catholic Voluntary Aca
Nottinghamshire County Council,1111/1001,Children and Young People,CYP,Third Party Payments,EDA,16/09/2016,06-10178,"6,339.00",Arnold Hill Academy
Nottinghamshire County Council,1111/1001,Children and Young People,CYP,Third Party Payments,EDA,16/09/2016,06-10179,"6,339.00",Kirkby College
Nottinghamshire County Council,1111/1001,Children and Young People,CYP,Third Party Payments,EDA,16/09/2016,06-10180,"6,339.00",Tuxford Academy
Nottinghamshire County Council,1111/1001,Children and Young People,CYP,Third Party Payments,EDA,16/09/2016,06-10181,"4,424.00",Magnus Church of England Academy
Nottinghamshire County Council,1111/1001,Children and Young People,CYP,Third Party Payments,EDA,16/09/2016,06-10182,"6,339.00",Flying High Trust Beeston Fields Pr
Nottinghamshire County Council,1111/1001,Children and Young People,CYP,Third Party Payments,EDA,22/09/2016,06-15602,"17,760.62",Holy Trinity Catholic Voluntary Aca
Nottinghamshire County Council,1111/1001,Children and Young People,CYP,Third Party Payments,EDA,22/09/2016,06-15603,"17,760.62",St Patricks Catholic Voluntary Acad
Nottinghamshire County Council,1111/1001,Children and Young People,CYP,Third Party Payments,EDA,22/09/2016,06-15604,"28,989.91",St Philip Neri with St Bede Vol Aca
Nottinghamshire County Council,1111/1001,Children and Young People,CYP,Third Party Payments,EDA,22/09/2016,06-15605,"14,910.70",St Josephs Catholic Primary Sch Aca
Nottinghamshire County Council,1111/1001,Children and Young People,CYP,Third Party Payments,EDA,22/09/2016,06-15606,"7,455.35",Arnbrook Primary Academy
Nottinghamshire County Council,1111/1001,Children and Young People,CYP,Third Party Payments,EDA,22/09/2016,06-15607,"25,803.59",Hillside Academy
Nottinghamshire County Council,1111/1001,Children and Young People,CYP,Third Party Payments,EDA,22/09/2016,06-15608,"22,344.00",The Flying High Academy
Nottinghamshire County Council,1111/1001,Children and Young People,CYP,Third Party Payments,EDA,22/09/2016,06-15610,"26,986.18",Sir Donald Bailey Academy
Nottinghamshire County Council,1111/1001,Children and Young People,CYP,Third Party Payments,EDA,22/09/2016,06-15611,"18,906.46",Sacred Heart Catholic Voluntary Aca
Nottinghamshire County Council,1111/1001,Children and Young People,CYP,Third Party Payments,EDA,22/09/2016,06-15612,"13,664.06",St Joseph's RC Primary Academy
Nottinghamshire County Council,1111/1001,Children and Young People,CYP,Third Party Payments,EDA,22/09/2016,06-15613,"14,359.83",The Bramble Academy
Nottinghamshire County Council,1111/1001,Children and Young People,CYP,Third Party Payments,EDA,22/09/2016,06-15614,"17,767.97",Flying High Trust Beeston Fields Pr
Nottinghamshire County Council,1111/1001,Children and Young People,CYP,Third Party Payments,EDA,22/09/2016,06-15622,"6,302.15",Kingston Park Academy
Nottinghamshire County Council,1111/1001,Children and Young People,CYP,Third Party Payments,EDA,22/09/2016,06-15623,"21,778.43",Peafield Lane Academy
Nottinghamshire County Council,1111/1001,Children and Young People,CYP,Third Party Payments,EDA,22/09/2016,06-15624,"29,299.93",Leamington Primary & Nursery Academ
Nottinghamshire County Council,1111/1001,Children and Young People,CYP,Third Party Payments,EDA,22/09/2016,06-15625,"6,875.08",Birklands Primary (Academy)
Nottinghamshire County Council,1111/1001,Children and Young People,CYP,Third Party Payments,EDA,22/09/2016,06-15626,"9,188.82",Sunnyside Spencer Academy
Nottinghamshire County Council,1111/1001,Children and Young People,CYP,Third Party Payments,EDA,22/09/2016,06-15627,"35,543.28",Norbridge Academy
Nottinghamshire County Council,1111/1001,Children and Young People,CYP,Third Party Payments,EDA,22/09/2016,06-15628,"28,087.93",Sparken Hill Academy
Nottinghamshire County Council,1111/1001,Children and Young People,CYP,Third Party Payments,EDA,22/09/2016,06-15629,"12,611.66",Flying High Trust Bilsthorpe High A
Nottinghamshire County Council,1111/1001,Children and Young People,CYP,Third Party Payments,EDA,29/09/2016,06-15948,"24,672.44",Serlby Park Academy
Nottinghamshire County Council,1111/1001,Children and Young People,CYP,Third Party Payments,EDA,29/09/2016,06-15949,"33,809.81",Candleby Lane School
Nottinghamshire County Council,1111/1001,Children and Young People,CYP,Third Party Payments,EDA,29/09/2016,06-15950,"28,646.15",Barnby Road Academy Prim & Nursery
Nottinghamshire County Council,1111/1001,Children and Young People,CYP,Third Party Payments,EDA,29/09/2016,06-15951,"12,955.41",Tuxford Primary Academy
Nottinghamshire County Council,1111/1001,Children and Young People,CYP,Third Party Payments,EDA,29/09/2016,06-15952,"19,952.42",Bishop Alexander LEAD Academy
Nottinghamshire County Council,1111/1001,Children and Young People,CYP,Third Party Payments,EDA,29/09/2016,06-15953,"17,268.54",Mansfield Primary Academy
Nottinghamshire County Council,1111/1001,Children and Young People,CYP,Third Party Payments,EFA,02/09/2016,06-15984,"60,835.00",REAL Independent School Ltd
Nottinghamshire County Council,1111/1001,Children and Young People,CYP,Third Party Payments,EFA,02/09/2016,06-16003,"57,061.15",Real Education Ltd
Nottinghamshire County Council,1111/1001,Children and Young People,CYP,Third Party Payments,EFA,06/09/2016,06-16063,"432,300.00",REAL Independent School Ltd
Nottinghamshire County Council,1111/1001,Children and Young People,CYP,Third Party Payments,EFA,08/09/2016,06-16109,"52,400.00",REAL Independent School Ltd
Nottinghamshire County Council,1111/1001,Children and Young People,CYP,Third Party Payments,EFA,08/09/2016,06-16110,"26,200.00",REAL Independent School Ltd
Nottinghamshire County Council,1111/1001,Children and Young People,CYP,Third Party Payments,EFA,09/09/2016,06-16020,"33,237.00",Exeter Royal Academy For Deaf Educa
Nottinghamshire County Council,1111/1001,Children and Young People,CYP,Third Party Payments,EFA,09/09/2016,06-16057,"2,730.00",Catch 22
Nottinghamshire County Council,1111/1001,Children and Young People,CYP,Third Party Payments,EFA,09/09/2016,06-16079,"3,047.74",Castlecare Education Ltd
Nottinghamshire County Council,1111/1001,Children and Young People,CYP,Third Party Payments,EFA,09/09/2016,06-16212,"19,612.67",Kisimul School
Nottinghamshire County Council,1111/1001,Children and Young People,CYP,Third Party Payments,EFA,13/09/2016,06-16287,"9,321.00",Tring Park School
Nottinghamshire County Council,1111/1001,Children and Young People,CYP,Third Party Payments,EFA,13/09/2016,06-16288,"6,688.00",Tring Park School
Nottinghamshire County Council,1111/1001,Children and Young People,CYP,Third Party Payments,EFA,14/09/2016,06-16308,680,First Class Tailored Solutions Ltd
Nottinghamshire County Council,1111/1001,Children and Young People,CYP,Third Party Payments,EFA,15/09/2016,06-16270,"3,300.00",Rainbow Horses Learning Centre
Nottinghamshire County Council,1111/1001,Children and Young People,CYP,Third Party Payments,EFA,15/09/2016,06-16333,"2,533.33",Nisai Virtual Academy Ltd
Nottinghamshire County Council,1111/1001,Children and Young People,CYP,Third Party Payments,EFA,15/09/2016,06-16334,"7,599.99",Nisai Virtual Academy Ltd
Nottinghamshire County Council,1111/1001,Children and Young People,CYP,Third Party Payments,EFA,15/09/2016,06-16371,"6,854.67",Teaching Personnel Ltd
Nottinghamshire County Council,1111/1001,Children and Young People,CYP,Third Party Payments,EFA,15/09/2016,06-16372,"6,854.67",Teaching Personnel Ltd
Nottinghamshire County Council,1111/1001,Children and Young People,CYP,Third Party Payments,EFA,15/09/2016,06-16373,"6,854.67",Teaching Personnel Ltd
Nottinghamshire County Council,1111/1001,Children and Young People,CYP,Third Party Payments,EFA,15/09/2016,06-16374,"6,854.67",Teaching Personnel Ltd
Nottinghamshire County Council,1111/1001,Children and Young People,CYP,Third Party Payments,EFA,15/09/2016,06-16375,"6,854.67",Teaching Personnel Ltd
Nottinghamshire County Council,1111/1001,Children and Young People,CYP,Third Party Payments,EFA,21/09/2016,06-16478,"6,854.67",Teaching Personnel Ltd
Nottinghamshire County Council,1111/1001,Children and Young People,CYP,Third Party Payments,EFA,21/09/2016,06-16483,"6,854.67",Teaching Personnel Ltd
Nottinghamshire County Council,1111/1001,Children and Young People,CYP,Third Party Payments,EFA,29/09/2016,06-16322,"2,692.50",Jubilee House Christian School
Nottinghamshire County Council,1111/1001,Children and Young People,CYP,Third Party Payments,EFA,30/09/2016,06-15987,"36,501.00",R.E.A.L Alternative Provision Schoo
Nottinghamshire County Council,1111/1001,Children and Young People,CYP,Third Party Payments,EFA,30/09/2016,06-16497,"10,942.78",Priors Court Foundation
Nottinghamshire County Council,1111/1001,Children and Young People,CYP,Third Party Payments,EGA,01/09/2016,06-15988,"22,842.35",Fosterplus Ltd
Nottinghamshire County Council,1111/1001,Children and Young People,CYP,Third Party Payments,EGA,01/09/2016,06-15989,"22,842.35",Fosterplus Ltd
Nottinghamshire County Council,1111/1001,Children and Young People,CYP,Third Party Payments,EGA,01/09/2016,06-15991,"17,314.20",Independent Childcare Gr
Nottinghamshire County Council,1111/1001,Children and Young People,CYP,Third Party Payments,EGA,02/09/2016,06-10183,"2,512.23",Abacus Pre-School
Nottinghamshire County Council,1111/1001,Children and Young People,CYP,Third Party Payments,EGA,02/09/2016,06-10184,588,Jelly Tots
Nottinghamshire County Council,1111/1001,Children and Young People,CYP,Third Party Payments,EGA,02/09/2016,06-10185,"15,817.20",Alphabet House Day Nursery
Nottinghamshire County Council,1111/1001,Children and Young People,CYP,Third Party Payments,EGA,02/09/2016,06-10186,"4,664.80",Alphabet House Day Nursery
Nottinghamshire County Council,1111/1001,Children and Young People,CYP,Third Party Payments,EGA,02/09/2016,06-10187,"18,780.23",Alphabet House Day Nursery WB
Nottinghamshire County Council,1111/1001,Children and Young People,CYP,Third Party Payments,EGA,02/09/2016,06-10188,"8,685.74",Alphabet House Nursery
Nottinghamshire County Council,1111/1001,Children and Young People,CYP,Third Party Payments,EGA,02/09/2016,06-10189,"3,688.23",Angels With Dirty Faces Day Nursery
Nottinghamshire County Council,1111/1001,Children and Young People,CYP,Third Party Payments,EGA,02/09/2016,06-10190,"30,404.01",Alphabet House Day Nursery Worksop
Nottinghamshire County Council,1111/1001,Children and Young People,CYP,Third Party Payments,EGA,02/09/2016,06-10191,"35,631.11",Applegarth Day Nurseries Ltd
Nottinghamshire County Council,1111/1001,Children and Young People,CYP,Third Party Payments,EGA,02/09/2016,06-10192,"12,293.61",Appleton Day Nursery
Nottinghamshire County Council,1111/1001,Children and Young People,CYP,Third Party Payments,EGA,02/09/2016,06-10193,"2,809.89",Arnold St Mary's Pre-School
Nottinghamshire County Council,1111/1001,Children and Young People,CYP,Third Party Payments,EGA,02/09/2016,06-10194,"6,299.83",Arnold View Pre-School
Nottinghamshire County Council,1111/1001,Children and Young People,CYP,Third Party Payments,EGA,02/09/2016,06-10195,"2,202.06",Aunty Sue's Day Care Ltd
Nottinghamshire County Council,1111/1001,Children and Young People,CYP,Third Party Payments,EGA,02/09/2016,06-10196,"15,876.00",Attenborough Day Nursery & Pre-Sch
Nottinghamshire County Council,1111/1001,Children and Young People,CYP,Third Party Payments,EGA,02/09/2016,06-10197,"11,953.06",Awsworth Schoolhouse Day Nursery
Nottinghamshire County Council,1111/1001,Children and Young People,CYP,Third Party Payments,EGA,02/09/2016,06-10198,"20,305.32",Balderton Pre-School
Nottinghamshire County Council,1111/1001,Children and Young People,CYP,Third Party Payments,EGA,02/09/2016,06-10199,"4,778.08",L Kong Ltd
Nottinghamshire County Council,1111/1001,Children and Young People,CYP,Third Party Payments,EGA,02/09/2016,06-10200,748.23,Tracey Barnes Child Minding Service
Nottinghamshire County Council,1111/1001,Children and Young People,CYP,Third Party Payments,EGA,02/09/2016,06-10201,"12,984.51",Beacon Hill Day Nursery
Nottinghamshire County Council,1111/1001,Children and Young People,CYP,Third Party Payments,EGA,02/09/2016,06-10202,"13,279.98",Beeston Nursery
Nottinghamshire County Council,1111/1001,Children and Young People,CYP,Third Party Payments,EGA,02/09/2016,06-10203,"15,405.60",Bingham Day Nursery & Pre School
Nottinghamshire County Council,1111/1001,Children and Young People,CYP,Third Party Payments,EGA,02/09/2016,06-10204,"11,816.12",Bircotes Pre-School
Nottinghamshire County Council,1111/1001,Children and Young People,CYP,Third Party Payments,EGA,02/09/2016,06-10205,588,Sunrayz Childcare
Nottinghamshire County Council,1111/1001,Children and Young People,CYP,Third Party Payments,EGA,02/09/2016,06-10206,"16,249.14",Attenborough Church Pre-School
Nottinghamshire County Council,1111/1001,Children and Young People,CYP,Third Party Payments,EGA,02/09/2016,06-10207,748.23,[Redacted]
Nottinghamshire County Council,1111/1001,Children and Young People,CYP,Third Party Payments,EGA,02/09/2016,06-10208,"2,560.23",Bramley Pips Nursery Ltd
Nottinghamshire County Council,1111/1001,Children and Young People,CYP,Third Party Payments,EGA,02/09/2016,06-10209,"7,712.60",Pretty Windows Ltd
Nottinghamshire County Council,1111/1001,Children and Young People,CYP,Third Party Payments,EGA,02/09/2016,06-10210,"11,342.40",Bright Sparks Day Nursery
Nottinghamshire County Council,1111/1001,Children and Young People,CYP,Third Party Payments,EGA,02/09/2016,06-10211,"16,298.38",Bright Stars Childcare
Nottinghamshire County Council,1111/1001,Children and Young People,CYP,Third Party Payments,EGA,02/09/2016,06-10212,"19,727.40",Cared 4 Ltd T/A Brookhill House Day
Nottinghamshire County Council,1111/1001,Children and Young People,CYP,Third Party Payments,EGA,02/09/2016,06-10213,"18,689.09",Brooklyn Day Nursery
Nottinghamshire County Council,1111/1001,Children and Young People,CYP,Third Party Payments,EGA,02/09/2016,06-10214,"10,601.15",Bullpit Road Nursery
Nottinghamshire County Council,1111/1001,Children and Young People,CYP,Third Party Payments,EGA,02/09/2016,06-10215,"17,119.13",Busy Bees Nursery
Nottinghamshire County Council,1111/1001,Children and Young People,CYP,Third Party Payments,EGA,02/09/2016,06-10216,"17,634.37",Buttercross Pre School
Nottinghamshire County Council,1111/1001,Children and Young People,CYP,Third Party Payments,EGA,02/09/2016,06-10217,"6,780.23",Carousel Under 5'S Playgroup
Nottinghamshire County Council,1111/1001,Children and Young People,CYP,Third Party Payments,EGA,02/09/2016,06-10218,"12,348.00",Cedar House Day Nursery
Nottinghamshire County Council,1111/1001,Children and Young People,CYP,Third Party Payments,EGA,02/09/2016,06-10219,"18,546.99",Cherubs Childcare Centre (Mansfield
Nottinghamshire County Council,1111/1001,Children and Young People,CYP,Third Party Payments,EGA,02/09/2016,06-10220,"16,127.59",Cherubs Childcare Centre Ladybrook
Nottinghamshire County Council,1111/1001,Children and Young People,CYP,Third Party Payments,EGA,02/09/2016,06-10221,"38,635.92",Cherubs Childrens Centre Wynndale
Nottinghamshire County Council,1111/1001,Children and Young People,CYP,Third Party Payments,EGA,02/09/2016,06-10222,"16,268.49",Cherubs Childrens Centre Pleasley
Nottinghamshire County Council,1111/1001,Children and Young People,CYP,Third Party Payments,EGA,02/09/2016,06-10223,"15,118.95",Cherubs Ryton Park
Nottinghamshire County Council,1111/1001,Children and Young People,CYP,Third Party Payments,EGA,02/09/2016,06-10224,"53,202.73",Cherubs Day Nursery
Nottinghamshire County Council,1111/1001,Children and Young People,CYP,Third Party Payments,EGA,02/09/2016,06-10225,"2,352.00",Chetwynd Barracks Pre-School
Nottinghamshire County Council,1111/1001,Children and Young People,CYP,Third Party Payments,EGA,02/09/2016,06-10226,"16,558.13",Children 1st @ Breedon House
Nottinghamshire County Council,1111/1001,Children and Young People,CYP,Third Party Payments,EGA,02/09/2016,06-10227,"11,488.05",Children 1st @ Newark Centre
Nottinghamshire County Council,1111/1001,Children and Young People,CYP,Third Party Payments,EGA,02/09/2016,06-10228,"9,153.20",Breedon House Nurseries Ltd
Nottinghamshire County Council,1111/1001,Children and Young People,CYP,Third Party Payments,EGA,02/09/2016,06-10229,"29,624.42",Breedon House Nurseries Ltd
Nottinghamshire County Council,1111/1001,Children and Young People,CYP,Third Party Payments,EGA,02/09/2016,06-10230,"12,198.06",Childrens House Childcare Ltd
Nottinghamshire County Council,1111/1001,Children and Young People,CYP,Third Party Payments,EGA,02/09/2016,06-10231,"12,792.43",Christchurch Hall Pre-School Playgr
Nottinghamshire County Council,1111/1001,Children and Young People,CYP,Third Party Payments,EGA,02/09/2016,06-10232,"15,564.51",Church House Day Nursery
Nottinghamshire County Council,1111/1001,Children and Young People,CYP,Third Party Payments,EGA,02/09/2016,06-10233,"13,074.18",Claremont Early Years Ltd
Nottinghamshire County Council,1111/1001,Children and Young People,CYP,Third Party Payments,EGA,02/09/2016,06-10234,748.23,[Redacted]
Nottinghamshire County Council,1111/1001,Children and Young People,CYP,Third Party Payments,EGA,02/09/2016,06-10235,"6,663.51",Collingham & District Pre-School
Nottinghamshire County Council,1111/1001,Children and Young People,CYP,Third Party Payments,EGA,02/09/2016,06-10236,"2,352.00",Colston Bassett Preparatory School
Nottinghamshire County Council,1111/1001,Children and Young People,CYP,Third Party Payments,EGA,02/09/2016,06-10237,"4,821.60",Colwick Pre School Playgroup
Nottinghamshire County Council,1111/1001,Children and Young People,CYP,Third Party Payments,EGA,02/09/2016,06-10238,"18,883.62",Coteswood House School
Nottinghamshire County Council,1111/1001,Children and Young People,CYP,Third Party Payments,EGA,02/09/2016,06-10240,"19,606.37",Daisies Day Nursery
Nottinghamshire County Council,1111/1001,Children and Young People,CYP,Third Party Payments,EGA,02/09/2016,06-10241,"7,964.46",Daisies Day Nursery
Nottinghamshire County Council,1111/1001,Children and Young People,CYP,Third Party Payments,EGA,02/09/2016,06-10242,865.83,P M Dawson Childminding Services
Nottinghamshire County Council,1111/1001,Children and Young People,CYP,Third Party Payments,EGA,02/09/2016,06-10243,946.95,[Redacted]
Nottinghamshire County Council,1111/1001,Children and Young People,CYP,Third Party Payments,EGA,02/09/2016,06-10244,"7,742.00",Busy Bees Pre-School (Sutton)
Nottinghamshire County Council,1111/1001,Children and Young People,CYP,Third Party Payments,EGA,02/09/2016,06-10245,"28,706.16",Discovery Day Nursery
Nottinghamshire County Council,1111/1001,Children and Young People,CYP,Third Party Payments,EGA,02/09/2016,06-10246,748.23,N Drewry (Childminding Service)
Nottinghamshire County Council,1111/1001,Children and Young People,CYP,Third Party Payments,EGA,02/09/2016,06-10247,"6,592.46",Duncroft Day Nursery Ltd
Nottinghamshire County Council,1111/1001,Children and Young People,CYP,Third Party Payments,EGA,02/09/2016,06-10248,"9,431.54",East Leake Pre-School Playgroup
Nottinghamshire County Council,1111/1001,Children and Young People,CYP,Third Party Payments,EGA,02/09/2016,06-10249,"25,524.80",Edwalton Day Nursery
Nottinghamshire County Council,1111/1001,Children and Young People,CYP,Third Party Payments,EGA,02/09/2016,06-10250,"2,870.50",Elston Pre-school Playgroup Newark
Nottinghamshire County Council,1111/1001,Children and Young People,CYP,Third Party Payments,EGA,02/09/2016,06-10251,748.23,[Redacted]
Nottinghamshire County Council,1111/1001,Children and Young People,CYP,Third Party Payments,EGA,02/09/2016,06-10252,"14,825.24",St Peter's Early Years
Nottinghamshire County Council,1111/1001,Children and Young People,CYP,Third Party Payments,EGA,02/09/2016,06-10253,"11,353.23",Farnsfield Pre-School
Nottinghamshire County Council,1111/1001,Children and Young People,CYP,Third Party Payments,EGA,02/09/2016,06-10254,"1,496.46",Nicola Fenton Childminding Services
Nottinghamshire County Council,1111/1001,Children and Young People,CYP,Third Party Payments,EGA,02/09/2016,06-10255,"34,238.05",Fernwood Day Nursery Ltd
Nottinghamshire County Council,1111/1001,Children and Young People,CYP,Third Party Payments,EGA,02/09/2016,06-10256,"4,767.92",Fledglings Playgroup
Nottinghamshire County Council,1111/1001,Children and Young People,CYP,Third Party Payments,EGA,02/09/2016,06-10257,588,[Redacted]
Nottinghamshire County Council,1111/1001,Children and Young People,CYP,Third Party Payments,EGA,02/09/2016,06-10258,"29,846.88",Fun Farm Day Nursery
Nottinghamshire County Council,1111/1001,Children and Young People,CYP,Third Party Payments,EGA,02/09/2016,06-10259,"9,827.34",Gotham Pre-School Playgroup
Nottinghamshire County Council,1111/1001,Children and Young People,CYP,Third Party Payments,EGA,02/09/2016,06-10260,"16,079.74",PSLA Newstead Childcare (HO)
Nottinghamshire County Council,1111/1001,Children and Young People,CYP,Third Party Payments,EGA,02/09/2016,06-10261,529.2,[Redacted]
Nottinghamshire County Council,1111/1001,Children and Young People,CYP,Third Party Payments,EGA,02/09/2016,06-10262,"1,496.46",[Redacted]
Nottinghamshire County Council,1111/1001,Children and Young People,CYP,Third Party Payments,EGA,02/09/2016,06-10263,"1,496.46",Rachel & Philip's Home From Home Ch
Nottinghamshire County Council,1111/1001,Children and Young People,CYP,Third Party Payments,EGA,02/09/2016,06-10265,"21,717.58",Carnarvon Pre-School
Nottinghamshire County Council,1111/1001,Children and Young People,CYP,Third Party Payments,EGA,02/09/2016,06-10266,748.23,[Redacted]
Nottinghamshire County Council,1111/1001,Children and Young People,CYP,Third Party Payments,EGA,02/09/2016,06-10267,"14,125.23",Hickory House Day Nursery
Nottinghamshire County Council,1111/1001,Children and Young People,CYP,Third Party Payments,EGA,02/09/2016,06-10268,"21,502.77",Homestead Day Nursery Ltd
Nottinghamshire County Council,1111/1001,Children and Young People,CYP,Third Party Payments,EGA,02/09/2016,06-10269,"7,467.60",Honey Pot Day Private Day Nursery L
Nottinghamshire County Council,1111/1001,Children and Young People,CYP,Third Party Payments,EGA,02/09/2016,06-10270,"7,448.00",Horsendale Playgroup
Nottinghamshire County Council,1111/1001,Children and Young People,CYP,Third Party Payments,EGA,02/09/2016,06-10271,"23,774.41",Hucknall Day Nursery
Nottinghamshire County Council,1111/1001,Children and Young People,CYP,Third Party Payments,EGA,02/09/2016,06-10272,"12,382.40",Hucknall Pre-School Playgroup
Nottinghamshire County Council,1111/1001,Children and Young People,CYP,Third Party Payments,EGA,02/09/2016,06-10273,588,Tracey Hunt Childminding Service
Nottinghamshire County Council,1111/1001,Children and Young People,CYP,Third Party Payments,EGA,02/09/2016,06-10274,"2,077.60",Hickling Pre-School
Nottinghamshire County Council,1111/1001,Children and Young People,CYP,Third Party Payments,EGA,02/09/2016,06-10275,"8,017.38",Jelly Totz Day Nursery
Nottinghamshire County Council,1111/1001,Children and Young People,CYP,Third Party Payments,EGA,02/09/2016,06-10276,"1,186.58",[Redacted]
Nottinghamshire County Council,1111/1001,Children and Young People,CYP,Third Party Payments,EGA,02/09/2016,06-10277,"11,781.42",Kidzgrove
Nottinghamshire County Council,1111/1001,Children and Young People,CYP,Third Party Payments,EGA,02/09/2016,06-10278,"1,136.80",[Redacted]
Nottinghamshire County Council,1111/1001,Children and Young People,CYP,Third Party Payments,EGA,02/09/2016,06-10279,"13,134.35",Killisick Pre-School
Nottinghamshire County Council,1111/1001,Children and Young People,CYP,Third Party Payments,EGA,02/09/2016,06-10280,"16,363.28",PSLA Newstead Childcare (HO)
Nottinghamshire County Council,1111/1001,Children and Young People,CYP,Third Party Payments,EGA,02/09/2016,06-10281,"4,927.44",Kimberley Pre-School Playgroup
Nottinghamshire County Council,1111/1001,Children and Young People,CYP,Third Party Payments,EGA,02/09/2016,06-10282,"14,801.43",Kingfisher Day Nursery
Nottinghamshire County Council,1111/1001,Children and Young People,CYP,Third Party Payments,EGA,02/09/2016,06-10283,"8,669.82",Lady Bay Pre School Playgroup
Nottinghamshire County Council,1111/1001,Children and Young People,CYP,Third Party Payments,EGA,02/09/2016,06-10284,"1,042.23",Fiona Lamb Childminding Service
Nottinghamshire County Council,1111/1001,Children and Young People,CYP,Third Party Payments,EGA,02/09/2016,06-10285,588,S J Lamb (Childminder)
Nottinghamshire County Council,1111/1001,Children and Young People,CYP,Third Party Payments,EGA,02/09/2016,06-10286,"8,470.14",Lambley Day Nursery Ltd
Nottinghamshire County Council,1111/1001,Children and Young People,CYP,Third Party Payments,EGA,02/09/2016,06-10287,"1,496.46",Luans Little Stars
Nottinghamshire County Council,1111/1001,Children and Young People,CYP,Third Party Payments,EGA,02/09/2016,06-10288,"6,477.99",PSLA Newstead Childcare (HO)
Nottinghamshire County Council,1111/1001,Children and Young People,CYP,Third Party Payments,EGA,02/09/2016,06-10289,"9,006.69",Leahurst Road Pre-School
Nottinghamshire County Council,1111/1001,Children and Young People,CYP,Third Party Payments,EGA,02/09/2016,06-10290,"14,601.78",Learning Ladder Childcare Ltd
Nottinghamshire County Council,1111/1001,Children and Young People,CYP,Third Party Payments,EGA,02/09/2016,06-10291,"28,947.24",Leos Childrens Nurseries Ltd
Nottinghamshire County Council,1111/1001,Children and Young People,CYP,Third Party Payments,EGA,02/09/2016,06-10292,"13,884.01",Leo's Childrens Nurseries Ltd
Nottinghamshire County Council,1111/1001,Children and Young People,CYP,Third Party Payments,EGA,02/09/2016,06-10293,748.23,Tracey Lever (Child-Minder)
Nottinghamshire County Council,1111/1001,Children and Young People,CYP,Third Party Payments,EGA,02/09/2016,06-10294,"9,316.37",North Leverton Pre-School Playgroup
Nottinghamshire County Council,1111/1001,Children and Young People,CYP,Third Party Payments,EGA,02/09/2016,06-10295,748.23,Little Acorns Childminding
Nottinghamshire County Council,1111/1001,Children and Young People,CYP,Third Party Payments,EGA,02/09/2016,06-10296,"10,862.20",Little Acorns Shireoaks
Nottinghamshire County Council,1111/1001,Children and Young People,CYP,Third Party Payments,EGA,02/09/2016,06-10297,"6,820.80",Little Friends Day Nursery
Nottinghamshire County Council,1111/1001,Children and Young People,CYP,Third Party Payments,EGA,02/09/2016,06-10298,"10,637.66",Little Kites Playgroup
Nottinghamshire County Council,1111/1001,Children and Young People,CYP,Third Party Payments,EGA,02/09/2016,06-10299,"30,201.31",Little Nippers Pre-School
Nottinghamshire County Council,1111/1001,Children and Young People,CYP,Third Party Payments,EGA,02/09/2016,06-10300,"26,756.47",Little Oaks Nursery
Nottinghamshire County Council,1111/1001,Children and Young People,CYP,Third Party Payments,EGA,02/09/2016,06-10301,"15,674.12",Longdale Nursery School
Nottinghamshire County Council,1111/1001,Children and Young People,CYP,Third Party Payments,EGA,02/09/2016,06-10302,"15,110.14",Lowater Street Playgroup
Nottinghamshire County Council,1111/1001,Children and Young People,CYP,Third Party Payments,EGA,02/09/2016,06-10303,"10,505.60",Lowdham & Epperstone Pre-School
Nottinghamshire County Council,1111/1001,Children and Young People,CYP,Third Party Payments,EGA,02/09/2016,06-10304,"13,767.43",Luan's Little People
Nottinghamshire County Council,1111/1001,Children and Young People,CYP,Third Party Payments,EGA,02/09/2016,06-10305,705.6,[Redacted]
Nottinghamshire County Council,1111/1001,Children and Young People,CYP,Third Party Payments,EGA,02/09/2016,06-10306,"2,832.69",Lyndsay's Childminding
Nottinghamshire County Council,1111/1001,Children and Young People,CYP,Third Party Payments,EGA,02/09/2016,06-10307,"7,738.21",Mapperley Day Nursery
Nottinghamshire County Council,1111/1001,Children and Young People,CYP,Third Party Payments,EGA,02/09/2016,06-10308,"1,101.03",[Redacted]
Nottinghamshire County Council,1111/1001,Children and Young People,CYP,Third Party Payments,EGA,02/09/2016,06-10309,"10,475.22",PSLA Newstead Childcare (HO)
Nottinghamshire County Council,1111/1001,Children and Young People,CYP,Third Party Payments,EGA,02/09/2016,06-10310,"16,529.66",Millfield Nursery School
Nottinghamshire County Council,1111/1001,Children and Young People,CYP,Third Party Payments,EGA,02/09/2016,06-10311,"6,977.11",Misson Pre-School
Nottinghamshire County Council,1111/1001,Children and Young People,CYP,Third Party Payments,EGA,02/09/2016,06-10312,"1,176.00",K L Moss (Childminder)
Nottinghamshire County Council,1111/1001,Children and Young People,CYP,Third Party Payments,EGA,02/09/2016,06-10324,"1,496.46",Tinas Childminding
Nottinghamshire County Council,1111/1001,Children and Young People,CYP,Third Party Payments,EGA,02/09/2016,06-10325,588,[Redacted]
Nottinghamshire County Council,1111/1001,Children and Young People,CYP,Third Party Payments,EGA,02/09/2016,06-10326,"9,556.18",Netherfield Pre School Ltd
Nottinghamshire County Council,1111/1001,Children and Young People,CYP,Third Party Payments,EGA,02/09/2016,06-10327,"15,167.26",PSLA Newstead Childcare (HO)
Nottinghamshire County Council,1111/1001,Children and Young People,CYP,Third Party Payments,EGA,02/09/2016,06-10328,"8,337.84",PSLA Newstead Childcare (HO)
Nottinghamshire County Council,1111/1001,Children and Young People,CYP,Third Party Payments,EGA,02/09/2016,06-10329,"4,607.67",North Muskham Playgroup
Nottinghamshire County Council,1111/1001,Children and Young People,CYP,Third Party Payments,EGA,02/09/2016,06-10330,"21,006.30",Nurseryworld & Friends Nursery & Pr
Nottinghamshire County Council,1111/1001,Children and Young People,CYP,Third Party Payments,EGA,02/09/2016,06-10331,"30,393.72",Oceans Day Nursery
Nottinghamshire County Council,1111/1001,Children and Young People,CYP,Third Party Payments,EGA,02/09/2016,06-10332,"28,034.86",The Orchard Day Nursery
Nottinghamshire County Council,1111/1001,Children and Young People,CYP,Third Party Payments,EGA,02/09/2016,06-10333,"5,840.80",Orchard School Nursery
Nottinghamshire County Council,1111/1001,Children and Young People,CYP,Third Party Payments,EGA,02/09/2016,06-10334,"19,260.92",Papermoon Day Nursery
Nottinghamshire County Council,1111/1001,Children and Young People,CYP,Third Party Payments,EGA,02/09/2016,06-10335,"35,403.48",Papermoon Day Nursery
Nottinghamshire County Council,1111/1001,Children and Young People,CYP,Third Party Payments,EGA,02/09/2016,06-10336,"23,213.29",Papermoon Day Nursery
Nottinghamshire County Council,1111/1001,Children and Young People,CYP,Third Party Payments,EGA,02/09/2016,06-10337,"48,460.02",Papermoon Day Nursery Sutton In Ash
Nottinghamshire County Council,1111/1001,Children and Young People,CYP,Third Party Payments,EGA,02/09/2016,06-10338,748.23,G Parnill T/A Imaginations Childmin
Nottinghamshire County Council,1111/1001,Children and Young People,CYP,Third Party Payments,EGA,02/09/2016,06-10339,"1,496.46",[Redacted]
Nottinghamshire County Council,1111/1001,Children and Young People,CYP,Third Party Payments,EGA,02/09/2016,06-10340,"4,312.00",Pea Pod Day Nursery Ltd
Nottinghamshire County Council,1111/1001,Children and Young People,CYP,Third Party Payments,EGA,02/09/2016,06-10341,"1,218.00",Happy Munchkin Childcare
Nottinghamshire County Council,1111/1001,Children and Young People,CYP,Third Party Payments,EGA,02/09/2016,06-10342,"13,083.98",Phoenix Park Nursery
Nottinghamshire County Council,1111/1001,Children and Young People,CYP,Third Party Payments,EGA,02/09/2016,06-10343,"7,604.80",Pippins Pre-School
Nottinghamshire County Council,1111/1001,Children and Young People,CYP,Third Party Payments,EGA,02/09/2016,06-10344,"7,707.84",Plumtree School
Nottinghamshire County Council,1111/1001,Children and Young People,CYP,Third Party Payments,EGA,02/09/2016,06-10345,"3,554.46",Happy Times
Nottinghamshire County Council,1111/1001,Children and Young People,CYP,Third Party Payments,EGA,02/09/2016,06-10346,"10,332.63",Portland Place Pre-School
Nottinghamshire County Council,1111/1001,Children and Young People,CYP,Third Party Payments,EGA,02/09/2016,06-10347,"6,019.65",Prebend Pre-School Playgroup
Nottinghamshire County Council,1111/1001,Children and Young People,CYP,Third Party Payments,EGA,02/09/2016,06-10348,"20,800.02",Puddleducks Pre-School
Nottinghamshire County Council,1111/1001,Children and Young People,CYP,Third Party Payments,EGA,02/09/2016,06-10349,"1,336.23",[Redacted]
Nottinghamshire County Council,1111/1001,Children and Young People,CYP,Third Party Payments,EGA,02/09/2016,06-10350,"15,791.97",Radcliffe On Trent Pre School Playg
Nottinghamshire County Council,1111/1001,Children and Young People,CYP,Third Party Payments,EGA,02/09/2016,06-10351,"7,882.14",Railway Children Playgroup
Nottinghamshire County Council,1111/1001,Children and Young People,CYP,Third Party Payments,EGA,02/09/2016,06-10352,"13,790.07",Rainbow Day Nursery
Nottinghamshire County Council,1111/1001,Children and Young People,CYP,Third Party Payments,EGA,02/09/2016,06-10353,"5,941.74",Ranskill Nursery
Nottinghamshire County Council,1111/1001,Children and Young People,CYP,Third Party Payments,EGA,02/09/2016,06-10354,"8,222.20",Ravenshead Pre-School Playgroup
Nottinghamshire County Council,1111/1001,Children and Young People,CYP,Third Party Payments,EGA,02/09/2016,06-10355,748.23,Kays Childminding
Nottinghamshire County Council,1111/1001,Children and Young People,CYP,Third Party Payments,EGA,02/09/2016,06-10356,"1,176.00",[Redacted]
Nottinghamshire County Council,1111/1001,Children and Young People,CYP,Third Party Payments,EGA,02/09/2016,06-10357,"41,971.44",The Rocking Horse Child Care Centre
Nottinghamshire County Council,1111/1001,Children and Young People,CYP,Third Party Payments,EGA,02/09/2016,06-10358,"18,719.70",Rocking Horse Nursery Butlers Hill
Nottinghamshire County Council,1111/1001,Children and Young People,CYP,Third Party Payments,EGA,02/09/2016,06-10359,588,[Redacted]
Nottinghamshire County Council,1111/1001,Children and Young People,CYP,Third Party Payments,EGA,02/09/2016,06-10360,748.23,M Ross Childminding Services
Nottinghamshire County Council,1111/1001,Children and Young People,CYP,Third Party Payments,EGA,02/09/2016,06-10361,"14,154.63",Ruddington Nursery & Pre-School
Nottinghamshire County Council,1111/1001,Children and Young People,CYP,Third Party Payments,EGA,02/09/2016,06-10362,"13,973.82",Rushcliffe Pre-School (Nottingham)
Nottinghamshire County Council,1111/1001,Children and Young People,CYP,Third Party Payments,EGA,02/09/2016,06-10363,"32,481.12",Safe Haven Day Nursery
Nottinghamshire County Council,1111/1001,Children and Young People,CYP,Third Party Payments,EGA,02/09/2016,06-10364,748.23,R Scothern (Childminder)
Nottinghamshire County Council,1111/1001,Children and Young People,CYP,Third Party Payments,EGA,02/09/2016,06-10365,"16,316.13",Scottswood Pdn Ltd
Nottinghamshire County Council,1111/1001,Children and Young People,CYP,Third Party Payments,EGA,02/09/2016,06-10366,"7,168.80",Scotts Wood Private Day Nursery
Nottinghamshire County Council,1111/1001,Children and Young People,CYP,Third Party Payments,EGA,02/09/2016,06-10367,"9,415.35",PSLA Newstead Childcare (HO)
Nottinghamshire County Council,1111/1001,Children and Young People,CYP,Third Party Payments,EGA,02/09/2016,06-10368,"21,406.63",Serendipity's Day Nursery
Nottinghamshire County Council,1111/1001,Children and Young People,CYP,Third Party Payments,EGA,02/09/2016,06-10369,"17,235.75",Serendipity's Day Nursery
Nottinghamshire County Council,1111/1001,Children and Young People,CYP,Third Party Payments,EGA,02/09/2016,06-10370,"14,837.20",Serendipity's Day Nursery
Nottinghamshire County Council,1111/1001,Children and Young People,CYP,Third Party Payments,EGA,02/09/2016,06-10371,"31,406.55",Serendipity's Day Nursery
Nottinghamshire County Council,1111/1001,Children and Young People,CYP,Third Party Payments,EGA,02/09/2016,06-10372,"3,756.00",Shaping Futures Day Nursery
Nottinghamshire County Council,1111/1001,Children and Young People,CYP,Third Party Payments,EGA,02/09/2016,06-10373,"43,663.41",Shaping Futures Day Nursery
Nottinghamshire County Council,1111/1001,Children and Young People,CYP,Third Party Payments,EGA,02/09/2016,06-10374,748.23,K Sharp (Childminding Service)
Nottinghamshire County Council,1111/1001,Children and Young People,CYP,Third Party Payments,EGA,02/09/2016,06-10375,"4,986.35",Saville House School
Nottinghamshire County Council,1111/1001,Children and Young People,CYP,Third Party Payments,EGA,02/09/2016,06-10376,748.23,Jelly Beans Childcare
Nottinghamshire County Council,1111/1001,Children and Young People,CYP,Third Party Payments,EGA,02/09/2016,06-10378,"2,084.46",Yew Tree Childcare
Nottinghamshire County Council,1111/1001,Children and Young People,CYP,Third Party Payments,EGA,02/09/2016,06-10379,"11,256.77",Smarties Private Day Nursery
Nottinghamshire County Council,1111/1001,Children and Young People,CYP,Third Party Payments,EGA,02/09/2016,06-10380,748.23,Joanne Smith Childminding Service
Nottinghamshire County Council,1111/1001,Children and Young People,CYP,Third Party Payments,EGA,02/09/2016,06-10381,"6,118.63",Southfields Pre-School
Nottinghamshire County Council,1111/1001,Children and Young People,CYP,Third Party Payments,EGA,02/09/2016,06-10382,"8,255.52",Sparkle Daycare
Nottinghamshire County Council,1111/1001,Children and Young People,CYP,Third Party Payments,EGA,02/09/2016,06-10383,588,[Redacted]
Nottinghamshire County Council,1111/1001,Children and Young People,CYP,Third Party Payments,EGA,02/09/2016,06-10384,"3,396.09",Speckled Frogs Pre-School
Nottinghamshire County Council,1111/1001,Children and Young People,CYP,Third Party Payments,EGA,02/09/2016,06-10385,"4,140.89",St Giles Pre-school
Nottinghamshire County Council,1111/1001,Children and Young People,CYP,Third Party Payments,EGA,02/09/2016,06-10386,"15,282.75",St Mary's Pre-School
Nottinghamshire County Council,1111/1001,Children and Young People,CYP,Third Party Payments,EGA,02/09/2016,06-10387,"19,011.61",Staunton Montessori Nursery School
Nottinghamshire County Council,1111/1001,Children and Young People,CYP,Third Party Payments,EGA,02/09/2016,06-10388,"1,176.00",[Redacted]
Nottinghamshire County Council,1111/1001,Children and Young People,CYP,Third Party Payments,EGA,02/09/2016,06-10389,983.43,Sunbeams Pre-School
Nottinghamshire County Council,1111/1001,Children and Young People,CYP,Third Party Payments,EGA,02/09/2016,06-10390,"4,312.00",Sutton Bonington Playgroup
Nottinghamshire County Council,1111/1001,Children and Young People,CYP,Third Party Payments,EGA,02/09/2016,06-10391,"1,372.00",[Redacted]
Nottinghamshire County Council,1111/1001,Children and Young People,CYP,Third Party Payments,EGA,02/09/2016,06-10392,"15,269.38",Wellin Lane Playgroup
Nottinghamshire County Council,1111/1001,Children and Young People,CYP,Third Party Payments,EGA,02/09/2016,06-10393,"10,394.37",The Enchanted Garden Day Nursery
Nottinghamshire County Council,1111/1001,Children and Young People,CYP,Third Party Payments,EGA,02/09/2016,06-10394,"18,032.00",Grosvenor House Day Nursery
Nottinghamshire County Council,1111/1001,Children and Young People,CYP,Third Party Payments,EGA,02/09/2016,06-10395,"37,246.86",The Learning Tree Nursery
Nottinghamshire County Council,1111/1001,Children and Young People,CYP,Third Party Payments,EGA,02/09/2016,06-10396,"23,361.24",The Learning Tree Day Nursery 2
Nottinghamshire County Council,1111/1001,Children and Young People,CYP,Third Party Payments,EGA,02/09/2016,06-10397,"15,174.81",The Lime Trees
Nottinghamshire County Council,1111/1001,Children and Young People,CYP,Third Party Payments,EGA,02/09/2016,06-10398,"7,376.03",The Lime Trees
Nottinghamshire County Council,1111/1001,Children and Young People,CYP,Third Party Payments,EGA,02/09/2016,06-10399,"12,864.46",The Lime Trees
Nottinghamshire County Council,1111/1001,Children and Young People,CYP,Third Party Payments,EGA,02/09/2016,06-10400,"17,449.32",The Secret Garden Private Day Nurse
Nottinghamshire County Council,1111/1001,Children and Young People,CYP,Third Party Payments,EGA,02/09/2016,06-10401,"4,906.86",The West Bridgford Day Nursery
Nottinghamshire County Council,1111/1001,Children and Young People,CYP,Third Party Payments,EGA,02/09/2016,06-10402,"8,349.60",Wolds Childcare Ltd
Nottinghamshire County Council,1111/1001,Children and Young People,CYP,Third Party Payments,EGA,02/09/2016,06-10403,"1,336.23",[Redacted]
Nottinghamshire County Council,1111/1001,Children and Young People,CYP,Third Party Payments,EGA,02/09/2016,06-10404,"5,561.86",Thrumpton Kids Clubs
Nottinghamshire County Council,1111/1001,Children and Young People,CYP,Third Party Payments,EGA,02/09/2016,06-10405,"12,133.38",Toddlers University (Bee)
Nottinghamshire County Council,1111/1001,Children and Young People,CYP,Third Party Payments,EGA,02/09/2016,06-10406,"5,096.00",Tollerton Playgroup
Nottinghamshire County Council,1111/1001,Children and Young People,CYP,Third Party Payments,EGA,02/09/2016,06-10407,"2,512.23",Toton Tots Pre-School
Nottinghamshire County Council,1111/1001,Children and Young People,CYP,Third Party Payments,EGA,02/09/2016,06-10408,"5,567.38",Townrow Tiny Tots Ltd
Nottinghamshire County Council,1111/1001,Children and Young People,CYP,Third Party Payments,EGA,02/09/2016,06-10409,"5,985.84",Townrow Tiny Tots Ltd
Nottinghamshire County Council,1111/1001,Children and Young People,CYP,Third Party Payments,EGA,02/09/2016,06-10410,"3,697.54",Townrow Tiny Tots Ltd
Nottinghamshire County Council,1111/1001,Children and Young People,CYP,Third Party Payments,EGA,02/09/2016,06-10411,"14,047.32",Treetops Nursery
Nottinghamshire County Council,1111/1001,Children and Young People,CYP,Third Party Payments,EGA,02/09/2016,06-10412,"26,526.15",Treetops Nursery (Clipstone)
Nottinghamshire County Council,1111/1001,Children and Young People,CYP,Third Party Payments,EGA,02/09/2016,06-10413,"29,283.87",Treetops Nurseries Ltd
Nottinghamshire County Council,1111/1001,Children and Young People,CYP,Third Party Payments,EGA,02/09/2016,06-10414,"7,585.20",Trowell Pre School
Nottinghamshire County Council,1111/1001,Children and Young People,CYP,Third Party Payments,EGA,02/09/2016,06-10415,748.23,[Redacted]
Nottinghamshire County Council,1111/1001,Children and Young People,CYP,Third Party Payments,EGA,02/09/2016,06-10416,"1,336.23",Kylees Childmining Services
Nottinghamshire County Council,1111/1001,Children and Young People,CYP,Third Party Payments,EGA,02/09/2016,06-10417,"8,317.26",Upton Crickets Day Nursery
Nottinghamshire County Council,1111/1001,Children and Young People,CYP,Third Party Payments,EGA,02/09/2016,06-10418,"2,940.00",Sharons Childminding
Nottinghamshire County Council,1111/1001,Children and Young People,CYP,Third Party Payments,EGA,02/09/2016,06-10419,"27,468.50",Village Day Nursery
Nottinghamshire County Council,1111/1001,Children and Young People,CYP,Third Party Payments,EGA,02/09/2016,06-10420,"11,201.10",Walesby School Playgroup
Nottinghamshire County Council,1111/1001,Children and Young People,CYP,Third Party Payments,EGA,02/09/2016,06-10421,"4,459.00",Watnall Pre-School Playgroup
Nottinghamshire County Council,1111/1001,Children and Young People,CYP,Third Party Payments,EGA,02/09/2016,06-10422,"15,561.26",Weaverthorpe Pre-School Playgroup
Nottinghamshire County Council,1111/1001,Children and Young People,CYP,Third Party Payments,EGA,02/09/2016,06-10423,"7,687.68",Wellow House School
Nottinghamshire County Council,1111/1001,Children and Young People,CYP,Third Party Payments,EGA,02/09/2016,06-10424,"19,563.81",Westbourne House Nursery School
Nottinghamshire County Council,1111/1001,Children and Young People,CYP,Third Party Payments,EGA,02/09/2016,06-10425,"26,980.58",Westdale Pre-School
Nottinghamshire County Council,1111/1001,Children and Young People,CYP,Third Party Payments,EGA,02/09/2016,06-10426,"18,313.26",Whitehouse Day Nursery
Nottinghamshire County Council,1111/1001,Children and Young People,CYP,Third Party Payments,EGA,02/09/2016,06-10427,588,[Redacted]
Nottinghamshire County Council,1111/1001,Children and Young People,CYP,Third Party Payments,EGA,02/09/2016,06-10428,698.35,[Redacted]
Nottinghamshire County Council,1111/1001,Children and Young People,CYP,Third Party Payments,EGA,02/09/2016,06-10429,"4,547.20",Willoughby On The Wolds Playgroup
Nottinghamshire County Council,1111/1001,Children and Young People,CYP,Third Party Payments,EGA,02/09/2016,06-10430,"5,226.05",Willow Brook Pre-School
Nottinghamshire County Council,1111/1001,Children and Young People,CYP,Third Party Payments,EGA,02/09/2016,06-10431,"14,908.45",Willow Pre-School Playgroup
Nottinghamshire County Council,1111/1001,Children and Young People,CYP,Third Party Payments,EGA,02/09/2016,06-10432,"10,762.04",Wishing Well Day Nursery
Nottinghamshire County Council,1111/1001,Children and Young People,CYP,Third Party Payments,EGA,02/09/2016,06-10433,"3,260.46",Wolds Day Nursery @ Stragglethorpe
Nottinghamshire County Council,1111/1001,Children and Young People,CYP,Third Party Payments,EGA,02/09/2016,06-10434,"9,438.46",Wollaton Village Day Nurseries
Nottinghamshire County Council,1111/1001,Children and Young People,CYP,Third Party Payments,EGA,02/09/2016,06-10435,"31,016.02",Woodthorpe Day Nursery Ltd
Nottinghamshire County Council,1111/1001,Children and Young People,CYP,Third Party Payments,EGA,02/09/2016,06-10436,"12,078.99",Zoe's Childcare Ltd
Nottinghamshire County Council,1111/1001,Children and Young People,CYP,Third Party Payments,EGA,02/09/2016,06-10437,"11,971.68",Zoes Childcare Ltd
Nottinghamshire County Council,1111/1001,Children and Young People,CYP,Third Party Payments,EGA,02/09/2016,06-16016,"3,538.34",Fosterplus Ltd
Nottinghamshire County Council,1111/1001,Children and Young People,CYP,Third Party Payments,EGA,05/09/2016,06-16050,"15,500.00",Compass Children's Homes Ltd
Nottinghamshire County Council,1111/1001,Children and Young People,CYP,Third Party Payments,EGA,05/09/2016,06-16051,"9,000.00",Compass Children's Homes Ltd
Nottinghamshire County Council,1111/1001,Children and Young People,CYP,Third Party Payments,EGA,06/09/2016,06-13491,"21,046.52",Hazel Hurst School
Nottinghamshire County Council,1111/1001,Children and Young People,CYP,Third Party Payments,EGA,06/09/2016,06-13505,"6,681.15",Quinton Day Nurseries T/A Honey Bee
Nottinghamshire County Council,1111/1001,Children and Young People,CYP,Third Party Payments,EGA,06/09/2016,06-13608,686,Bingham Robert Miles Extended Care
Nottinghamshire County Council,1111/1001,Children and Young People,CYP,Third Party Payments,EGA,06/09/2016,06-13609,686,Bingham Robert Miles Extended Care
Nottinghamshire County Council,1111/1001,Children and Young People,CYP,Third Party Payments,EGA,06/09/2016,06-13610,823.2,Little Kites Playgroup
Nottinghamshire County Council,1111/1001,Children and Young People,CYP,Third Party Payments,EGA,06/09/2016,06-13611,"1,117.90",Papermoon Day Nursery Sutton In Ash
Nottinghamshire County Council,1111/1001,Children and Young People,CYP,Third Party Payments,EGA,06/09/2016,06-13612,"1,131.90",Busy Bees (Daybrook)
Nottinghamshire County Council,1111/1001,Children and Young People,CYP,Third Party Payments,EGA,06/09/2016,06-13613,"1,001.70",JPAC Ltd
Nottinghamshire County Council,1111/1001,Children and Young People,CYP,Third Party Payments,EGA,06/09/2016,06-13614,803.6,JPAC Ltd
Nottinghamshire County Council,1111/1001,Children and Young People,CYP,Third Party Payments,EGA,06/09/2016,06-13615,514.5,The Learning Tree Day Nursery 2
Nottinghamshire County Council,1111/1001,Children and Young People,CYP,Third Party Payments,EGA,06/09/2016,06-13616,"1,004.50",Wollaton Village Day Nurseries Ltd.
Nottinghamshire County Council,1111/1001,Children and Young People,CYP,Third Party Payments,EGA,06/09/2016,06-13617,597.8,JPAC Ltd
Nottinghamshire County Council,1111/1001,Children and Young People,CYP,Third Party Payments,EGA,06/09/2016,06-13618,"1,078.00",Papermoon Day Nursery
Nottinghamshire County Council,1111/1001,Children and Young People,CYP,Third Party Payments,EGA,06/09/2016,06-16069,"903,407.67",Nottinghamshire Healthcare Nhs F Tr
Nottinghamshire County Council,1111/1001,Children and Young People,CYP,Third Party Payments,EGA,06/09/2016,06-16071,"34,618.42","Culture, Learning & Libraries (Midl"
Nottinghamshire County Council,1111/1001,Children and Young People,CYP,Third Party Payments,EGA,06/09/2016,06-16074,"1,320.00",Nottinghamshire YMCA (HO)
Nottinghamshire County Council,1111/1001,Children and Young People,CYP,Third Party Payments,EGA,06/09/2016,06-16077,"12,747.82",Regional Foster Placements Ltd
Nottinghamshire County Council,1111/1001,Children and Young People,CYP,Third Party Payments,EGA,06/09/2016,06-16078,"12,336.60",Regional Foster Placements Ltd
Nottinghamshire County Council,1111/1001,Children and Young People,CYP,Third Party Payments,EGA,08/09/2016,06-16106,"10,318.35",Jani Homes Ltd
Nottinghamshire County Council,1111/1001,Children and Young People,CYP,Third Party Payments,EGA,08/09/2016,06-16113,"2,956.20",Hornes Construction Ltd-In Liquidat
Nottinghamshire County Council,1111/1001,Children and Young People,CYP,Third Party Payments,EGA,08/09/2016,06-16129,"35,228.18",Jay Fostering
Nottinghamshire County Council,1111/1001,Children and Young People,CYP,Third Party Payments,EGA,09/09/2016,06-16143,"4,212.00",Symbol Family Support Services Ltd
Nottinghamshire County Council,1111/1001,Children and Young People,CYP,Third Party Payments,EGA,09/09/2016,06-16144,"3,538.34",Fosterplus Ltd
Nottinghamshire County Council,1111/1001,Children and Young People,CYP,Third Party Payments,EGA,09/09/2016,06-16151,"18,378.75",Hope Fostering Services Ltd
Nottinghamshire County Council,1111/1001,Children and Young People,CYP,Third Party Payments,EGA,09/09/2016,06-16169,"42,965.26",Fostering Solutions Ltd
Nottinghamshire County Council,1111/1001,Children and Young People,CYP,Third Party Payments,EGA,09/09/2016,06-16171,858,Leen Mills Pre School Playgroup
Nottinghamshire County Council,1111/1001,Children and Young People,CYP,Third Party Payments,EGA,09/09/2016,06-16172,612.5,Cherubs Childrens Centre Wynndale
Nottinghamshire County Council,1111/1001,Children and Young People,CYP,Third Party Payments,EGA,09/09/2016,06-16182,"3,321.43",Hope Fostering Services Ltd
Nottinghamshire County Council,1111/1001,Children and Young People,CYP,Third Party Payments,EGA,12/09/2016,06-16239,"3,999.00",Scope
Nottinghamshire County Council,1111/1001,Children and Young People,CYP,Third Party Payments,EGA,12/09/2016,06-16261,"117,300.00",Esland North Ltd
Nottinghamshire County Council,1111/1001,Children and Young People,CYP,Third Party Payments,EGA,13/09/2016,06-16214,"19,083.60",Independent Childcare Gr
Nottinghamshire County Council,1111/1001,Children and Young People,CYP,Third Party Payments,EGA,13/09/2016,06-16215,"18,600.00",Independent Childcare Gr
Nottinghamshire County Council,1111/1001,Children and Young People,CYP,Third Party Payments,EGA,13/09/2016,06-16272,585,Safe Haven Day Nursery
Nottinghamshire County Council,1111/1001,Children and Young People,CYP,Third Party Payments,EGA,13/09/2016,06-16289,"1,416.00",A Place To Call Our Own Ltd
Nottinghamshire County Council,1111/1001,Children and Young People,CYP,Third Party Payments,EGA,13/09/2016,06-16292,"1,080.00",A Place To Call Our Own Ltd
Nottinghamshire County Council,1111/1001,Children and Young People,CYP,Third Party Payments,EGA,14/09/2016,06-16075,"1,492.81",Jani Homes CIC
Nottinghamshire County Council,1111/1001,Children and Young People,CYP,Third Party Payments,EGA,14/09/2016,06-16303,"46,785.31",By The Bridge Ltd
Nottinghamshire County Council,1111/1001,Children and Young People,CYP,Third Party Payments,EGA,14/09/2016,06-16313,"2,788.00",[Redacted]
Nottinghamshire County Council,1111/1001,Children and Young People,CYP,Third Party Payments,EGA,14/09/2016,06-16317,"3,210.67",Compass Fostering Central Ltd
Nottinghamshire County Council,1111/1001,Children and Young People,CYP,Third Party Payments,EGA,14/09/2016,06-16318,"3,210.67",Compass Fostering Central Ltd
Nottinghamshire County Council,1111/1001,Children and Young People,CYP,Third Party Payments,EGA,14/09/2016,06-16329,"19,760.41",Compass Fostering Central Ltd
Nottinghamshire County Council,1111/1001,Children and Young People,CYP,Third Party Payments,EGA,15/09/2016,06-10239,588,Anneline Cowdrey Childminding Servi
Nottinghamshire County Council,1111/1001,Children and Young People,CYP,Third Party Payments,EGA,15/09/2016,06-16325,"38,250.00",Framework Housing Association
Nottinghamshire County Council,1111/1001,Children and Young People,CYP,Third Party Payments,EGA,15/09/2016,06-16331,"46,785.31",By The Bridge Ltd
Nottinghamshire County Council,1111/1001,Children and Young People,CYP,Third Party Payments,EGA,15/09/2016,06-16336,"6,051.47",Acorn Fostering Services Ltd
Nottinghamshire County Council,1111/1001,Children and Young People,CYP,Third Party Payments,EGA,15/09/2016,06-16341,"16,500.00",Home Group Limited
Nottinghamshire County Council,1111/1001,Children and Young People,CYP,Third Party Payments,EGA,15/09/2016,06-16342,"68,083.33",Framework Housing Association
Nottinghamshire County Council,1111/1001,Children and Young People,CYP,Third Party Payments,EGA,15/09/2016,06-16343,"3,210.67",Compass Fostering Central Ltd
Nottinghamshire County Council,1111/1001,Children and Young People,CYP,Third Party Payments,EGA,15/09/2016,06-16359,"1,416.00",Carers Trust East Midlands
Nottinghamshire County Council,1111/1001,Children and Young People,CYP,Third Party Payments,EGA,15/09/2016,06-16369,693,Longdale Nursery School
Nottinghamshire County Council,1111/1001,Children and Young People,CYP,Third Party Payments,EGA,15/09/2016,06-16370,693,Longdale Nursery School
Nottinghamshire County Council,1111/1001,Children and Young People,CYP,Third Party Payments,EGA,15/09/2016,06-16376,"1,633.00",The Appropriate Adult Service Ltd
Nottinghamshire County Council,1111/1001,Children and Young People,CYP,Third Party Payments,EGA,15/09/2016,06-16377,"1,038.38",The Appropriate Adult Service Ltd
Nottinghamshire County Council,1111/1001,Children and Young People,CYP,Third Party Payments,EGA,16/09/2016,06-10377,"3,741.15",Sunnydale Nursery Ltd
Nottinghamshire County Council,1111/1001,Children and Young People,CYP,Third Party Payments,EGA,16/09/2016,06-16361,"3,995.00",Crystal Care Solutions Ltd
Nottinghamshire County Council,1111/1001,Children and Young People,CYP,Third Party Payments,EGA,16/09/2016,06-16362,"3,321.43",Crystal Care Solutions Ltd
Nottinghamshire County Council,1111/1001,Children and Young People,CYP,Third Party Payments,EGA,16/09/2016,06-16363,"3,995.00",Crystal Care Solutions Ltd
Nottinghamshire County Council,1111/1001,Children and Young People,CYP,Third Party Payments,EGA,16/09/2016,06-16364,"3,995.00",Crystal Care Solutions Ltd
Nottinghamshire County Council,1111/1001,Children and Young People,CYP,Third Party Payments,EGA,16/09/2016,06-16367,"15,980.00",Crystal Care Solutions Ltd
Nottinghamshire County Council,1111/1001,Children and Young People,CYP,Third Party Payments,EGA,16/09/2016,06-16383,"2,882.50",PSLA Newstead Childcare (HO)
Nottinghamshire County Council,1111/1001,Children and Young People,CYP,Third Party Payments,EGA,16/09/2016,06-16387,"35,247.00",Fusion Fostering
Nottinghamshire County Council,1111/1001,Children and Young People,CYP,Third Party Payments,EGA,16/09/2016,06-16388,672,Carers Trust East Midlands
Nottinghamshire County Council,1111/1001,Children and Young People,CYP,Third Party Payments,EGA,16/09/2016,06-16392,"26,599.45",Teen Support Services Ltd
Nottinghamshire County Council,1111/1001,Children and Young People,CYP,Third Party Payments,EGA,16/09/2016,06-16393,"1,852.00",Spectrum Wasp
Nottinghamshire County Council,1111/1001,Children and Young People,CYP,Third Party Payments,EGA,16/09/2016,06-16394,"6,820.00",Fostering People Ltd
Nottinghamshire County Council,1111/1001,Children and Young People,CYP,Third Party Payments,EGA,19/09/2016,06-14543,"12,502.35",Rainbows Day Nursery
Nottinghamshire County Council,1111/1001,Children and Young People,CYP,Third Party Payments,EGA,19/09/2016,06-14634,"4,008.69",[Redacted]
Nottinghamshire County Council,1111/1001,Children and Young People,CYP,Third Party Payments,EGA,19/09/2016,06-14635,588,[Redacted]
Nottinghamshire County Council,1111/1001,Children and Young People,CYP,Third Party Payments,EGA,19/09/2016,06-14636,"25,486.86",Arnold House Day Nursery
Nottinghamshire County Council,1111/1001,Children and Young People,CYP,Third Party Payments,EGA,19/09/2016,06-14637,"1,336.23",[Redacted]
Nottinghamshire County Council,1111/1001,Children and Young People,CYP,Third Party Payments,EGA,19/09/2016,06-14638,"1,336.23",[Redacted]
Nottinghamshire County Council,1111/1001,Children and Young People,CYP,Third Party Payments,EGA,19/09/2016,06-14639,"1,019.20",[Redacted]
Nottinghamshire County Council,1111/1001,Children and Young People,CYP,Third Party Payments,EGA,19/09/2016,06-14640,"1,253.91",K Burns Childminder
Nottinghamshire County Council,1111/1001,Children and Young People,CYP,Third Party Payments,EGA,19/09/2016,06-14641,"29,310.33",Carlton & Gedling Day Nursery
Nottinghamshire County Council,1111/1001,Children and Young People,CYP,Third Party Payments,EGA,19/09/2016,06-14642,748.23,S Cave (Childminding Service)
Nottinghamshire County Council,1111/1001,Children and Young People,CYP,Third Party Payments,EGA,19/09/2016,06-14643,748.23,P J Clayton (Childminder)
Nottinghamshire County Council,1111/1001,Children and Young People,CYP,Third Party Payments,EGA,19/09/2016,06-14644,748.23,Appletree House Childminding
Nottinghamshire County Council,1111/1001,Children and Young People,CYP,Third Party Payments,EGA,19/09/2016,06-14645,582.12,[Redacted]
Nottinghamshire County Council,1111/1001,Children and Young People,CYP,Third Party Payments,EGA,19/09/2016,06-14646,"3,848.46",Mini-me Childcare
Nottinghamshire County Council,1111/1001,Children and Young People,CYP,Third Party Payments,EGA,19/09/2016,06-14647,"3,025.26",Creative Hands Childcare
Nottinghamshire County Council,1111/1001,Children and Young People,CYP,Third Party Payments,EGA,19/09/2016,06-14648,588,[Redacted]
Nottinghamshire County Council,1111/1001,Children and Young People,CYP,Third Party Payments,EGA,19/09/2016,06-14649,"3,688.23",[Redacted]
Nottinghamshire County Council,1111/1001,Children and Young People,CYP,Third Party Payments,EGA,19/09/2016,06-14650,"1,496.46",[Redacted]
Nottinghamshire County Council,1111/1001,Children and Young People,CYP,Third Party Payments,EGA,19/09/2016,06-14651,748.23,R Durr Rose Lodge Childminding
Nottinghamshire County Council,1111/1001,Children and Young People,CYP,Third Party Payments,EGA,19/09/2016,06-14652,"1,336.23",Explorers Childcare
Nottinghamshire County Council,1111/1001,Children and Young People,CYP,Third Party Payments,EGA,19/09/2016,06-14653,748.23,"Sue Smith, Happy Kids Childminding"
Nottinghamshire County Council,1111/1001,Children and Young People,CYP,Third Party Payments,EGA,19/09/2016,06-14654,"16,879.03",Highfields School & Nursery
Nottinghamshire County Council,1111/1001,Children and Young People,CYP,Third Party Payments,EGA,19/09/2016,06-14655,"12,781.75",Hollies Day Nurseries
Nottinghamshire County Council,1111/1001,Children and Young People,CYP,Third Party Payments,EGA,19/09/2016,06-14656,"20,298.25",Hollies Day Nurseries Limited
Nottinghamshire County Council,1111/1001,Children and Young People,CYP,Third Party Payments,EGA,19/09/2016,06-14657,748.23,Jeanette Hooper Childminding Servic
Nottinghamshire County Council,1111/1001,Children and Young People,CYP,Third Party Payments,EGA,19/09/2016,06-14658,588,R Hudson (Childminding Service)
Nottinghamshire County Council,1111/1001,Children and Young People,CYP,Third Party Payments,EGA,19/09/2016,06-14659,"1,496.46",[Redacted]
Nottinghamshire County Council,1111/1001,Children and Young People,CYP,Third Party Payments,EGA,19/09/2016,06-14660,748.23,[Redacted]
Nottinghamshire County Council,1111/1001,Children and Young People,CYP,Third Party Payments,EGA,19/09/2016,06-14661,"1,496.46",[Redacted]
Nottinghamshire County Council,1111/1001,Children and Young People,CYP,Third Party Payments,EGA,19/09/2016,06-14662,"1,496.46",Lisa's Little Angels
Nottinghamshire County Council,1111/1001,Children and Young People,CYP,Third Party Payments,EGA,19/09/2016,06-14663,748.23,[Redacted]
Nottinghamshire County Council,1111/1001,Children and Young People,CYP,Third Party Payments,EGA,19/09/2016,06-14664,698.35,Sweet Pea's Childminding
Nottinghamshire County Council,1111/1001,Children and Young People,CYP,Third Party Payments,EGA,19/09/2016,06-14665,588,[Redacted]
Nottinghamshire County Council,1111/1001,Children and Young People,CYP,Third Party Payments,EGA,19/09/2016,06-14666,"2,450.00",Catherine Sansone
Nottinghamshire County Council,1111/1001,Children and Young People,CYP,Third Party Payments,EGA,19/09/2016,06-14667,"13,867.98",Stapleford Day Nursery
Nottinghamshire County Council,1111/1001,Children and Young People,CYP,Third Party Payments,EGA,19/09/2016,06-14668,588,Belvoir House Childminding
Nottinghamshire County Council,1111/1001,Children and Young People,CYP,Third Party Payments,EGA,19/09/2016,06-14669,748.23,[Redacted]
Nottinghamshire County Council,1111/1001,Children and Young People,CYP,Third Party Payments,EGA,19/09/2016,06-14670,"2,002.14",[Redacted]
Nottinghamshire County Council,1111/1001,Children and Young People,CYP,Third Party Payments,EGA,19/09/2016,06-14671,748.23,[Redacted]
Nottinghamshire County Council,1111/1001,Children and Young People,CYP,Third Party Payments,EGA,19/09/2016,06-14672,"8,872.92",Tiny Teddies Day Nursery
Nottinghamshire County Council,1111/1001,Children and Young People,CYP,Third Party Payments,EGA,19/09/2016,06-14673,"3,688.23",Tiny Teddies @ Roko
Nottinghamshire County Council,1111/1001,Children and Young People,CYP,Third Party Payments,EGA,19/09/2016,06-14674,"36,744.12",Tiny World Mansfield
Nottinghamshire County Council,1111/1001,Children and Young People,CYP,Third Party Payments,EGA,19/09/2016,06-14675,"33,693.87",Wollaton Village Day Nurseries Ltd.
Nottinghamshire County Council,1111/1001,Children and Young People,CYP,Third Party Payments,EGA,19/09/2016,06-16410,"5,929.99",Parallel Parents
Nottinghamshire County Council,1111/1001,Children and Young People,CYP,Third Party Payments,EGA,19/09/2016,06-16411,"3,715.66",Parallel Parents
Nottinghamshire County Council,1111/1001,Children and Young People,CYP,Third Party Payments,EGA,19/09/2016,06-16412,"3,152.70",Parallel Parents
Nottinghamshire County Council,1111/1001,Children and Young People,CYP,Third Party Payments,EGA,19/09/2016,06-16413,"3,503.00",Parallel Parents
Nottinghamshire County Council,1111/1001,Children and Young People,CYP,Third Party Payments,EGA,19/09/2016,06-16416,"3,410.00",Fostering People Ltd
Nottinghamshire County Council,1111/1001,Children and Young People,CYP,Third Party Payments,EGA,19/09/2016,06-16417,"9,642.86",Hexagon Care Services Ltd
Nottinghamshire County Council,1111/1001,Children and Young People,CYP,Third Party Payments,EGA,19/09/2016,06-16422,"20,660.88",Anglia Fostering Agency Ltd
Nottinghamshire County Council,1111/1001,Children and Young People,CYP,Third Party Payments,EGA,20/09/2016,06-16460,"1,021.76",Prestige Nursing
Nottinghamshire County Council,1111/1001,Children and Young People,CYP,Third Party Payments,EGA,21/09/2016,06-16424,"2,967.00",Scope
Nottinghamshire County Council,1111/1001,Children and Young People,CYP,Third Party Payments,EGA,21/09/2016,06-16451,"12,747.82",Regional Foster Placements Ltd
Nottinghamshire County Council,1111/1001,Children and Young People,CYP,Third Party Payments,EGA,21/09/2016,06-16452,"23,609.58",Jani Homes Ltd
Nottinghamshire County Council,1111/1001,Children and Young People,CYP,Third Party Payments,EGA,21/09/2016,06-16461,"5,040.00",Hampshire County Council
Nottinghamshire County Council,1111/1001,Children and Young People,CYP,Third Party Payments,EGA,21/09/2016,06-16481,"1,065.00",Cotgrave Kids Club
Nottinghamshire County Council,1111/1001,Children and Young People,CYP,Third Party Payments,EGA,22/09/2016,06-16426,"3,158.75",Nyas
Nottinghamshire County Council,1111/1001,Children and Young People,CYP,Third Party Payments,EGA,22/09/2016,06-16508,"14,464.28",Stanfield Care Services Ltd
Nottinghamshire County Council,1111/1001,Children and Young People,CYP,Third Party Payments,EGA,22/09/2016,06-16509,"5,207.14",Stanfield Care Services Ltd
Nottinghamshire County Council,1111/1001,Children and Young People,CYP,Third Party Payments,EGA,22/09/2016,06-16516,706.52,[Redacted]
Nottinghamshire County Council,1111/1001,Children and Young People,CYP,Third Party Payments,EGA,22/09/2016,06-16517,"1,585.60",[Redacted]
Nottinghamshire County Council,1111/1001,Children and Young People,CYP,Third Party Payments,EGA,30/09/2016,06-16095,963.15,Sir Edmund Hillary Primary School
Nottinghamshire County Council,1111/1001,Children and Young People,CYP,Third Party Payments,EGA,30/09/2016,06-16297,751.44,Prestige Nursing
Nottinghamshire County Council,1111/1001,Children and Young People,CYP,Third Party Payments,EGA,30/09/2016,06-16316,"2,319.73",Care Today
Nottinghamshire County Council,1111/1001,Children and Young People,CYP,Third Party Payments,EGA,30/09/2016,06-16344,"11,851.92",Care Today
Nottinghamshire County Council,1111/1001,Children and Young People,CYP,Third Party Payments,EGA,30/09/2016,06-16459,"6,775.67",Banya Family Placement Agency Ltd
Nottinghamshire County Council,1111/1001,Children and Young People,CYP,Third Party Payments,EGA,30/09/2016,06-16496,"10,285.80",Chrysalis Consortium Ltd
Nottinghamshire County Council,1111/1001,Children and Young People,CYP,Transfer Payments,GAA,12/09/2016,06-16107,528,[Redacted]
Nottinghamshire County Council,1111/1001,Children and Young People,CYP,Transfer Payments,GAA,12/09/2016,06-16145,528,[Redacted]
Nottinghamshire County Council,1111/1001,Children and Young People,CYP,Transfer Payments,GAA,12/09/2016,06-16146,528,[Redacted]
Nottinghamshire County Council,1111/1001,Children and Young People,CYP,Transfer Payments,GAA,14/09/2016,06-16298,528,[Redacted]
Nottinghamshire County Council,1111/1001,Children and Young People,CYP,Transfer Payments,GAA,20/09/2016,06-14822,870,J & A Property Manangement Ltd
Nottinghamshire County Council,1111/1001,Children and Young People,CYP,Transfer Payments,GAA,20/09/2016,06-16457,660,[Redacted]
Nottinghamshire County Council,1111/1001,Children and Young People,CYP,Transfer Payments,GAA,28/09/2016,06-16510,660,[Redacted]
Nottinghamshire County Council,1111/1001,Children and Young People,CYP,Support Services,HAA,08/09/2016,06-13803,678.72,Shelleys Taxis Ltd
Nottinghamshire County Council,1111/1001,Children and Young People,CYP,Support Services,HAA,08/09/2016,06-13825,"2,627.01",Nottingham Minibuses & Coaches
Nottinghamshire County Council,1111/1001,Children and Young People,CYP,Support Services,HAA,08/09/2016,06-13829,"1,512.85",Travel Wright Ltd
Nottinghamshire County Council,1111/1001,Children and Young People,CYP,Support Services,HAA,09/09/2016,06-13861,"2,699.42",Stagecoach Services Ltd
Nottinghamshire County Council,1111/1001,Children and Young People,CYP,Support Services,HAA,09/09/2016,06-13866,"4,142.95",Stagecoach Services Ltd
Nottinghamshire County Council,1111/1001,Children and Young People,CYP,Support Services,HAA,09/09/2016,06-13875,"5,731.05",Stagecoach Services Ltd
Nottinghamshire County Council,1111/1001,Children and Young People,CYP,Support Services,HAA,09/09/2016,06-13887,"4,597.90",Stagecoach Services Ltd
Nottinghamshire County Council,1111/1001,Children and Young People,CYP,Support Services,HAA,13/09/2016,06-14423,"1,967.16",Marshalls Of Sutton On Trent Ltd
Nottinghamshire County Council,1111/1001,Children and Young People,CYP,Support Services,HAA,20/09/2016,06-14683,879.93,Nottingham Minibuses & Coaches
Nottinghamshire County Council,1111/1001,Children and Young People,CYP,Support Services,HAA,23/09/2016,06-15676,782.16,Nottingham Minibuses & Coaches
Nottinghamshire County Council,1111/1001,Children and Young People,CYP,Support Services,HAA,23/09/2016,06-15677,"7,200.00",Freeway Coaches Ltd
Nottinghamshire County Council,1111/1001,Children and Young People,CYP,Support Services,HAA,23/09/2016,06-15678,"1,023.66",Bassetlaw Action Centre
Nottinghamshire County Council,1111/1001,Children and Young People,CYP,Support Services,HAA,23/09/2016,06-15679,594.66,Bassetlaw Action Centre
Nottinghamshire County Council,1111/1001,Children and Young People,CYP,Support Services,HAA,23/09/2016,06-15680,"1,300.86",Bassetlaw Action Centre
Nottinghamshire County Council,1111/1001,Adult Social Care and Health,ASCH,Premises Related,BAA,02/09/2016,06-10069,565,Intex Building & Maintenance
Nottinghamshire County Council,1111/1001,Adult Social Care and Health,ASCH,Premises Related,BAA,06/09/2016,06-13503,512.5,Harveys Home & Garden Maintenance
Nottinghamshire County Council,1111/1001,Adult Social Care and Health,ASCH,Premises Related,BAA,06/09/2016,06-13504,588.5,MGC Electrical
Nottinghamshire County Council,1111/1001,Adult Social Care and Health,ASCH,Premises Related,BAA,07/09/2016,06-13758,"1,414.07",ARC Property Services Partnership L
Nottinghamshire County Council,1111/1001,Adult Social Care and Health,ASCH,Premises Related,BAA,09/09/2016,06-13939,"3,204.19",ARC Property Services Partnership L
Nottinghamshire County Council,1111/1001,Adult Social Care and Health,ASCH,Premises Related,BAA,12/09/2016,06-13944,512,Alan Unwin Horticultural Services
Nottinghamshire County Council,1111/1001,Adult Social Care and Health,ASCH,Premises Related,BAA,12/09/2016,06-13945,563,Sues Maintenance Services Ltd
Nottinghamshire County Council,1111/1001,Adult Social Care and Health,ASCH,Premises Related,BAA,12/09/2016,06-13946,594,Sues Maintenance Services Ltd
Nottinghamshire County Council,1111/1001,Adult Social Care and Health,ASCH,Premises Related,BAA,13/09/2016,06-14412,593.5,Sues Maintenance Services Ltd
Nottinghamshire County Council,1111/1001,Adult Social Care and Health,ASCH,Premises Related,BAA,13/09/2016,06-14414,578.5,Ball & Sons Ltd
Nottinghamshire County Council,1111/1001,Adult Social Care and Health,ASCH,Premises Related,BAA,14/09/2016,06-14448,685,Pgs Joinery Services Ltd
Nottinghamshire County Council,1111/1001,Adult Social Care and Health,ASCH,Premises Related,BAA,16/09/2016,06-14532,"3,640.83",ARC Property Services Partnership L
Nottinghamshire County Council,1111/1001,Adult Social Care and Health,ASCH,Premises Related,BAA,20/09/2016,06-14677,750,Cw Plumbing Heating & Gas Services
Nottinghamshire County Council,1111/1001,Adult Social Care and Health,ASCH,Premises Related,BAA,20/09/2016,06-14678,883.5,Elf Property Care
Nottinghamshire County Council,1111/1001,Adult Social Care and Health,ASCH,Premises Related,BAA,22/09/2016,06-15630,"1,596.09",ARC Property Services Partnership L
Nottinghamshire County Council,1111/1001,Adult Social Care and Health,ASCH,Premises Related,BCA,13/09/2016,06-16271,"1,221.17",Hargreaves (UK) Services Ltd - Mine
Nottinghamshire County Council,1111/1001,Adult Social Care and Health,ASCH,Premises Related,BDA,30/09/2016,06-16242,660,Our Ladys Eastwood Rc Parish
Nottinghamshire County Council,1111/1001,Adult Social Care and Health,ASCH,Premises Related,BGA,02/09/2016,06-16004,"1,540.39",Dawson Rentals Portable Cold Storag
Nottinghamshire County Council,1111/1001,Adult Social Care and Health,ASCH,Premises Related,BGA,02/09/2016,06-16013,"1,540.39",Dawson Rentals Portable Cold Storag
Nottinghamshire County Council,1111/1001,Adult Social Care and Health,ASCH,Premises Related,BJA,05/09/2016,06-16007,583.7,Gedling Borough Council
Nottinghamshire County Council,1111/1001,Adult Social Care and Health,ASCH,Premises Related,BJA,19/09/2016,06-16425,569.73,Wilson Electrics Ltd
Nottinghamshire County Council,1111/1001,Adult Social Care and Health,ASCH,Transport Related,CAA,09/09/2016,06-16170,513,Mexa Thermal
Nottinghamshire County Council,1111/1001,Adult Social Care and Health,ASCH,Transport Related,CBA,08/09/2016,06-13770,"2,197.00",Johnson Bros Tours Ltd
Nottinghamshire County Council,1111/1001,Adult Social Care and Health,ASCH,Transport Related,CBA,08/09/2016,06-13791,575.95,Ja Travel Ltd
Nottinghamshire County Council,1111/1001,Adult Social Care and Health,ASCH,Transport Related,CBA,08/09/2016,06-13809,"1,694.70",Vallances Coaches
Nottinghamshire County Council,1111/1001,Adult Social Care and Health,ASCH,Transport Related,CBA,13/09/2016,06-14426,"1,428.00",Aj Travel
Nottinghamshire County Council,1111/1001,Adult Social Care and Health,ASCH,Transport Related,CBA,13/09/2016,06-14428,"1,500.00",Community Transport for Town & Coun
Nottinghamshire County Council,1111/1001,Adult Social Care and Health,ASCH,Transport Related,CBA,13/09/2016,06-14429,"1,800.00",Community Transport for Town & Coun
Nottinghamshire County Council,1111/1001,Adult Social Care and Health,ASCH,Transport Related,CDA,08/09/2016,06-13767,"2,777.50",Taxicover Uk Ltd
Nottinghamshire County Council,1111/1001,Adult Social Care and Health,ASCH,Transport Related,CDA,08/09/2016,06-13769,726.5,Southside Cars
Nottinghamshire County Council,1111/1001,Adult Social Care and Health,ASCH,Transport Related,CDA,08/09/2016,06-13771,512,200 Cars Ltd
Nottinghamshire County Council,1111/1001,Adult Social Care and Health,ASCH,Transport Related,CDA,08/09/2016,06-13772,579.09,CBC Taxis Ltd
Nottinghamshire County Council,1111/1001,Adult Social Care and Health,ASCH,Transport Related,CDA,08/09/2016,06-13773,542.79,CBC Taxis Ltd
Nottinghamshire County Council,1111/1001,Adult Social Care and Health,ASCH,Transport Related,CDA,08/09/2016,06-13774,812.16,Ace Of Mansfield Ltd
Nottinghamshire County Council,1111/1001,Adult Social Care and Health,ASCH,Transport Related,CDA,08/09/2016,06-13775,727.2,Ace Of Mansfield Ltd
Nottinghamshire County Council,1111/1001,Adult Social Care and Health,ASCH,Transport Related,CDA,08/09/2016,06-13776,"1,183.16",Acorn Contracts
Nottinghamshire County Council,1111/1001,Adult Social Care and Health,ASCH,Transport Related,CDA,08/09/2016,06-13777,"1,496.70",Alpha Cars
Nottinghamshire County Council,1111/1001,Adult Social Care and Health,ASCH,Transport Related,CDA,08/09/2016,06-13778,"1,071.46",Bridges Transport Services
Nottinghamshire County Council,1111/1001,Adult Social Care and Health,ASCH,Transport Related,CDA,08/09/2016,06-13779,"1,950.72",Bridges Transport Services
Nottinghamshire County Council,1111/1001,Adult Social Care and Health,ASCH,Transport Related,CDA,08/09/2016,06-13780,"1,205.16",Bridges Transport Services
Nottinghamshire County Council,1111/1001,Adult Social Care and Health,ASCH,Transport Related,CDA,08/09/2016,06-13781,927.18,Bridges Transport Services
Nottinghamshire County Council,1111/1001,Adult Social Care and Health,ASCH,Transport Related,CDA,08/09/2016,06-13782,"1,236.20",Bridges Transport Services
Nottinghamshire County Council,1111/1001,Adult Social Care and Health,ASCH,Transport Related,CDA,08/09/2016,06-13783,790.79,Bridges Transport Services
Nottinghamshire County Council,1111/1001,Adult Social Care and Health,ASCH,Transport Related,CDA,08/09/2016,06-13784,"3,286.36",Bridges Transport Services
Nottinghamshire County Council,1111/1001,Adult Social Care and Health,ASCH,Transport Related,CDA,08/09/2016,06-13785,989.04,Bridges Transport Services
Nottinghamshire County Council,1111/1001,Adult Social Care and Health,ASCH,Transport Related,CDA,08/09/2016,06-13786,"2,251.70",Bridges Transport Services
Nottinghamshire County Council,1111/1001,Adult Social Care and Health,ASCH,Transport Related,CDA,08/09/2016,06-13787,520,Fozcabs Newark Taxis
Nottinghamshire County Council,1111/1001,Adult Social Care and Health,ASCH,Transport Related,CDA,08/09/2016,06-13788,"1,800.00",Fozcabs Newark Taxis
Nottinghamshire County Council,1111/1001,Adult Social Care and Health,ASCH,Transport Related,CDA,08/09/2016,06-13789,880,Galaxy Cabs
Nottinghamshire County Council,1111/1001,Adult Social Care and Health,ASCH,Transport Related,CDA,08/09/2016,06-13790,"2,663.76",Hawkins Taxis & Transport
Nottinghamshire County Council,1111/1001,Adult Social Care and Health,ASCH,Transport Related,CDA,08/09/2016,06-13792,"2,775.74",Midfield Travel
Nottinghamshire County Council,1111/1001,Adult Social Care and Health,ASCH,Transport Related,CDA,08/09/2016,06-13801,573.6,Shelleys Taxis Ltd
Nottinghamshire County Council,1111/1001,Adult Social Care and Health,ASCH,Transport Related,CDA,08/09/2016,06-13805,"1,020.00",Shelleys Taxis Ltd
Nottinghamshire County Council,1111/1001,Adult Social Care and Health,ASCH,Transport Related,CDA,08/09/2016,06-13810,920,Abacus Cars
Nottinghamshire County Council,1111/1001,Adult Social Care and Health,ASCH,Transport Related,CDA,08/09/2016,06-13811,659.36,Abacus Cars
Nottinghamshire County Council,1111/1001,Adult Social Care and Health,ASCH,Transport Related,CDA,08/09/2016,06-13812,558.96,Abacus Cars
Nottinghamshire County Council,1111/1001,Adult Social Care and Health,ASCH,Transport Related,CDA,08/09/2016,06-13813,"1,080.00",Abacus Cars
Nottinghamshire County Council,1111/1001,Adult Social Care and Health,ASCH,Transport Related,CDA,08/09/2016,06-13814,"3,432.00",Abacus Cars
Nottinghamshire County Council,1111/1001,Adult Social Care and Health,ASCH,Transport Related,CDA,08/09/2016,06-13815,523.18,Abacus Cars
Nottinghamshire County Council,1111/1001,Adult Social Care and Health,ASCH,Transport Related,CDA,08/09/2016,06-13816,956.28,Abacus Cars
Nottinghamshire County Council,1111/1001,Adult Social Care and Health,ASCH,Transport Related,CDA,08/09/2016,06-13817,988.2,Abacus Cars
Nottinghamshire County Council,1111/1001,Adult Social Care and Health,ASCH,Transport Related,CDA,08/09/2016,06-13818,830.96,Abacus Cars
Nottinghamshire County Council,1111/1001,Adult Social Care and Health,ASCH,Transport Related,CDA,08/09/2016,06-13819,"1,355.18",Beechwood Taxis
Nottinghamshire County Council,1111/1001,Adult Social Care and Health,ASCH,Transport Related,CDA,08/09/2016,06-13836,"3,036.00",P & P Taxis
Nottinghamshire County Council,1111/1001,Adult Social Care and Health,ASCH,Transport Related,CDA,08/09/2016,06-13837,"1,472.58",P & P Taxis
Nottinghamshire County Council,1111/1001,Adult Social Care and Health,ASCH,Transport Related,CDA,08/09/2016,06-13838,"1,199.88",P & P Taxis
Nottinghamshire County Council,1111/1001,Adult Social Care and Health,ASCH,Transport Related,CDA,08/09/2016,06-13840,"2,667.50",Town Cars (UK) Ltd
Nottinghamshire County Council,1111/1001,Adult Social Care and Health,ASCH,Transport Related,CDA,08/09/2016,06-13841,"1,084.50",AAA Cabs
Nottinghamshire County Council,1111/1001,Adult Social Care and Health,ASCH,Transport Related,CDA,08/09/2016,06-13842,"1,513.22",In Taxis
Nottinghamshire County Council,1111/1001,Adult Social Care and Health,ASCH,Transport Related,CDA,09/09/2016,06-13856,"3,498.00",Arrow Specialised Transport Ltd
Nottinghamshire County Council,1111/1001,Adult Social Care and Health,ASCH,Transport Related,CDA,09/09/2016,06-13857,"3,124.00",Arrow Specialised Transport Ltd
Nottinghamshire County Council,1111/1001,Adult Social Care and Health,ASCH,Transport Related,CDA,09/09/2016,06-13858,"2,577.52",Arrow Specialised Transport Ltd
Nottinghamshire County Council,1111/1001,Adult Social Care and Health,ASCH,Transport Related,CDA,09/09/2016,06-13859,"1,652.28",Abacus Cars
Nottinghamshire County Council,1111/1001,Adult Social Care and Health,ASCH,Transport Related,CDA,09/09/2016,06-13860,"2,960.00",Abacus Cars
Nottinghamshire County Council,1111/1001,Adult Social Care and Health,ASCH,Transport Related,CDA,13/09/2016,06-14415,660,Shelleys Taxis Ltd
Nottinghamshire County Council,1111/1001,Adult Social Care and Health,ASCH,Transport Related,CDA,14/09/2016,06-16290,"1,244.32",F4Control Ltd (t/a First4care)
Nottinghamshire County Council,1111/1001,Adult Social Care and Health,ASCH,Transport Related,CDA,15/09/2016,06-14516,"1,077.44",F4Control Ltd (t/a First4care)
Nottinghamshire County Council,1111/1001,Adult Social Care and Health,ASCH,Transport Related,CDA,15/09/2016,06-14517,792,F4Control Ltd (t/a First4care)
Nottinghamshire County Council,1111/1001,Adult Social Care and Health,ASCH,Transport Related,CDA,15/09/2016,06-14518,775.97,F4Control Ltd (t/a First4care)
Nottinghamshire County Council,1111/1001,Adult Social Care and Health,ASCH,Transport Related,CDA,15/09/2016,06-14519,"1,462.00",Nottingham Cars Ltd
Nottinghamshire County Council,1111/1001,Adult Social Care and Health,ASCH,Transport Related,CDA,16/09/2016,06-16041,"3,750.32",Mencap Accounts Region 2
Nottinghamshire County Council,1111/1001,Adult Social Care and Health,ASCH,Transport Related,CDA,16/09/2016,06-16042,"3,750.32",Mencap Accounts Region 2
Nottinghamshire County Council,1111/1001,Adult Social Care and Health,ASCH,Transport Related,CDA,20/09/2016,06-14679,733.26,D G Private Hire Ltd
Nottinghamshire County Council,1111/1001,Adult Social Care and Health,ASCH,Transport Related,CDA,20/09/2016,06-14680,630,D G Private Hire Ltd
Nottinghamshire County Council,1111/1001,Adult Social Care and Health,ASCH,Transport Related,CDA,20/09/2016,06-14681,690.45,D G Private Hire Ltd
Nottinghamshire County Council,1111/1001,Adult Social Care and Health,ASCH,Transport Related,CDA,22/09/2016,06-15636,514.93,Alert Cars Ltd
Nottinghamshire County Council,1111/1001,Adult Social Care and Health,ASCH,Transport Related,CDA,22/09/2016,06-15640,777.28,SJW (Muskham) Ltd T/A Z Cars
Nottinghamshire County Council,1111/1001,Adult Social Care and Health,ASCH,Transport Related,CDA,22/09/2016,06-15646,"1,149.75",Carlton Cars Ltd T/A Trent Cars
Nottinghamshire County Council,1111/1001,Adult Social Care and Health,ASCH,Transport Related,CDA,22/09/2016,06-15651,"1,677.00",Nottingham Cars Ltd
Nottinghamshire County Council,1111/1001,Adult Social Care and Health,ASCH,Transport Related,CDA,30/09/2016,06-16442,855,Autism East Midlands
Nottinghamshire County Council,1111/1001,Adult Social Care and Health,ASCH,Supplies & Services,DAA,02/09/2016,06-15976,"4,356.18",Nutri Pack Uk Ltd
Nottinghamshire County Council,1111/1001,Adult Social Care and Health,ASCH,Supplies & Services,DAA,21/09/2016,06-16476,"3,795.00",Tunstall Healthcare Uk Ltd
Nottinghamshire County Council,1111/1001,Adult Social Care and Health,ASCH,Supplies & Services,DAA,21/09/2016,06-16477,"3,795.00",Tunstall Healthcare Uk Ltd
Nottinghamshire County Council,1111/1001,Adult Social Care and Health,ASCH,Supplies & Services,DAA,21/09/2016,06-16479,"1,329.28",Tunstall Healthcare Uk Ltd
Nottinghamshire County Council,1111/1001,Adult Social Care and Health,ASCH,Supplies & Services,DAA,21/09/2016,06-16480,"1,329.28",Tunstall Healthcare Uk Ltd
Nottinghamshire County Council,1111/1001,Adult Social Care and Health,ASCH,Supplies & Services,DAA,22/09/2016,06-16503,520.8,Alarm Radio Monitoring Ltd
Nottinghamshire County Council,1111/1001,Adult Social Care and Health,ASCH,Supplies & Services,DAA,23/09/2016,06-16511,984.21,The Corrugated Case Company Ltd
Nottinghamshire County Council,1111/1001,Adult Social Care and Health,ASCH,Supplies & Services,DAA,30/09/2016,06-16449,758,Prism Medical Uk
Nottinghamshire County Council,1111/1001,Adult Social Care and Health,ASCH,Supplies & Services,DAA,30/09/2016,06-16450,"1,329.28",Tunstall Healthcare Uk Ltd
Nottinghamshire County Council,1111/1001,Adult Social Care and Health,ASCH,Supplies & Services,DAA,30/09/2016,06-16499,"1,174.00",Prism Medical Uk
Nottinghamshire County Council,1111/1001,Adult Social Care and Health,ASCH,Supplies & Services,DBA,01/09/2016,06-10072,70.92,Brake Bros Ltd
Nottinghamshire County Council,1111/1001,Adult Social Care and Health,ASCH,Supplies & Services,DBA,06/09/2016,06-13492,554.63,Brake Bros Ltd
Nottinghamshire County Council,1111/1001,Adult Social Care and Health,ASCH,Supplies & Services,DBA,06/09/2016,06-13493,"1,037.72",Brake Bros Ltd
Nottinghamshire County Council,1111/1001,Adult Social Care and Health,ASCH,Supplies & Services,DBA,06/09/2016,06-13496,"1,699.37",Brake Bros Ltd
Nottinghamshire County Council,1111/1001,Adult Social Care and Health,ASCH,Supplies & Services,DBA,09/09/2016,06-13897,"1,092.13",Brake Bros Ltd
Nottinghamshire County Council,1111/1001,Adult Social Care and Health,ASCH,Supplies & Services,DBA,09/09/2016,06-13900,"1,668.28",Brake Bros Ltd
Nottinghamshire County Council,1111/1001,Adult Social Care and Health,ASCH,Supplies & Services,DBA,09/09/2016,06-13902,179.87,Brake Bros Ltd
Nottinghamshire County Council,1111/1001,Adult Social Care and Health,ASCH,Supplies & Services,DBA,09/09/2016,06-13904,"2,331.02",Brake Bros Ltd
Nottinghamshire County Council,1111/1001,Adult Social Care and Health,ASCH,Supplies & Services,DBA,09/09/2016,06-13911,112.56,Brake Bros Ltd
Nottinghamshire County Council,1111/1001,Adult Social Care and Health,ASCH,Supplies & Services,DBA,13/09/2016,06-14433,"4,457.14",John Palin (Wholesale) Ltd
Nottinghamshire County Council,1111/1001,Adult Social Care and Health,ASCH,Supplies & Services,DBA,14/09/2016,06-16296,594.39,Mkg Food Products Ltd
Nottinghamshire County Council,1111/1001,Adult Social Care and Health,ASCH,Supplies & Services,DBA,14/09/2016,06-16299,767.88,Mkg Food Products Ltd
Nottinghamshire County Council,1111/1001,Adult Social Care and Health,ASCH,Supplies & Services,DBA,20/09/2016,06-14686,"2,933.49",M Maloney Country Butchers & B Ltd
Nottinghamshire County Council,1111/1001,Adult Social Care and Health,ASCH,Supplies & Services,DBA,20/09/2016,06-14690,"3,585.50",M Maloney Country Butchers & B Ltd
Nottinghamshire County Council,1111/1001,Adult Social Care and Health,ASCH,Supplies & Services,DBA,20/09/2016,06-14694,200.08,Brake Bros Ltd
Nottinghamshire County Council,1111/1001,Adult Social Care and Health,ASCH,Supplies & Services,DBA,20/09/2016,06-14698,"2,252.72",Brake Bros Ltd
Nottinghamshire County Council,1111/1001,Adult Social Care and Health,ASCH,Supplies & Services,DBA,20/09/2016,06-14701,"1,273.67",Brake Bros Ltd
Nottinghamshire County Council,1111/1001,Adult Social Care and Health,ASCH,Supplies & Services,DBA,20/09/2016,06-14709,"2,410.30",M Maloney Country Butchers & B Ltd
Nottinghamshire County Council,1111/1001,Adult Social Care and Health,ASCH,Supplies & Services,DBA,20/09/2016,06-14820,532.27,Millside Barrowcliffe Ltd
Nottinghamshire County Council,1111/1001,Adult Social Care and Health,ASCH,Supplies & Services,DBA,20/09/2016,06-16378,693.76,Sleaford Quality Foods Ltd
Nottinghamshire County Council,1111/1001,Adult Social Care and Health,ASCH,Supplies & Services,DBA,23/09/2016,06-15656,186.02,Brake Bros Ltd
Nottinghamshire County Council,1111/1001,Adult Social Care and Health,ASCH,Supplies & Services,DBA,23/09/2016,06-15685,821.57,Brake Bros Ltd
Nottinghamshire County Council,1111/1001,Adult Social Care and Health,ASCH,Supplies & Services,DBA,23/09/2016,06-15689,"1,087.67",Brake Bros Ltd
Nottinghamshire County Council,1111/1001,Adult Social Care and Health,ASCH,Supplies & Services,DBA,23/09/2016,06-15692,"1,823.05",Brake Bros Ltd
Nottinghamshire County Council,1111/1001,Adult Social Care and Health,ASCH,Supplies & Services,DBA,23/09/2016,06-15695,103.22,Brake Bros Ltd
Nottinghamshire County Council,1111/1001,Adult Social Care and Health,ASCH,Supplies & Services,DBA,26/09/2016,06-16185,517.16,IDC Ltd
Nottinghamshire County Council,1111/1001,Adult Social Care and Health,ASCH,Supplies & Services,DBA,26/09/2016,06-16192,700.53,IDC Ltd
Nottinghamshire County Council,1111/1001,Adult Social Care and Health,ASCH,Supplies & Services,DDA,15/09/2016,06-16350,"5,670.00",Mansfield & Ashfield CCG
Nottinghamshire County Council,1111/1001,Adult Social Care and Health,ASCH,Supplies & Services,DEA,02/09/2016,06-16009,625,Lincolnshire County Council
Nottinghamshire County Council,1111/1001,Adult Social Care and Health,ASCH,Supplies & Services,DEA,06/09/2016,06-16046,"6,355.30",Anderson Care Projects Ltd
Nottinghamshire County Council,1111/1001,Adult Social Care and Health,ASCH,Supplies & Services,DEA,06/09/2016,06-16058,"13,386.77",ARC Property Services Partnership L
Nottinghamshire County Council,1111/1001,Adult Social Care and Health,ASCH,Supplies & Services,DEA,07/09/2016,06-16098,"1,120.70",[Redacted]
Nottinghamshire County Council,1111/1001,Adult Social Care and Health,ASCH,Supplies & Services,DEA,09/09/2016,06-16238,"3,333.00",Notts Deaf Society Ltd
Nottinghamshire County Council,1111/1001,Adult Social Care and Health,ASCH,Supplies & Services,DEA,16/09/2016,06-14413,"2,000.00",The Newark Dementia Carers Group
Nottinghamshire County Council,1111/1001,Adult Social Care and Health,ASCH,Supplies & Services,DEA,16/09/2016,06-16389,"2,489.00",Age Uk Nottm & Notts
Nottinghamshire County Council,1111/1001,Adult Social Care and Health,ASCH,Supplies & Services,DEA,22/09/2016,06-15600,"1,361.00",The Carers Council
Nottinghamshire County Council,1111/1001,Adult Social Care and Health,ASCH,Supplies & Services,DEA,26/09/2016,06-15784,900,Open Door 1
Nottinghamshire County Council,1111/1001,Adult Social Care and Health,ASCH,Supplies & Services,DEA,30/09/2016,06-13907,162.63,Security Plus Ltd
Nottinghamshire County Council,1111/1001,Adult Social Care and Health,ASCH,Supplies & Services,DEA,30/09/2016,06-16423,805,East Midlands Training Services
Nottinghamshire County Council,1111/1001,Adult Social Care and Health,ASCH,Supplies & Services,DFA,13/09/2016,06-14437,859.57,Adept Telecom
Nottinghamshire County Council,1111/1001,Adult Social Care and Health,ASCH,Supplies & Services,DFA,23/09/2016,06-16014,967.71,Reliance High-Tech Ltd
Nottinghamshire County Council,1111/1001,Adult Social Care and Health,ASCH,Supplies & Services,DFA,30/09/2016,06-16177,"12,721.13",Care Monitoring 2000 Ltd
Nottinghamshire County Council,1111/1001,Adult Social Care and Health,ASCH,Supplies & Services,DGA,09/09/2016,06-13894,"1,015.05",P & P Taxis
Nottinghamshire County Council,1111/1001,Adult Social Care and Health,ASCH,Third Party Payments,EBA,05/09/2016,06-16040,"38,810.33",Age Uk Nottm & Notts
Nottinghamshire County Council,1111/1001,Adult Social Care and Health,ASCH,Third Party Payments,EBA,08/09/2016,06-13766,"5,096.00",Metropolitan Housing Trust
Nottinghamshire County Council,1111/1001,Adult Social Care and Health,ASCH,Third Party Payments,EBA,08/09/2016,06-13768,"101,500.61",Framework Housing Association
Nottinghamshire County Council,1111/1001,Adult Social Care and Health,ASCH,Third Party Payments,EBA,15/09/2016,06-16315,"18,897.92",Framework Housing Association
Nottinghamshire County Council,1111/1001,Adult Social Care and Health,ASCH,Third Party Payments,EBA,15/09/2016,06-16332,"17,916.67",Framework Housing Association
Nottinghamshire County Council,1111/1001,Adult Social Care and Health,ASCH,Third Party Payments,EBA,15/09/2016,06-16337,"54,682.50",Framework Housing Association
Nottinghamshire County Council,1111/1001,Adult Social Care and Health,ASCH,Third Party Payments,EBA,15/09/2016,06-16338,"22,916.67",Framework Housing Association
Nottinghamshire County Council,1111/1001,Adult Social Care and Health,ASCH,Third Party Payments,EBA,15/09/2016,06-16348,"18,897.92",Framework Housing Association
Nottinghamshire County Council,1111/1001,Adult Social Care and Health,ASCH,Third Party Payments,EBA,20/09/2016,06-16444,"17,056.83",Nottm Community Housing Assoc
Nottinghamshire County Council,1111/1001,Adult Social Care and Health,ASCH,Third Party Payments,EBA,30/09/2016,06-16031,"17,056.83",Nottm Community Housing Assoc
Nottinghamshire County Council,1111/1001,Adult Social Care and Health,ASCH,Third Party Payments,ECA,05/09/2016,06-10457,417.22,Bramcote Hills Care Home
Nottinghamshire County Council,1111/1001,Adult Social Care and Health,ASCH,Third Party Payments,ECA,05/09/2016,06-10459,417.22,Bramcote Hills Care Home
Nottinghamshire County Council,1111/1001,Adult Social Care and Health,ASCH,Third Party Payments,ECA,05/09/2016,06-10463,417.22,Bramcote Hills Care Home
Nottinghamshire County Council,1111/1001,Adult Social Care and Health,ASCH,Third Party Payments,ECA,05/09/2016,06-10466,417.22,Bramcote Hills Care Home
Nottinghamshire County Council,1111/1001,Adult Social Care and Health,ASCH,Third Party Payments,ECA,05/09/2016,06-10469,417.22,Bramcote Hills Care Home
Nottinghamshire County Council,1111/1001,Adult Social Care and Health,ASCH,Third Party Payments,ECA,05/09/2016,06-10471,417.22,Bramcote Hills Care Home
Nottinghamshire County Council,1111/1001,Adult Social Care and Health,ASCH,Third Party Payments,ECA,05/09/2016,06-10486,417.22,The Grange Nursing Home
Nottinghamshire County Council,1111/1001,Adult Social Care and Health,ASCH,Third Party Payments,ECA,05/09/2016,06-10495,417.22,The Grange Nursing Home
Nottinghamshire County Council,1111/1001,Adult Social Care and Health,ASCH,Third Party Payments,ECA,05/09/2016,06-10507,417.22,Belvoir Vale
Nottinghamshire County Council,1111/1001,Adult Social Care and Health,ASCH,Third Party Payments,ECA,05/09/2016,06-10529,417.22,Ashcroft
Nottinghamshire County Council,1111/1001,Adult Social Care and Health,ASCH,Third Party Payments,ECA,05/09/2016,06-10533,417.22,Ashcroft
Nottinghamshire County Council,1111/1001,Adult Social Care and Health,ASCH,Third Party Payments,ECA,05/09/2016,06-10537,417.22,Ashcroft
Nottinghamshire County Council,1111/1001,Adult Social Care and Health,ASCH,Third Party Payments,ECA,05/09/2016,06-10540,417.22,Ashcroft
Nottinghamshire County Council,1111/1001,Adult Social Care and Health,ASCH,Third Party Payments,ECA,05/09/2016,06-10543,417.22,Ashcroft
Nottinghamshire County Council,1111/1001,Adult Social Care and Health,ASCH,Third Party Payments,ECA,05/09/2016,06-10545,417.22,Ashcroft
Nottinghamshire County Council,1111/1001,Adult Social Care and Health,ASCH,Third Party Payments,ECA,05/09/2016,06-10548,417.22,Ashcroft
Nottinghamshire County Council,1111/1001,Adult Social Care and Health,ASCH,Third Party Payments,ECA,05/09/2016,06-10551,417.22,Ashcroft
Nottinghamshire County Council,1111/1001,Adult Social Care and Health,ASCH,Third Party Payments,ECA,05/09/2016,06-10555,417.22,Ashcroft
Nottinghamshire County Council,1111/1001,Adult Social Care and Health,ASCH,Third Party Payments,ECA,05/09/2016,06-10557,417.22,Ashcroft
Nottinghamshire County Council,1111/1001,Adult Social Care and Health,ASCH,Third Party Payments,ECA,05/09/2016,06-10560,417.22,Ashcroft
Nottinghamshire County Council,1111/1001,Adult Social Care and Health,ASCH,Third Party Payments,ECA,05/09/2016,06-10562,417.22,Ashcroft
Nottinghamshire County Council,1111/1001,Adult Social Care and Health,ASCH,Third Party Payments,ECA,05/09/2016,06-10578,328.71,HC1 Ltd Re. Oaklands (Whaley Thorns
Nottinghamshire County Council,1111/1001,Adult Social Care and Health,ASCH,Third Party Payments,ECA,05/09/2016,06-10581,417.22,Beauvale Nursing Home
Nottinghamshire County Council,1111/1001,Adult Social Care and Health,ASCH,Third Party Payments,ECA,05/09/2016,06-10583,417.22,Beauvale Nursing Home
Nottinghamshire County Council,1111/1001,Adult Social Care and Health,ASCH,Third Party Payments,ECA,05/09/2016,06-10585,417.22,Beauvale Nursing Home
Nottinghamshire County Council,1111/1001,Adult Social Care and Health,ASCH,Third Party Payments,ECA,05/09/2016,06-10588,417.22,Beauvale Nursing Home
Nottinghamshire County Council,1111/1001,Adult Social Care and Health,ASCH,Third Party Payments,ECA,05/09/2016,06-10593,417.22,Beauvale Nursing Home
Nottinghamshire County Council,1111/1001,Adult Social Care and Health,ASCH,Third Party Payments,ECA,05/09/2016,06-10595,417.22,Beauvale Nursing Home
Nottinghamshire County Council,1111/1001,Adult Social Care and Health,ASCH,Third Party Payments,ECA,05/09/2016,06-10598,417.22,Beauvale Nursing Home
Nottinghamshire County Council,1111/1001,Adult Social Care and Health,ASCH,Third Party Payments,ECA,05/09/2016,06-10600,417.22,Beauvale Nursing Home
Nottinghamshire County Council,1111/1001,Adult Social Care and Health,ASCH,Third Party Payments,ECA,05/09/2016,06-10602,417.22,Beauvale Nursing Home
Nottinghamshire County Council,1111/1001,Adult Social Care and Health,ASCH,Third Party Payments,ECA,05/09/2016,06-10605,417.22,Beauvale Nursing Home
Nottinghamshire County Council,1111/1001,Adult Social Care and Health,ASCH,Third Party Payments,ECA,05/09/2016,06-10607,259.18,Beauvale Nursing Home
Nottinghamshire County Council,1111/1001,Adult Social Care and Health,ASCH,Third Party Payments,ECA,05/09/2016,06-10610,417.22,Beauvale Nursing Home
Nottinghamshire County Council,1111/1001,Adult Social Care and Health,ASCH,Third Party Payments,ECA,05/09/2016,06-10612,417.22,Beauvale Nursing Home
Nottinghamshire County Council,1111/1001,Adult Social Care and Health,ASCH,Third Party Payments,ECA,05/09/2016,06-10627,417.22,Silverwood Care Home
Nottinghamshire County Council,1111/1001,Adult Social Care and Health,ASCH,Third Party Payments,ECA,05/09/2016,06-10632,417.22,Silverwood Care Home
Nottinghamshire County Council,1111/1001,Adult Social Care and Health,ASCH,Third Party Payments,ECA,05/09/2016,06-10634,417.22,Silverwood Care Home
Nottinghamshire County Council,1111/1001,Adult Social Care and Health,ASCH,Third Party Payments,ECA,05/09/2016,06-10636,417.22,Silverwood Care Home
Nottinghamshire County Council,1111/1001,Adult Social Care and Health,ASCH,Third Party Payments,ECA,05/09/2016,06-10638,417.22,Silverwood Care Home
Nottinghamshire County Council,1111/1001,Adult Social Care and Health,ASCH,Third Party Payments,ECA,05/09/2016,06-10640,417.22,Silverwood Care Home
Nottinghamshire County Council,1111/1001,Adult Social Care and Health,ASCH,Third Party Payments,ECA,05/09/2016,06-10643,417.22,Silverwood Care Home
Nottinghamshire County Council,1111/1001,Adult Social Care and Health,ASCH,Third Party Payments,ECA,05/09/2016,06-10645,417.21,Silverwood Care Home
Nottinghamshire County Council,1111/1001,Adult Social Care and Health,ASCH,Third Party Payments,ECA,05/09/2016,06-10647,328.71,Silverwood Care Home
Nottinghamshire County Council,1111/1001,Adult Social Care and Health,ASCH,Third Party Payments,ECA,05/09/2016,06-10649,417.22,Silverwood Care Home
Nottinghamshire County Council,1111/1001,Adult Social Care and Health,ASCH,Third Party Payments,ECA,05/09/2016,06-10651,417.22,Silverwood Care Home
Nottinghamshire County Council,1111/1001,Adult Social Care and Health,ASCH,Third Party Payments,ECA,05/09/2016,06-10653,417.22,Silverwood Care Home
Nottinghamshire County Council,1111/1001,Adult Social Care and Health,ASCH,Third Party Payments,ECA,05/09/2016,06-10655,417.22,Silverwood Care Home
Nottinghamshire County Council,1111/1001,Adult Social Care and Health,ASCH,Third Party Payments,ECA,05/09/2016,06-10657,417.22,Silverwood Care Home
Nottinghamshire County Council,1111/1001,Adult Social Care and Health,ASCH,Third Party Payments,ECA,05/09/2016,06-10659,417.22,Silverwood Care Home
Nottinghamshire County Council,1111/1001,Adult Social Care and Health,ASCH,Third Party Payments,ECA,05/09/2016,06-10663,417.22,Silverwood Care Home
Nottinghamshire County Council,1111/1001,Adult Social Care and Health,ASCH,Third Party Payments,ECA,05/09/2016,06-10671,417.22,Spring Water Lodge
Nottinghamshire County Council,1111/1001,Adult Social Care and Health,ASCH,Third Party Payments,ECA,05/09/2016,06-10674,417.22,Spring Water Lodge
Nottinghamshire County Council,1111/1001,Adult Social Care and Health,ASCH,Third Party Payments,ECA,05/09/2016,06-10676,417.22,Spring Water Lodge
Nottinghamshire County Council,1111/1001,Adult Social Care and Health,ASCH,Third Party Payments,ECA,05/09/2016,06-10678,170.68,Spring Water Lodge
Nottinghamshire County Council,1111/1001,Adult Social Care and Health,ASCH,Third Party Payments,ECA,05/09/2016,06-10683,417.22,Spring Water Lodge
Nottinghamshire County Council,1111/1001,Adult Social Care and Health,ASCH,Third Party Payments,ECA,05/09/2016,06-10687,417.22,Spring Water Lodge
Nottinghamshire County Council,1111/1001,Adult Social Care and Health,ASCH,Third Party Payments,ECA,05/09/2016,06-10691,417.22,Spring Water Lodge
Nottinghamshire County Council,1111/1001,Adult Social Care and Health,ASCH,Third Party Payments,ECA,05/09/2016,06-10693,417.22,Spring Water Lodge
Nottinghamshire County Council,1111/1001,Adult Social Care and Health,ASCH,Third Party Payments,ECA,05/09/2016,06-10696,417.22,Spring Water Lodge
Nottinghamshire County Council,1111/1001,Adult Social Care and Health,ASCH,Third Party Payments,ECA,05/09/2016,06-10725,417.22,Howson Care Centre
Nottinghamshire County Council,1111/1001,Adult Social Care and Health,ASCH,Third Party Payments,ECA,05/09/2016,06-10727,417.22,Howson Care Centre
Nottinghamshire County Council,1111/1001,Adult Social Care and Health,ASCH,Third Party Payments,ECA,05/09/2016,06-10729,574.2,Howson Care Centre
Nottinghamshire County Council,1111/1001,Adult Social Care and Health,ASCH,Third Party Payments,ECA,05/09/2016,06-10731,574.2,Howson Care Centre
Nottinghamshire County Council,1111/1001,Adult Social Care and Health,ASCH,Third Party Payments,ECA,05/09/2016,06-10733,417.22,Howson Care Centre
Nottinghamshire County Council,1111/1001,Adult Social Care and Health,ASCH,Third Party Payments,ECA,05/09/2016,06-10735,417.22,Howson Care Centre
Nottinghamshire County Council,1111/1001,Adult Social Care and Health,ASCH,Third Party Payments,ECA,05/09/2016,06-10741,417.21,Eastlands Care Home
Nottinghamshire County Council,1111/1001,Adult Social Care and Health,ASCH,Third Party Payments,ECA,05/09/2016,06-10776,417.22,Stoneyford Christian Nursing Home
Nottinghamshire County Council,1111/1001,Adult Social Care and Health,ASCH,Third Party Payments,ECA,05/09/2016,06-10778,417.22,Stoneyford Christian Nursing Home
Nottinghamshire County Council,1111/1001,Adult Social Care and Health,ASCH,Third Party Payments,ECA,05/09/2016,06-10780,417.22,Stoneyford Christian Nursing Home
Nottinghamshire County Council,1111/1001,Adult Social Care and Health,ASCH,Third Party Payments,ECA,05/09/2016,06-10784,417.22,Stoneyford Christian Nursing Home
Nottinghamshire County Council,1111/1001,Adult Social Care and Health,ASCH,Third Party Payments,ECA,05/09/2016,06-10787,417.21,Stoneyford Christian Nursing Home
Nottinghamshire County Council,1111/1001,Adult Social Care and Health,ASCH,Third Party Payments,ECA,05/09/2016,06-10789,417.22,Stoneyford Christian Nursing Home
Nottinghamshire County Council,1111/1001,Adult Social Care and Health,ASCH,Third Party Payments,ECA,05/09/2016,06-10792,417.22,Stoneyford Christian Nursing Home
Nottinghamshire County Council,1111/1001,Adult Social Care and Health,ASCH,Third Party Payments,ECA,05/09/2016,06-10796,417.22,Stoneyford Christian Nursing Home
Nottinghamshire County Council,1111/1001,Adult Social Care and Health,ASCH,Third Party Payments,ECA,05/09/2016,06-10798,417.22,Stoneyford Christian Nursing Home
Nottinghamshire County Council,1111/1001,Adult Social Care and Health,ASCH,Third Party Payments,ECA,05/09/2016,06-10801,417.22,Stoneyford Christian Nursing Home
Nottinghamshire County Council,1111/1001,Adult Social Care and Health,ASCH,Third Party Payments,ECA,05/09/2016,06-10808,417.22,Stoneyford Christian Nursing Home
Nottinghamshire County Council,1111/1001,Adult Social Care and Health,ASCH,Third Party Payments,ECA,05/09/2016,06-10810,417.22,Stoneyford Christian Nursing Home
Nottinghamshire County Council,1111/1001,Adult Social Care and Health,ASCH,Third Party Payments,ECA,05/09/2016,06-10812,417.22,Stoneyford Christian Nursing Home
Nottinghamshire County Council,1111/1001,Adult Social Care and Health,ASCH,Third Party Payments,ECA,05/09/2016,06-10815,417.22,Stoneyford Christian Nursing Home
Nottinghamshire County Council,1111/1001,Adult Social Care and Health,ASCH,Third Party Payments,ECA,05/09/2016,06-10818,417.22,Beeches Nursing Home
Nottinghamshire County Council,1111/1001,Adult Social Care and Health,ASCH,Third Party Payments,ECA,05/09/2016,06-10822,417.22,Beeches Nursing Home
Nottinghamshire County Council,1111/1001,Adult Social Care and Health,ASCH,Third Party Payments,ECA,05/09/2016,06-10831,417.22,Beeches Nursing Home
Nottinghamshire County Council,1111/1001,Adult Social Care and Health,ASCH,Third Party Payments,ECA,05/09/2016,06-10835,417.22,Beeches Nursing Home
Nottinghamshire County Council,1111/1001,Adult Social Care and Health,ASCH,Third Party Payments,ECA,05/09/2016,06-10838,417.22,Beeches Nursing Home
Nottinghamshire County Council,1111/1001,Adult Social Care and Health,ASCH,Third Party Payments,ECA,05/09/2016,06-10842,417.22,Berry Hill Park
Nottinghamshire County Council,1111/1001,Adult Social Care and Health,ASCH,Third Party Payments,ECA,05/09/2016,06-10844,417.22,Berry Hill Park
Nottinghamshire County Council,1111/1001,Adult Social Care and Health,ASCH,Third Party Payments,ECA,05/09/2016,06-10846,417.22,Berry Hill Park
Nottinghamshire County Council,1111/1001,Adult Social Care and Health,ASCH,Third Party Payments,ECA,05/09/2016,06-10848,417.22,Berry Hill Park
Nottinghamshire County Council,1111/1001,Adult Social Care and Health,ASCH,Third Party Payments,ECA,05/09/2016,06-10852,417.22,Berry Hill Park
Nottinghamshire County Council,1111/1001,Adult Social Care and Health,ASCH,Third Party Payments,ECA,05/09/2016,06-10854,417.22,Berry Hill Park
Nottinghamshire County Council,1111/1001,Adult Social Care and Health,ASCH,Third Party Payments,ECA,05/09/2016,06-10857,417.22,Berry Hill Park
Nottinghamshire County Council,1111/1001,Adult Social Care and Health,ASCH,Third Party Payments,ECA,05/09/2016,06-10860,246.54,Berry Hill Park
Nottinghamshire County Council,1111/1001,Adult Social Care and Health,ASCH,Third Party Payments,ECA,05/09/2016,06-10862,417.22,Berry Hill Park
Nottinghamshire County Council,1111/1001,Adult Social Care and Health,ASCH,Third Party Payments,ECA,05/09/2016,06-10864,417.22,Berry Hill Park
Nottinghamshire County Council,1111/1001,Adult Social Care and Health,ASCH,Third Party Payments,ECA,05/09/2016,06-10866,417.22,Berry Hill Park
Nottinghamshire County Council,1111/1001,Adult Social Care and Health,ASCH,Third Party Payments,ECA,05/09/2016,06-10869,417.22,Berry Hill Park
Nottinghamshire County Council,1111/1001,Adult Social Care and Health,ASCH,Third Party Payments,ECA,05/09/2016,06-10871,417.22,Berry Hill Park
Nottinghamshire County Council,1111/1001,Adult Social Care and Health,ASCH,Third Party Payments,ECA,05/09/2016,06-10898,417.22,Countrywide Care Homes Ltd T/A Clum
Nottinghamshire County Council,1111/1001,Adult Social Care and Health,ASCH,Third Party Payments,ECA,05/09/2016,06-10900,417.22,Countrywide Care Homes Ltd T/A Clum
Nottinghamshire County Council,1111/1001,Adult Social Care and Health,ASCH,Third Party Payments,ECA,05/09/2016,06-10902,417.22,Countrywide Care Homes Ltd T/A Clum
Nottinghamshire County Council,1111/1001,Adult Social Care and Health,ASCH,Third Party Payments,ECA,05/09/2016,06-10905,417.22,Countrywide Care Homes Ltd T/A Clum
Nottinghamshire County Council,1111/1001,Adult Social Care and Health,ASCH,Third Party Payments,ECA,05/09/2016,06-10907,417.22,Countrywide Care Homes Ltd T/A Clum
Nottinghamshire County Council,1111/1001,Adult Social Care and Health,ASCH,Third Party Payments,ECA,05/09/2016,06-10910,417.22,Countrywide Care Homes Ltd T/A Clum
Nottinghamshire County Council,1111/1001,Adult Social Care and Health,ASCH,Third Party Payments,ECA,05/09/2016,06-10912,417.22,Countrywide Care Homes Ltd T/A Clum
Nottinghamshire County Council,1111/1001,Adult Social Care and Health,ASCH,Third Party Payments,ECA,05/09/2016,06-10914,417.22,Countrywide Care Homes Ltd T/A Clum
Nottinghamshire County Council,1111/1001,Adult Social Care and Health,ASCH,Third Party Payments,ECA,05/09/2016,06-10920,417.22,Countrywide Care Homes Ltd T/A Clum
Nottinghamshire County Council,1111/1001,Adult Social Care and Health,ASCH,Third Party Payments,ECA,05/09/2016,06-10923,417.22,Countrywide Care Homes Ltd T/A Clum
Nottinghamshire County Council,1111/1001,Adult Social Care and Health,ASCH,Third Party Payments,ECA,05/09/2016,06-10925,417.22,Countrywide Care Homes Ltd T/A Clum
Nottinghamshire County Council,1111/1001,Adult Social Care and Health,ASCH,Third Party Payments,ECA,05/09/2016,06-10929,417.22,Countrywide Care Homes Ltd T/A Clum
Nottinghamshire County Council,1111/1001,Adult Social Care and Health,ASCH,Third Party Payments,ECA,05/09/2016,06-10933,417.22,Countrywide Care Homes Ltd T/A Clum
Nottinghamshire County Council,1111/1001,Adult Social Care and Health,ASCH,Third Party Payments,ECA,05/09/2016,06-10935,170.68,Countrywide Care Homes Ltd T/A Clum
Nottinghamshire County Council,1111/1001,Adult Social Care and Health,ASCH,Third Party Payments,ECA,05/09/2016,06-10937,574.2,Countrywide Care Homes Ltd T/A Clum
Nottinghamshire County Council,1111/1001,Adult Social Care and Health,ASCH,Third Party Payments,ECA,05/09/2016,06-10938,417.22,Countrywide Care Homes Ltd T/A Clum
Nottinghamshire County Council,1111/1001,Adult Social Care and Health,ASCH,Third Party Payments,ECA,05/09/2016,06-10941,417.22,Countrywide Care Homes Ltd T/A Clum
Nottinghamshire County Council,1111/1001,Adult Social Care and Health,ASCH,Third Party Payments,ECA,05/09/2016,06-10944,417.22,Countrywide Care Homes Ltd T/A Clum
Nottinghamshire County Council,1111/1001,Adult Social Care and Health,ASCH,Third Party Payments,ECA,05/09/2016,06-10946,417.22,Countrywide Care Homes Ltd T/A Clum
Nottinghamshire County Council,1111/1001,Adult Social Care and Health,ASCH,Third Party Payments,ECA,05/09/2016,06-10949,417.22,Countrywide Care Homes Ltd T/A Clum
Nottinghamshire County Council,1111/1001,Adult Social Care and Health,ASCH,Third Party Payments,ECA,05/09/2016,06-10951,417.22,Countrywide Care Homes Ltd T/A Clum
Nottinghamshire County Council,1111/1001,Adult Social Care and Health,ASCH,Third Party Payments,ECA,05/09/2016,06-10953,417.22,Countrywide Care Homes Ltd T/A Clum
Nottinghamshire County Council,1111/1001,Adult Social Care and Health,ASCH,Third Party Payments,ECA,05/09/2016,06-10961,417.22,Landermeads Nursing Home
Nottinghamshire County Council,1111/1001,Adult Social Care and Health,ASCH,Third Party Payments,ECA,05/09/2016,06-10963,417.22,Landermeads Nursing Home
Nottinghamshire County Council,1111/1001,Adult Social Care and Health,ASCH,Third Party Payments,ECA,05/09/2016,06-10965,417.22,Landermeads Nursing Home
Nottinghamshire County Council,1111/1001,Adult Social Care and Health,ASCH,Third Party Payments,ECA,05/09/2016,06-10967,417.22,Landermeads Nursing Home
Nottinghamshire County Council,1111/1001,Adult Social Care and Health,ASCH,Third Party Payments,ECA,05/09/2016,06-10969,417.22,Landermeads Nursing Home
Nottinghamshire County Council,1111/1001,Adult Social Care and Health,ASCH,Third Party Payments,ECA,05/09/2016,06-10973,417.22,Landermeads Nursing Home
Nottinghamshire County Council,1111/1001,Adult Social Care and Health,ASCH,Third Party Payments,ECA,05/09/2016,06-10975,417.22,Landermeads Nursing Home
Nottinghamshire County Council,1111/1001,Adult Social Care and Health,ASCH,Third Party Payments,ECA,05/09/2016,06-10977,574.2,Landermeads Nursing Home
Nottinghamshire County Council,1111/1001,Adult Social Care and Health,ASCH,Third Party Payments,ECA,05/09/2016,06-10979,574.2,Landermeads Nursing Home
Nottinghamshire County Council,1111/1001,Adult Social Care and Health,ASCH,Third Party Payments,ECA,05/09/2016,06-10982,417.22,Landermeads Nursing Home
Nottinghamshire County Council,1111/1001,Adult Social Care and Health,ASCH,Third Party Payments,ECA,05/09/2016,06-10984,417.22,Landermeads Nursing Home
Nottinghamshire County Council,1111/1001,Adult Social Care and Health,ASCH,Third Party Payments,ECA,05/09/2016,06-10986,417.22,Landermeads Nursing Home
Nottinghamshire County Council,1111/1001,Adult Social Care and Health,ASCH,Third Party Payments,ECA,05/09/2016,06-10988,417.22,Landermeads Nursing Home
Nottinghamshire County Council,1111/1001,Adult Social Care and Health,ASCH,Third Party Payments,ECA,05/09/2016,06-10990,417.22,Landermeads Nursing Home
Nottinghamshire County Council,1111/1001,Adult Social Care and Health,ASCH,Third Party Payments,ECA,05/09/2016,06-10992,417.22,Landermeads Nursing Home
Nottinghamshire County Council,1111/1001,Adult Social Care and Health,ASCH,Third Party Payments,ECA,05/09/2016,06-10994,417.21,Landermeads Nursing Home
Nottinghamshire County Council,1111/1001,Adult Social Care and Health,ASCH,Third Party Payments,ECA,05/09/2016,06-10998,417.22,Landermeads Nursing Home
Nottinghamshire County Council,1111/1001,Adult Social Care and Health,ASCH,Third Party Payments,ECA,05/09/2016,06-11000,417.22,Landermeads Nursing Home
Nottinghamshire County Council,1111/1001,Adult Social Care and Health,ASCH,Third Party Payments,ECA,05/09/2016,06-11002,417.22,Landermeads Nursing Home
Nottinghamshire County Council,1111/1001,Adult Social Care and Health,ASCH,Third Party Payments,ECA,05/09/2016,06-11005,417.22,Landermeads Nursing Home
Nottinghamshire County Council,1111/1001,Adult Social Care and Health,ASCH,Third Party Payments,ECA,05/09/2016,06-11007,417.22,Landermeads Nursing Home
Nottinghamshire County Council,1111/1001,Adult Social Care and Health,ASCH,Third Party Payments,ECA,05/09/2016,06-11009,417.22,Landermeads Nursing Home
Nottinghamshire County Council,1111/1001,Adult Social Care and Health,ASCH,Third Party Payments,ECA,05/09/2016,06-11011,417.22,Landermeads Nursing Home
Nottinghamshire County Council,1111/1001,Adult Social Care and Health,ASCH,Third Party Payments,ECA,05/09/2016,06-11013,417.22,Landermeads Nursing Home
Nottinghamshire County Council,1111/1001,Adult Social Care and Health,ASCH,Third Party Payments,ECA,05/09/2016,06-11067,417.22,Albemarle Hall Nursing Home
Nottinghamshire County Council,1111/1001,Adult Social Care and Health,ASCH,Third Party Payments,ECA,05/09/2016,06-11072,417.22,Alexandra House Nursing Home
Nottinghamshire County Council,1111/1001,Adult Social Care and Health,ASCH,Third Party Payments,ECA,05/09/2016,06-11074,297.11,Alexandra House Nursing Home
Nottinghamshire County Council,1111/1001,Adult Social Care and Health,ASCH,Third Party Payments,ECA,05/09/2016,06-11077,417.22,Alexandra House Nursing Home
Nottinghamshire County Council,1111/1001,Adult Social Care and Health,ASCH,Third Party Payments,ECA,05/09/2016,06-11079,417.22,Alexandra House Nursing Home
Nottinghamshire County Council,1111/1001,Adult Social Care and Health,ASCH,Third Party Payments,ECA,05/09/2016,06-11082,177,Alexandra House Nursing Home
Nottinghamshire County Council,1111/1001,Adult Social Care and Health,ASCH,Third Party Payments,ECA,05/09/2016,06-11085,417.22,Alexandra House Nursing Home
Nottinghamshire County Council,1111/1001,Adult Social Care and Health,ASCH,Third Party Payments,ECA,05/09/2016,06-11087,417.22,Alexandra House Nursing Home
Nottinghamshire County Council,1111/1001,Adult Social Care and Health,ASCH,Third Party Payments,ECA,05/09/2016,06-11089,417.22,Alexandra House Nursing Home
Nottinghamshire County Council,1111/1001,Adult Social Care and Health,ASCH,Third Party Payments,ECA,05/09/2016,06-11094,417.22,Eliot House
Nottinghamshire County Council,1111/1001,Adult Social Care and Health,ASCH,Third Party Payments,ECA,05/09/2016,06-11121,417.22,Ashley House Nursing Home
Nottinghamshire County Council,1111/1001,Adult Social Care and Health,ASCH,Third Party Payments,ECA,05/09/2016,06-11124,417.22,Ashley House Nursing Home
Nottinghamshire County Council,1111/1001,Adult Social Care and Health,ASCH,Third Party Payments,ECA,05/09/2016,06-11127,417.22,Ashley House Nursing Home
Nottinghamshire County Council,1111/1001,Adult Social Care and Health,ASCH,Third Party Payments,ECA,05/09/2016,06-11129,574.2,Ashley House Nursing Home
Nottinghamshire County Council,1111/1001,Adult Social Care and Health,ASCH,Third Party Payments,ECA,05/09/2016,06-11132,417.22,Ashley House Nursing Home
Nottinghamshire County Council,1111/1001,Adult Social Care and Health,ASCH,Third Party Payments,ECA,05/09/2016,06-11134,417.22,Ashley House Nursing Home
Nottinghamshire County Council,1111/1001,Adult Social Care and Health,ASCH,Third Party Payments,ECA,05/09/2016,06-11137,417.22,Ashley House Nursing Home
Nottinghamshire County Council,1111/1001,Adult Social Care and Health,ASCH,Third Party Payments,ECA,05/09/2016,06-11139,417.21,Ashley House Nursing Home
Nottinghamshire County Council,1111/1001,Adult Social Care and Health,ASCH,Third Party Payments,ECA,05/09/2016,06-11141,417.22,Ashley House Nursing Home
Nottinghamshire County Council,1111/1001,Adult Social Care and Health,ASCH,Third Party Payments,ECA,05/09/2016,06-11143,417.22,Ashley House Nursing Home
Nottinghamshire County Council,1111/1001,Adult Social Care and Health,ASCH,Third Party Payments,ECA,05/09/2016,06-11145,574.2,Ashley House Nursing Home
Nottinghamshire County Council,1111/1001,Adult Social Care and Health,ASCH,Third Party Payments,ECA,05/09/2016,06-11146,417.22,Ashley House Nursing Home
Nottinghamshire County Council,1111/1001,Adult Social Care and Health,ASCH,Third Party Payments,ECA,05/09/2016,06-11149,417.22,Ashley House Nursing Home
Nottinghamshire County Council,1111/1001,Adult Social Care and Health,ASCH,Third Party Payments,ECA,05/09/2016,06-11153,417.22,Ashley House Nursing Home
Nottinghamshire County Council,1111/1001,Adult Social Care and Health,ASCH,Third Party Payments,ECA,05/09/2016,06-11155,574.2,Ashley House Nursing Home
Nottinghamshire County Council,1111/1001,Adult Social Care and Health,ASCH,Third Party Payments,ECA,05/09/2016,06-11156,417.22,Ashley House Nursing Home
Nottinghamshire County Council,1111/1001,Adult Social Care and Health,ASCH,Third Party Payments,ECA,05/09/2016,06-11158,417.22,Ashley House Nursing Home
Nottinghamshire County Council,1111/1001,Adult Social Care and Health,ASCH,Third Party Payments,ECA,05/09/2016,06-11160,417.22,Ashley House Nursing Home
Nottinghamshire County Council,1111/1001,Adult Social Care and Health,ASCH,Third Party Payments,ECA,05/09/2016,06-11165,417.22,Aslockton Hall Nursing Home
Nottinghamshire County Council,1111/1001,Adult Social Care and Health,ASCH,Third Party Payments,ECA,05/09/2016,06-11167,417.22,Aslockton Hall Nursing Home
Nottinghamshire County Council,1111/1001,Adult Social Care and Health,ASCH,Third Party Payments,ECA,05/09/2016,06-11169,417.22,Aslockton Hall Nursing Home
Nottinghamshire County Council,1111/1001,Adult Social Care and Health,ASCH,Third Party Payments,ECA,05/09/2016,06-11200,417.21,Pinxton Manor
Nottinghamshire County Council,1111/1001,Adult Social Care and Health,ASCH,Third Party Payments,ECA,05/09/2016,06-11202,417.22,Rodenvine Nottm Ltd T/A Parker Hous
Nottinghamshire County Council,1111/1001,Adult Social Care and Health,ASCH,Third Party Payments,ECA,05/09/2016,06-11204,417.22,Rodenvine Nottm Ltd T/A Parker Hous
Nottinghamshire County Council,1111/1001,Adult Social Care and Health,ASCH,Third Party Payments,ECA,05/09/2016,06-11206,417.22,Rodenvine Nottm Ltd T/A Parker Hous
Nottinghamshire County Council,1111/1001,Adult Social Care and Health,ASCH,Third Party Payments,ECA,05/09/2016,06-11208,417.22,Rodenvine Nottm Ltd T/A Parker Hous
Nottinghamshire County Council,1111/1001,Adult Social Care and Health,ASCH,Third Party Payments,ECA,05/09/2016,06-11210,417.22,Rodenvine Nottm Ltd T/A Parker Hous
Nottinghamshire County Council,1111/1001,Adult Social Care and Health,ASCH,Third Party Payments,ECA,05/09/2016,06-11212,417.22,Rodenvine Nottm Ltd T/A Parker Hous
Nottinghamshire County Council,1111/1001,Adult Social Care and Health,ASCH,Third Party Payments,ECA,05/09/2016,06-11216,417.22,Rodenvine Nottm Ltd T/A Parker Hous
Nottinghamshire County Council,1111/1001,Adult Social Care and Health,ASCH,Third Party Payments,ECA,05/09/2016,06-11218,417.22,Rodenvine Nottm Ltd T/A Parker Hous
Nottinghamshire County Council,1111/1001,Adult Social Care and Health,ASCH,Third Party Payments,ECA,05/09/2016,06-11220,417.21,Gables Nursing Home
Nottinghamshire County Council,1111/1001,Adult Social Care and Health,ASCH,Third Party Payments,ECA,05/09/2016,06-11222,417.22,Gables Nursing Home
Nottinghamshire County Council,1111/1001,Adult Social Care and Health,ASCH,Third Party Payments,ECA,05/09/2016,06-11224,417.22,Gables Nursing Home
Nottinghamshire County Council,1111/1001,Adult Social Care and Health,ASCH,Third Party Payments,ECA,05/09/2016,06-11227,417.22,Gables Nursing Home
Nottinghamshire County Council,1111/1001,Adult Social Care and Health,ASCH,Third Party Payments,ECA,05/09/2016,06-11229,417.22,Gables Nursing Home
Nottinghamshire County Council,1111/1001,Adult Social Care and Health,ASCH,Third Party Payments,ECA,05/09/2016,06-11232,417.22,Gables Nursing Home
Nottinghamshire County Council,1111/1001,Adult Social Care and Health,ASCH,Third Party Payments,ECA,05/09/2016,06-11234,417.22,Gables Nursing Home
Nottinghamshire County Council,1111/1001,Adult Social Care and Health,ASCH,Third Party Payments,ECA,05/09/2016,06-11249,1160.71,The Firs Nursing Home
Nottinghamshire County Council,1111/1001,Adult Social Care and Health,ASCH,Third Party Payments,ECA,05/09/2016,06-11251,417.22,Forest Hill Nursing Home
Nottinghamshire County Council,1111/1001,Adult Social Care and Health,ASCH,Third Party Payments,ECA,05/09/2016,06-11254,417.22,Forest Hill Nursing Home
Nottinghamshire County Council,1111/1001,Adult Social Care and Health,ASCH,Third Party Payments,ECA,05/09/2016,06-11256,417.22,Forest Hill Nursing Home
Nottinghamshire County Council,1111/1001,Adult Social Care and Health,ASCH,Third Party Payments,ECA,05/09/2016,06-11258,417.22,Forest Hill Nursing Home
Nottinghamshire County Council,1111/1001,Adult Social Care and Health,ASCH,Third Party Payments,ECA,05/09/2016,06-11260,417.22,Forest Hill Nursing Home
Nottinghamshire County Council,1111/1001,Adult Social Care and Health,ASCH,Third Party Payments,ECA,05/09/2016,06-11262,417.22,Forest Hill Nursing Home
Nottinghamshire County Council,1111/1001,Adult Social Care and Health,ASCH,Third Party Payments,ECA,05/09/2016,06-11266,417.22,Forest Hill Nursing Home
Nottinghamshire County Council,1111/1001,Adult Social Care and Health,ASCH,Third Party Payments,ECA,05/09/2016,06-11269,417.22,Forest Hill Nursing Home
Nottinghamshire County Council,1111/1001,Adult Social Care and Health,ASCH,Third Party Payments,ECA,05/09/2016,06-11271,417.22,Forest Hill Nursing Home
Nottinghamshire County Council,1111/1001,Adult Social Care and Health,ASCH,Third Party Payments,ECA,05/09/2016,06-11273,417.22,Forest Hill Nursing Home
Nottinghamshire County Council,1111/1001,Adult Social Care and Health,ASCH,Third Party Payments,ECA,05/09/2016,06-11275,417.22,Forest Hill Nursing Home
Nottinghamshire County Council,1111/1001,Adult Social Care and Health,ASCH,Third Party Payments,ECA,05/09/2016,06-11278,417.22,Forest Hill Nursing Home
Nottinghamshire County Council,1111/1001,Adult Social Care and Health,ASCH,Third Party Payments,ECA,05/09/2016,06-11280,417.22,Forest Hill Nursing Home
Nottinghamshire County Council,1111/1001,Adult Social Care and Health,ASCH,Third Party Payments,ECA,05/09/2016,06-11282,417.22,Forest Hill Nursing Home
Nottinghamshire County Council,1111/1001,Adult Social Care and Health,ASCH,Third Party Payments,ECA,05/09/2016,06-11284,417.22,Forest Hill Nursing Home
Nottinghamshire County Council,1111/1001,Adult Social Care and Health,ASCH,Third Party Payments,ECA,05/09/2016,06-11286,417.22,Forest Hill Nursing Home
Nottinghamshire County Council,1111/1001,Adult Social Care and Health,ASCH,Third Party Payments,ECA,05/09/2016,06-11289,417.22,Woodhall Park Nursing Home
Nottinghamshire County Council,1111/1001,Adult Social Care and Health,ASCH,Third Party Payments,ECA,05/09/2016,06-11291,246.54,Woodthorpe Manor Nursing Home
Nottinghamshire County Council,1111/1001,Adult Social Care and Health,ASCH,Third Party Payments,ECA,05/09/2016,06-11293,417.22,Woodthorpe Manor Nursing Home
Nottinghamshire County Council,1111/1001,Adult Social Care and Health,ASCH,Third Party Payments,ECA,05/09/2016,06-11304,417.21,The Moorlands Nursing Home
Nottinghamshire County Council,1111/1001,Adult Social Care and Health,ASCH,Third Party Payments,ECA,05/09/2016,06-11306,417.22,The Moorlands Nursing Home
Nottinghamshire County Council,1111/1001,Adult Social Care and Health,ASCH,Third Party Payments,ECA,05/09/2016,06-11310,417.22,The Moorlands Nursing Home
Nottinghamshire County Council,1111/1001,Adult Social Care and Health,ASCH,Third Party Payments,ECA,05/09/2016,06-11314,417.22,The Moorlands Nursing Home
Nottinghamshire County Council,1111/1001,Adult Social Care and Health,ASCH,Third Party Payments,ECA,05/09/2016,06-11320,417.22,The Moorlands Nursing Home
Nottinghamshire County Council,1111/1001,Adult Social Care and Health,ASCH,Third Party Payments,ECA,05/09/2016,06-11335,417.22,Church Farm Nursing Home Ltd
Nottinghamshire County Council,1111/1001,Adult Social Care and Health,ASCH,Third Party Payments,ECA,05/09/2016,06-11337,417.22,Church Farm Nursing Home Ltd
Nottinghamshire County Council,1111/1001,Adult Social Care and Health,ASCH,Third Party Payments,ECA,05/09/2016,06-11339,574.2,Church Farm Nursing Home Ltd
Nottinghamshire County Council,1111/1001,Adult Social Care and Health,ASCH,Third Party Payments,ECA,05/09/2016,06-11340,417.22,Church Farm Nursing Home Ltd
Nottinghamshire County Council,1111/1001,Adult Social Care and Health,ASCH,Third Party Payments,ECA,05/09/2016,06-11342,417.22,Church Farm Nursing Home Ltd
Nottinghamshire County Council,1111/1001,Adult Social Care and Health,ASCH,Third Party Payments,ECA,05/09/2016,06-11344,417.22,Church Farm Nursing Home Ltd
Nottinghamshire County Council,1111/1001,Adult Social Care and Health,ASCH,Third Party Payments,ECA,05/09/2016,06-11346,417.22,Church Farm Nursing Home Ltd
Nottinghamshire County Council,1111/1001,Adult Social Care and Health,ASCH,Third Party Payments,ECA,05/09/2016,06-11348,417.22,Church Farm Nursing Home Ltd
Nottinghamshire County Council,1111/1001,Adult Social Care and Health,ASCH,Third Party Payments,ECA,05/09/2016,06-11351,107.47,Countrywide Care Homes Ltd T/A Gate
Nottinghamshire County Council,1111/1001,Adult Social Care and Health,ASCH,Third Party Payments,ECA,05/09/2016,06-11353,417.22,Countrywide Care Homes Ltd T/A Gate
Nottinghamshire County Council,1111/1001,Adult Social Care and Health,ASCH,Third Party Payments,ECA,05/09/2016,06-11357,417.22,Countrywide Care Homes Ltd T/A Gate
Nottinghamshire County Council,1111/1001,Adult Social Care and Health,ASCH,Third Party Payments,ECA,05/09/2016,06-11359,574.2,Countrywide Care Homes Ltd T/A Gate
Nottinghamshire County Council,1111/1001,Adult Social Care and Health,ASCH,Third Party Payments,ECA,05/09/2016,06-11361,417.22,Countrywide Care Homes Ltd T/A Gate
Nottinghamshire County Council,1111/1001,Adult Social Care and Health,ASCH,Third Party Payments,ECA,05/09/2016,06-11363,417.22,Countrywide Care Homes Ltd T/A Gate
Nottinghamshire County Council,1111/1001,Adult Social Care and Health,ASCH,Third Party Payments,ECA,05/09/2016,06-11365,417.22,Countrywide Care Homes Ltd T/A Gate
Nottinghamshire County Council,1111/1001,Adult Social Care and Health,ASCH,Third Party Payments,ECA,05/09/2016,06-11368,417.22,Countrywide Care Homes Ltd T/A Gate
Nottinghamshire County Council,1111/1001,Adult Social Care and Health,ASCH,Third Party Payments,ECA,05/09/2016,06-11378,417.22,Countrywide Care Homes Ltd T/A Gate
Nottinghamshire County Council,1111/1001,Adult Social Care and Health,ASCH,Third Party Payments,ECA,05/09/2016,06-11383,417.22,Countrywide Care Homes Ltd T/A Gate
Nottinghamshire County Council,1111/1001,Adult Social Care and Health,ASCH,Third Party Payments,ECA,05/09/2016,06-11393,385.61,Red Rose Nursing Home
Nottinghamshire County Council,1111/1001,Adult Social Care and Health,ASCH,Third Party Payments,ECA,05/09/2016,06-11395,417.22,Red Rose Nursing Home
Nottinghamshire County Council,1111/1001,Adult Social Care and Health,ASCH,Third Party Payments,ECA,05/09/2016,06-11399,417.22,Red Rose Nursing Home
Nottinghamshire County Council,1111/1001,Adult Social Care and Health,ASCH,Third Party Payments,ECA,05/09/2016,06-11401,417.22,Red Rose Nursing Home
Nottinghamshire County Council,1111/1001,Adult Social Care and Health,ASCH,Third Party Payments,ECA,05/09/2016,06-11403,417.22,Red Rose Nursing Home
Nottinghamshire County Council,1111/1001,Adult Social Care and Health,ASCH,Third Party Payments,ECA,05/09/2016,06-11405,417.22,Red Rose Nursing Home
Nottinghamshire County Council,1111/1001,Adult Social Care and Health,ASCH,Third Party Payments,ECA,05/09/2016,06-11408,417.22,Red Rose Nursing Home
Nottinghamshire County Council,1111/1001,Adult Social Care and Health,ASCH,Third Party Payments,ECA,05/09/2016,06-11411,417.22,Red Rose Nursing Home
Nottinghamshire County Council,1111/1001,Adult Social Care and Health,ASCH,Third Party Payments,ECA,05/09/2016,06-11413,417.22,Red Rose Nursing Home
Nottinghamshire County Council,1111/1001,Adult Social Care and Health,ASCH,Third Party Payments,ECA,05/09/2016,06-11503,417.22,Hazel Grove Nursing Home
Nottinghamshire County Council,1111/1001,Adult Social Care and Health,ASCH,Third Party Payments,ECA,05/09/2016,06-11506,417.22,Hazel Grove Nursing Home
Nottinghamshire County Council,1111/1001,Adult Social Care and Health,ASCH,Third Party Payments,ECA,05/09/2016,06-11509,574.2,Hazel Grove Nursing Home
Nottinghamshire County Council,1111/1001,Adult Social Care and Health,ASCH,Third Party Payments,ECA,05/09/2016,06-11512,417.22,Hazel Grove Nursing Home
Nottinghamshire County Council,1111/1001,Adult Social Care and Health,ASCH,Third Party Payments,ECA,05/09/2016,06-11514,417.22,Hazel Grove Nursing Home
Nottinghamshire County Council,1111/1001,Adult Social Care and Health,ASCH,Third Party Payments,ECA,05/09/2016,06-11517,417.22,Hazel Grove Nursing Home
Nottinghamshire County Council,1111/1001,Adult Social Care and Health,ASCH,Third Party Payments,ECA,05/09/2016,06-11519,417.22,Hazel Grove Nursing Home
Nottinghamshire County Council,1111/1001,Adult Social Care and Health,ASCH,Third Party Payments,ECA,05/09/2016,06-11521,417.22,Hazel Grove Nursing Home
Nottinghamshire County Council,1111/1001,Adult Social Care and Health,ASCH,Third Party Payments,ECA,05/09/2016,06-11523,417.22,Hazel Grove Nursing Home
Nottinghamshire County Council,1111/1001,Adult Social Care and Health,ASCH,Third Party Payments,ECA,05/09/2016,06-11556,574.2,Four Seasons Homes (Ilkeston) Limit
Nottinghamshire County Council,1111/1001,Adult Social Care and Health,ASCH,Third Party Payments,ECA,05/09/2016,06-11558,417.22,Four Seasons Homes (Ilkeston) Limit
Nottinghamshire County Council,1111/1001,Adult Social Care and Health,ASCH,Third Party Payments,ECA,05/09/2016,06-11562,417.22,Four Seasons Homes (Ilkeston) Limit
Nottinghamshire County Council,1111/1001,Adult Social Care and Health,ASCH,Third Party Payments,ECA,05/09/2016,06-11598,417.22,Eton Park Nursing Home-In Administr
Nottinghamshire County Council,1111/1001,Adult Social Care and Health,ASCH,Third Party Payments,ECA,05/09/2016,06-11600,417.22,Eton Park Nursing Home-In Administr
Nottinghamshire County Council,1111/1001,Adult Social Care and Health,ASCH,Third Party Payments,ECA,05/09/2016,06-11602,417.22,Eton Park Nursing Home-In Administr
Nottinghamshire County Council,1111/1001,Adult Social Care and Health,ASCH,Third Party Payments,ECA,05/09/2016,06-11604,417.22,Eton Park Nursing Home-In Administr
Nottinghamshire County Council,1111/1001,Adult Social Care and Health,ASCH,Third Party Payments,ECA,05/09/2016,06-11606,417.22,Eton Park Residential Home-In Admin
Nottinghamshire County Council,1111/1001,Adult Social Care and Health,ASCH,Third Party Payments,ECA,05/09/2016,06-11612,417.22,Eton Park Residential Home-In Admin
Nottinghamshire County Council,1111/1001,Adult Social Care and Health,ASCH,Third Party Payments,ECA,05/09/2016,06-11628,417.21,Autism East Midlands
Nottinghamshire County Council,1111/1001,Adult Social Care and Health,ASCH,Third Party Payments,ECA,05/09/2016,06-11646,417.22,Adbolton Hall Nursing Home
Nottinghamshire County Council,1111/1001,Adult Social Care and Health,ASCH,Third Party Payments,ECA,05/09/2016,06-11649,417.22,Adbolton Hall Nursing Home
Nottinghamshire County Council,1111/1001,Adult Social Care and Health,ASCH,Third Party Payments,ECA,05/09/2016,06-11653,417.22,Adbolton Hall Nursing Home
Nottinghamshire County Council,1111/1001,Adult Social Care and Health,ASCH,Third Party Payments,ECA,05/09/2016,06-11656,417.22,Adbolton Hall Nursing Home
Nottinghamshire County Council,1111/1001,Adult Social Care and Health,ASCH,Third Party Payments,ECA,05/09/2016,06-11659,170.68,Adbolton Hall Nursing Home
Nottinghamshire County Council,1111/1001,Adult Social Care and Health,ASCH,Third Party Payments,ECA,05/09/2016,06-11661,417.22,Adbolton Hall Nursing Home
Nottinghamshire County Council,1111/1001,Adult Social Care and Health,ASCH,Third Party Payments,ECA,05/09/2016,06-11663,417.22,Adbolton Hall Nursing Home
Nottinghamshire County Council,1111/1001,Adult Social Care and Health,ASCH,Third Party Payments,ECA,05/09/2016,06-11665,417.22,Adbolton Hall Nursing Home
Nottinghamshire County Council,1111/1001,Adult Social Care and Health,ASCH,Third Party Payments,ECA,05/09/2016,06-11667,417.22,Adbolton Hall Nursing Home
Nottinghamshire County Council,1111/1001,Adult Social Care and Health,ASCH,Third Party Payments,ECA,05/09/2016,06-11669,417.22,Adbolton Hall Nursing Home
Nottinghamshire County Council,1111/1001,Adult Social Care and Health,ASCH,Third Party Payments,ECA,05/09/2016,06-11671,417.22,Adbolton Hall Nursing Home
Nottinghamshire County Council,1111/1001,Adult Social Care and Health,ASCH,Third Party Payments,ECA,05/09/2016,06-11673,417.22,Adbolton Hall Nursing Home
Nottinghamshire County Council,1111/1001,Adult Social Care and Health,ASCH,Third Party Payments,ECA,05/09/2016,06-11723,297.11,Elmbank Nursing Home
Nottinghamshire County Council,1111/1001,Adult Social Care and Health,ASCH,Third Party Payments,ECA,05/09/2016,06-11762,417.22,Mansfield Manor Care Home
Nottinghamshire County Council,1111/1001,Adult Social Care and Health,ASCH,Third Party Payments,ECA,05/09/2016,06-11764,417.22,Mansfield Manor Care Home
Nottinghamshire County Council,1111/1001,Adult Social Care and Health,ASCH,Third Party Payments,ECA,05/09/2016,06-11766,417.22,Mansfield Manor Care Home
Nottinghamshire County Council,1111/1001,Adult Social Care and Health,ASCH,Third Party Payments,ECA,05/09/2016,06-11768,417.22,Mansfield Manor Care Home
Nottinghamshire County Council,1111/1001,Adult Social Care and Health,ASCH,Third Party Payments,ECA,05/09/2016,06-11770,417.22,Mansfield Manor Care Home
Nottinghamshire County Council,1111/1001,Adult Social Care and Health,ASCH,Third Party Payments,ECA,05/09/2016,06-11775,417.22,Mansfield Manor Care Home
Nottinghamshire County Council,1111/1001,Adult Social Care and Health,ASCH,Third Party Payments,ECA,05/09/2016,06-11777,417.22,Mansfield Manor Care Home
Nottinghamshire County Council,1111/1001,Adult Social Care and Health,ASCH,Third Party Payments,ECA,05/09/2016,06-11779,417.22,Mansfield Manor Care Home
Nottinghamshire County Council,1111/1001,Adult Social Care and Health,ASCH,Third Party Payments,ECA,05/09/2016,06-11781,417.22,Mansfield Manor Care Home
Nottinghamshire County Council,1111/1001,Adult Social Care and Health,ASCH,Third Party Payments,ECA,05/09/2016,06-11783,417.22,Mansfield Manor Care Home
Nottinghamshire County Council,1111/1001,Adult Social Care and Health,ASCH,Third Party Payments,ECA,05/09/2016,06-11785,417.22,Mansfield Manor Care Home
Nottinghamshire County Council,1111/1001,Adult Social Care and Health,ASCH,Third Party Payments,ECA,05/09/2016,06-11813,417.22,Balmore Country House
Nottinghamshire County Council,1111/1001,Adult Social Care and Health,ASCH,Third Party Payments,ECA,05/09/2016,06-11815,417.22,Balmore Country House
Nottinghamshire County Council,1111/1001,Adult Social Care and Health,ASCH,Third Party Payments,ECA,05/09/2016,06-11827,417.22,Field House Nursing Home
Nottinghamshire County Council,1111/1001,Adult Social Care and Health,ASCH,Third Party Payments,ECA,05/09/2016,06-11832,417.22,Field House Nursing Home
Nottinghamshire County Council,1111/1001,Adult Social Care and Health,ASCH,Third Party Payments,ECA,05/09/2016,06-11834,417.22,Field House Nursing Home
Nottinghamshire County Council,1111/1001,Adult Social Care and Health,ASCH,Third Party Payments,ECA,05/09/2016,06-11848,417.22,Giltbrook Health Care Ltd
Nottinghamshire County Council,1111/1001,Adult Social Care and Health,ASCH,Third Party Payments,ECA,05/09/2016,06-11850,417.22,Giltbrook Health Care Ltd
Nottinghamshire County Council,1111/1001,Adult Social Care and Health,ASCH,Third Party Payments,ECA,05/09/2016,06-11854,417.22,Giltbrook Health Care Ltd
Nottinghamshire County Council,1111/1001,Adult Social Care and Health,ASCH,Third Party Payments,ECA,05/09/2016,06-11858,417.22,Giltbrook Health Care Ltd
Nottinghamshire County Council,1111/1001,Adult Social Care and Health,ASCH,Third Party Payments,ECA,05/09/2016,06-11860,417.22,Giltbrook Health Care Ltd
Nottinghamshire County Council,1111/1001,Adult Social Care and Health,ASCH,Third Party Payments,ECA,05/09/2016,06-11862,120.11,Giltbrook Health Care Ltd
Nottinghamshire County Council,1111/1001,Adult Social Care and Health,ASCH,Third Party Payments,ECA,05/09/2016,06-11864,417.22,Giltbrook Health Care Ltd
Nottinghamshire County Council,1111/1001,Adult Social Care and Health,ASCH,Third Party Payments,ECA,05/09/2016,06-11867,126.43,Giltbrook Health Care Ltd
Nottinghamshire County Council,1111/1001,Adult Social Care and Health,ASCH,Third Party Payments,ECA,05/09/2016,06-11872,354,The Firs
Nottinghamshire County Council,1111/1001,Adult Social Care and Health,ASCH,Third Party Payments,ECA,05/09/2016,06-11900,417.22,Lowmoor Nursing Home
Nottinghamshire County Council,1111/1001,Adult Social Care and Health,ASCH,Third Party Payments,ECA,05/09/2016,06-11902,417.22,Lowmoor Nursing Home
Nottinghamshire County Council,1111/1001,Adult Social Care and Health,ASCH,Third Party Payments,ECA,05/09/2016,06-11905,177,Lowmoor Nursing Home
Nottinghamshire County Council,1111/1001,Adult Social Care and Health,ASCH,Third Party Payments,ECA,05/09/2016,06-11908,574.2,Lowmoor Nursing Home
Nottinghamshire County Council,1111/1001,Adult Social Care and Health,ASCH,Third Party Payments,ECA,05/09/2016,06-11911,391.93,Lowmoor Nursing Home
Nottinghamshire County Council,1111/1001,Adult Social Care and Health,ASCH,Third Party Payments,ECA,05/09/2016,06-11913,417.22,Lowmoor Nursing Home
Nottinghamshire County Council,1111/1001,Adult Social Care and Health,ASCH,Third Party Payments,ECA,05/09/2016,06-12008,328.71,Broadgate Nursing Home
Nottinghamshire County Council,1111/1001,Adult Social Care and Health,ASCH,Third Party Payments,ECA,05/09/2016,06-12011,417.22,Broadgate Nursing Home
Nottinghamshire County Council,1111/1001,Adult Social Care and Health,ASCH,Third Party Payments,ECA,05/09/2016,06-12013,82.18,Broadgate Nursing Home
Nottinghamshire County Council,1111/1001,Adult Social Care and Health,ASCH,Third Party Payments,ECA,05/09/2016,06-12016,417.22,Broadgate Nursing Home
Nottinghamshire County Council,1111/1001,Adult Social Care and Health,ASCH,Third Party Payments,ECA,05/09/2016,06-12018,417.22,Broadgate Nursing Home
Nottinghamshire County Council,1111/1001,Adult Social Care and Health,ASCH,Third Party Payments,ECA,05/09/2016,06-12020,417.22,Broadgate Nursing Home
Nottinghamshire County Council,1111/1001,Adult Social Care and Health,ASCH,Third Party Payments,ECA,05/09/2016,06-12024,417.22,Broadgate Nursing Home
Nottinghamshire County Council,1111/1001,Adult Social Care and Health,ASCH,Third Party Payments,ECA,05/09/2016,06-12027,417.22,Broadgate Nursing Home
Nottinghamshire County Council,1111/1001,Adult Social Care and Health,ASCH,Third Party Payments,ECA,05/09/2016,06-12030,417.22,Broadgate Nursing Home
Nottinghamshire County Council,1111/1001,Adult Social Care and Health,ASCH,Third Party Payments,ECA,05/09/2016,06-12032,417.22,Broadgate Nursing Home
Nottinghamshire County Council,1111/1001,Adult Social Care and Health,ASCH,Third Party Payments,ECA,05/09/2016,06-12035,379.29,Broadgate Nursing Home
Nottinghamshire County Council,1111/1001,Adult Social Care and Health,ASCH,Third Party Payments,ECA,05/09/2016,06-12038,417.22,Byars Nursing Home
Nottinghamshire County Council,1111/1001,Adult Social Care and Health,ASCH,Third Party Payments,ECA,05/09/2016,06-12040,417.22,Byars Nursing Home
Nottinghamshire County Council,1111/1001,Adult Social Care and Health,ASCH,Third Party Payments,ECA,05/09/2016,06-12042,417.22,Byars Nursing Home
Nottinghamshire County Council,1111/1001,Adult Social Care and Health,ASCH,Third Party Payments,ECA,05/09/2016,06-12045,417.22,Byars Nursing Home
Nottinghamshire County Council,1111/1001,Adult Social Care and Health,ASCH,Third Party Payments,ECA,05/09/2016,06-12047,417.22,Byars Nursing Home
Nottinghamshire County Council,1111/1001,Adult Social Care and Health,ASCH,Third Party Payments,ECA,05/09/2016,06-12049,417.21,Byars Nursing Home
Nottinghamshire County Council,1111/1001,Adult Social Care and Health,ASCH,Third Party Payments,ECA,05/09/2016,06-12058,417.22,Victoria Care Home
Nottinghamshire County Council,1111/1001,Adult Social Care and Health,ASCH,Third Party Payments,ECA,05/09/2016,06-12061,417.22,Victoria Care Home
Nottinghamshire County Council,1111/1001,Adult Social Care and Health,ASCH,Third Party Payments,ECA,05/09/2016,06-12067,398.25,Victoria Care Home
Nottinghamshire County Council,1111/1001,Adult Social Care and Health,ASCH,Third Party Payments,ECA,05/09/2016,06-12075,417.22,Victoria Care Home
Nottinghamshire County Council,1111/1001,Adult Social Care and Health,ASCH,Third Party Payments,ECA,05/09/2016,06-12078,417.22,Victoria Care Home
Nottinghamshire County Council,1111/1001,Adult Social Care and Health,ASCH,Third Party Payments,ECA,05/09/2016,06-12081,417.22,Victoria Care Home
Nottinghamshire County Council,1111/1001,Adult Social Care and Health,ASCH,Third Party Payments,ECA,05/09/2016,06-12083,417.22,Victoria Care Home
Nottinghamshire County Council,1111/1001,Adult Social Care and Health,ASCH,Third Party Payments,ECA,05/09/2016,06-12086,417.22,Victoria Care Home
Nottinghamshire County Council,1111/1001,Adult Social Care and Health,ASCH,Third Party Payments,ECA,05/09/2016,06-12092,417.22,Victoria Care Home
Nottinghamshire County Council,1111/1001,Adult Social Care and Health,ASCH,Third Party Payments,ECA,05/09/2016,06-12165,417.22,Lound Hall Nursing Home
Nottinghamshire County Council,1111/1001,Adult Social Care and Health,ASCH,Third Party Payments,ECA,05/09/2016,06-12168,417.22,Lound Hall Nursing Home
Nottinghamshire County Council,1111/1001,Adult Social Care and Health,ASCH,Third Party Payments,ECA,05/09/2016,06-12173,417.22,Lound Hall Nursing Home
Nottinghamshire County Council,1111/1001,Adult Social Care and Health,ASCH,Third Party Payments,ECA,05/09/2016,06-12179,417.22,Blyth Country House Care Home
Nottinghamshire County Council,1111/1001,Adult Social Care and Health,ASCH,Third Party Payments,ECA,05/09/2016,06-12181,417.22,Blyth Country House Care Home
Nottinghamshire County Council,1111/1001,Adult Social Care and Health,ASCH,Third Party Payments,ECA,05/09/2016,06-12183,417.22,Blyth Country House Care Home
Nottinghamshire County Council,1111/1001,Adult Social Care and Health,ASCH,Third Party Payments,ECA,05/09/2016,06-12186,88.5,Blyth Country House Care Home
Nottinghamshire County Council,1111/1001,Adult Social Care and Health,ASCH,Third Party Payments,ECA,05/09/2016,06-12189,417.22,Blyth Country House Care Home
Nottinghamshire County Council,1111/1001,Adult Social Care and Health,ASCH,Third Party Payments,ECA,05/09/2016,06-12220,417.22,Cherry Holt Care Home
Nottinghamshire County Council,1111/1001,Adult Social Care and Health,ASCH,Third Party Payments,ECA,05/09/2016,06-12222,417.22,Cherry Holt Care Home
Nottinghamshire County Council,1111/1001,Adult Social Care and Health,ASCH,Third Party Payments,ECA,05/09/2016,06-12225,417.22,Cherry Holt Care Home
Nottinghamshire County Council,1111/1001,Adult Social Care and Health,ASCH,Third Party Payments,ECA,05/09/2016,06-12227,417.22,Cherry Holt Care Home
Nottinghamshire County Council,1111/1001,Adult Social Care and Health,ASCH,Third Party Payments,ECA,05/09/2016,06-12230,417.22,Cherry Holt Care Home
Nottinghamshire County Council,1111/1001,Adult Social Care and Health,ASCH,Third Party Payments,ECA,05/09/2016,06-12234,417.22,Cherry Holt Care Home
Nottinghamshire County Council,1111/1001,Adult Social Care and Health,ASCH,Third Party Payments,ECA,05/09/2016,06-12236,574.2,Cherry Holt Care Home
Nottinghamshire County Council,1111/1001,Adult Social Care and Health,ASCH,Third Party Payments,ECA,05/09/2016,06-12239,417.22,Cherry Holt Care Home
Nottinghamshire County Council,1111/1001,Adult Social Care and Health,ASCH,Third Party Payments,ECA,05/09/2016,06-12241,417.22,Cherry Holt Care Home
Nottinghamshire County Council,1111/1001,Adult Social Care and Health,ASCH,Third Party Payments,ECA,05/09/2016,06-12244,417.22,Cherry Holt Care Home
Nottinghamshire County Council,1111/1001,Adult Social Care and Health,ASCH,Third Party Payments,ECA,05/09/2016,06-12248,37.93,Cherry Holt Care Home
Nottinghamshire County Council,1111/1001,Adult Social Care and Health,ASCH,Third Party Payments,ECA,05/09/2016,06-12251,417.22,Cherry Holt Care Home
Nottinghamshire County Council,1111/1001,Adult Social Care and Health,ASCH,Third Party Payments,ECA,05/09/2016,06-12253,417.22,Cherry Holt Care Home
Nottinghamshire County Council,1111/1001,Adult Social Care and Health,ASCH,Third Party Payments,ECA,05/09/2016,06-12263,417.21,Stanton Hall Nursing Home
Nottinghamshire County Council,1111/1001,Adult Social Care and Health,ASCH,Third Party Payments,ECA,05/09/2016,06-12265,417.22,Stoke House Nursing Home
Nottinghamshire County Council,1111/1001,Adult Social Care and Health,ASCH,Third Party Payments,ECA,05/09/2016,06-12267,417.22,Stoke House Nursing Home
Nottinghamshire County Council,1111/1001,Adult Social Care and Health,ASCH,Third Party Payments,ECA,05/09/2016,06-12269,417.22,Stoke House Nursing Home
Nottinghamshire County Council,1111/1001,Adult Social Care and Health,ASCH,Third Party Payments,ECA,05/09/2016,06-12271,417.22,Stoke House Nursing Home
Nottinghamshire County Council,1111/1001,Adult Social Care and Health,ASCH,Third Party Payments,ECA,05/09/2016,06-12273,417.22,Stoke House Nursing Home
Nottinghamshire County Council,1111/1001,Adult Social Care and Health,ASCH,Third Party Payments,ECA,05/09/2016,06-12276,417.22,Stoke House Nursing Home
Nottinghamshire County Council,1111/1001,Adult Social Care and Health,ASCH,Third Party Payments,ECA,05/09/2016,06-12278,417.22,Stoke House Nursing Home
Nottinghamshire County Council,1111/1001,Adult Social Care and Health,ASCH,Third Party Payments,ECA,05/09/2016,06-12281,417.22,Oakdene Care Home
Nottinghamshire County Council,1111/1001,Adult Social Care and Health,ASCH,Third Party Payments,ECA,05/09/2016,06-12323,417.22,Alexandra Nursing Home
Nottinghamshire County Council,1111/1001,Adult Social Care and Health,ASCH,Third Party Payments,ECA,05/09/2016,06-12325,417.22,Alexandra Nursing Home
Nottinghamshire County Council,1111/1001,Adult Social Care and Health,ASCH,Third Party Payments,ECA,05/09/2016,06-12338,417.22,Ernhale Lodge Nursing Home
Nottinghamshire County Council,1111/1001,Adult Social Care and Health,ASCH,Third Party Payments,ECA,05/09/2016,06-12340,417.22,Ernhale Lodge Nursing Home
Nottinghamshire County Council,1111/1001,Adult Social Care and Health,ASCH,Third Party Payments,ECA,05/09/2016,06-12342,417.22,Ernhale Lodge Nursing Home
Nottinghamshire County Council,1111/1001,Adult Social Care and Health,ASCH,Third Party Payments,ECA,05/09/2016,06-12344,417.22,Ernhale Lodge Nursing Home
Nottinghamshire County Council,1111/1001,Adult Social Care and Health,ASCH,Third Party Payments,ECA,05/09/2016,06-12346,417.22,Ernhale Lodge Nursing Home
Nottinghamshire County Council,1111/1001,Adult Social Care and Health,ASCH,Third Party Payments,ECA,05/09/2016,06-12348,417.22,Ernhale Lodge Nursing Home
Nottinghamshire County Council,1111/1001,Adult Social Care and Health,ASCH,Third Party Payments,ECA,05/09/2016,06-12355,284.46,West Lodge Nursing Home
Nottinghamshire County Council,1111/1001,Adult Social Care and Health,ASCH,Third Party Payments,ECA,05/09/2016,06-12383,417.22,Pathfinders Neurological Care Centr
Nottinghamshire County Council,1111/1001,Adult Social Care and Health,ASCH,Third Party Payments,ECA,05/09/2016,06-12386,417.22,Pathfinders Neurological Care Centr
Nottinghamshire County Council,1111/1001,Adult Social Care and Health,ASCH,Third Party Payments,ECA,05/09/2016,06-12389,417.22,Pathfinders Neurological Care Centr
Nottinghamshire County Council,1111/1001,Adult Social Care and Health,ASCH,Third Party Payments,ECA,05/09/2016,06-12396,417.22,Pathfinders Neurological Care Centr
Nottinghamshire County Council,1111/1001,Adult Social Care and Health,ASCH,Third Party Payments,ECA,05/09/2016,06-12399,417.22,Pathfinders Neurological Care Centr
Nottinghamshire County Council,1111/1001,Adult Social Care and Health,ASCH,Third Party Payments,ECA,05/09/2016,06-12401,417.22,Pathfinders Neurological Care Centr
Nottinghamshire County Council,1111/1001,Adult Social Care and Health,ASCH,Third Party Payments,ECA,05/09/2016,06-12403,417.22,Pathfinders Neurological Care Centr
Nottinghamshire County Council,1111/1001,Adult Social Care and Health,ASCH,Third Party Payments,ECA,05/09/2016,06-12405,417.22,Pathfinders Neurological Care Centr
Nottinghamshire County Council,1111/1001,Adult Social Care and Health,ASCH,Third Party Payments,ECA,05/09/2016,06-12407,417.22,Pathfinders Neurological Care Centr
Nottinghamshire County Council,1111/1001,Adult Social Care and Health,ASCH,Third Party Payments,ECA,05/09/2016,06-12410,417.22,Pathfinders Neurological Care Centr
Nottinghamshire County Council,1111/1001,Adult Social Care and Health,ASCH,Third Party Payments,ECA,05/09/2016,06-12428,417.22,Greenwood Lodge
Nottinghamshire County Council,1111/1001,Adult Social Care and Health,ASCH,Third Party Payments,ECA,05/09/2016,06-12432,417.22,Greenwood Lodge
Nottinghamshire County Council,1111/1001,Adult Social Care and Health,ASCH,Third Party Payments,ECA,05/09/2016,06-12434,417.22,Greenwood Lodge
Nottinghamshire County Council,1111/1001,Adult Social Care and Health,ASCH,Third Party Payments,ECA,05/09/2016,06-12436,417.22,Greenwood Lodge
Nottinghamshire County Council,1111/1001,Adult Social Care and Health,ASCH,Third Party Payments,ECA,05/09/2016,06-12609,417.22,Westvilla Nursing Home
Nottinghamshire County Council,1111/1001,Adult Social Care and Health,ASCH,Third Party Payments,ECA,05/09/2016,06-12613,417.22,Westvilla Nursing Home
Nottinghamshire County Council,1111/1001,Adult Social Care and Health,ASCH,Third Party Payments,ECA,05/09/2016,06-12615,417.22,Westvilla Nursing Home
Nottinghamshire County Council,1111/1001,Adult Social Care and Health,ASCH,Third Party Payments,ECA,05/09/2016,06-12617,417.22,Westvilla Nursing Home
Nottinghamshire County Council,1111/1001,Adult Social Care and Health,ASCH,Third Party Payments,ECA,05/09/2016,06-12619,417.22,Westvilla Nursing Home
Nottinghamshire County Council,1111/1001,Adult Social Care and Health,ASCH,Third Party Payments,ECA,05/09/2016,06-12622,417.22,Westvilla Nursing Home
Nottinghamshire County Council,1111/1001,Adult Social Care and Health,ASCH,Third Party Payments,ECA,05/09/2016,06-12625,417.22,Westvilla Nursing Home
Nottinghamshire County Council,1111/1001,Adult Social Care and Health,ASCH,Third Party Payments,ECA,05/09/2016,06-12627,417.22,Westvilla Nursing Home
Nottinghamshire County Council,1111/1001,Adult Social Care and Health,ASCH,Third Party Payments,ECA,05/09/2016,06-12629,417.22,Westvilla Nursing Home
Nottinghamshire County Council,1111/1001,Adult Social Care and Health,ASCH,Third Party Payments,ECA,05/09/2016,06-12631,417.22,Westvilla Nursing Home
Nottinghamshire County Council,1111/1001,Adult Social Care and Health,ASCH,Third Party Payments,ECA,05/09/2016,06-12659,417.22,Challenge House
Nottinghamshire County Council,1111/1001,Adult Social Care and Health,ASCH,Third Party Payments,ECA,05/09/2016,06-12661,574.2,Challenge House
Nottinghamshire County Council,1111/1001,Adult Social Care and Health,ASCH,Third Party Payments,ECA,05/09/2016,06-12662,417.22,Challenge House
Nottinghamshire County Council,1111/1001,Adult Social Care and Health,ASCH,Third Party Payments,ECA,05/09/2016,06-12665,574.2,Challenge House
Nottinghamshire County Council,1111/1001,Adult Social Care and Health,ASCH,Third Party Payments,ECA,05/09/2016,06-12666,574.2,Challenge House
Nottinghamshire County Council,1111/1001,Adult Social Care and Health,ASCH,Third Party Payments,ECA,05/09/2016,06-12668,417.21,Haddon House Care Home
Nottinghamshire County Council,1111/1001,Adult Social Care and Health,ASCH,Third Party Payments,ECA,05/09/2016,06-12719,417.22,Forest Manor Care Home
Nottinghamshire County Council,1111/1001,Adult Social Care and Health,ASCH,Third Party Payments,ECA,05/09/2016,06-12721,417.22,Forest Manor Care Home
Nottinghamshire County Council,1111/1001,Adult Social Care and Health,ASCH,Third Party Payments,ECA,05/09/2016,06-12724,417.22,Forest Manor Care Home
Nottinghamshire County Council,1111/1001,Adult Social Care and Health,ASCH,Third Party Payments,ECA,05/09/2016,06-12726,417.22,Forest Manor Care Home
Nottinghamshire County Council,1111/1001,Adult Social Care and Health,ASCH,Third Party Payments,ECA,05/09/2016,06-12728,417.22,Forest Manor Care Home
Nottinghamshire County Council,1111/1001,Adult Social Care and Health,ASCH,Third Party Payments,ECA,05/09/2016,06-12732,417.22,Forest Manor Care Home
Nottinghamshire County Council,1111/1001,Adult Social Care and Health,ASCH,Third Party Payments,ECA,05/09/2016,06-12736,417.22,Forest Manor Care Home
Nottinghamshire County Council,1111/1001,Adult Social Care and Health,ASCH,Third Party Payments,ECA,05/09/2016,06-12739,417.22,Forest Manor Care Home
Nottinghamshire County Council,1111/1001,Adult Social Care and Health,ASCH,Third Party Payments,ECA,05/09/2016,06-12744,417.22,Forest Manor Care Home
Nottinghamshire County Council,1111/1001,Adult Social Care and Health,ASCH,Third Party Payments,ECA,05/09/2016,06-12979,113.78,Albemarle Court
Nottinghamshire County Council,1111/1001,Adult Social Care and Health,ASCH,Third Party Payments,ECA,05/09/2016,06-12981,417.22,Albemarle Court
Nottinghamshire County Council,1111/1001,Adult Social Care and Health,ASCH,Third Party Payments,ECA,05/09/2016,06-12983,417.22,Albemarle Court
Nottinghamshire County Council,1111/1001,Adult Social Care and Health,ASCH,Third Party Payments,ECA,05/09/2016,06-12986,417.22,Albemarle Court
Nottinghamshire County Council,1111/1001,Adult Social Care and Health,ASCH,Third Party Payments,ECA,05/09/2016,06-13021,417.22,Jubilee Court Nursing Home
Nottinghamshire County Council,1111/1001,Adult Social Care and Health,ASCH,Third Party Payments,ECA,05/09/2016,06-13031,417.22,Jubilee Court Nursing Home
Nottinghamshire County Council,1111/1001,Adult Social Care and Health,ASCH,Third Party Payments,ECA,05/09/2016,06-13033,417.22,Jubilee Court Nursing Home
Nottinghamshire County Council,1111/1001,Adult Social Care and Health,ASCH,Third Party Payments,ECA,05/09/2016,06-13037,417.22,Jubilee Court Nursing Home
Nottinghamshire County Council,1111/1001,Adult Social Care and Health,ASCH,Third Party Payments,ECA,05/09/2016,06-13039,417.22,Jubilee Court Nursing Home
Nottinghamshire County Council,1111/1001,Adult Social Care and Health,ASCH,Third Party Payments,ECA,05/09/2016,06-13067,417.22,Morton Grange Care Home
Nottinghamshire County Council,1111/1001,Adult Social Care and Health,ASCH,Third Party Payments,ECA,05/09/2016,06-13078,420.24,Bassingham Nursing Home
Nottinghamshire County Council,1111/1001,Adult Social Care and Health,ASCH,Third Party Payments,ECA,05/09/2016,06-13106,385.61,Lancaster Grange Newark
Nottinghamshire County Council,1111/1001,Adult Social Care and Health,ASCH,Third Party Payments,ECA,05/09/2016,06-13108,417.22,Ashdale Care Home
Nottinghamshire County Council,1111/1001,Adult Social Care and Health,ASCH,Third Party Payments,ECA,05/09/2016,06-13110,417.22,Ashdale Care Home
Nottinghamshire County Council,1111/1001,Adult Social Care and Health,ASCH,Third Party Payments,ECA,05/09/2016,06-13113,417.22,Ashdale Care Home
Nottinghamshire County Council,1111/1001,Adult Social Care and Health,ASCH,Third Party Payments,ECA,05/09/2016,06-13115,417.22,Ashdale Care Home
Nottinghamshire County Council,1111/1001,Adult Social Care and Health,ASCH,Third Party Payments,ECA,05/09/2016,06-13117,417.22,Ashdale Care Home
Nottinghamshire County Council,1111/1001,Adult Social Care and Health,ASCH,Third Party Payments,ECA,05/09/2016,06-13122,107.46,Church Farm at Skylarks
Nottinghamshire County Council,1111/1001,Adult Social Care and Health,ASCH,Third Party Payments,ECA,05/09/2016,06-13127,417.22,Church Farm at Skylarks
Nottinghamshire County Council,1111/1001,Adult Social Care and Health,ASCH,Third Party Payments,ECA,05/09/2016,06-13141,417.22,Beeston Lodge Nursing Home
Nottinghamshire County Council,1111/1001,Adult Social Care and Health,ASCH,Third Party Payments,ECA,05/09/2016,06-13143,417.22,Beeston Lodge Nursing Home
Nottinghamshire County Council,1111/1001,Adult Social Care and Health,ASCH,Third Party Payments,ECA,05/09/2016,06-13145,417.22,Beeston Lodge Nursing Home
Nottinghamshire County Council,1111/1001,Adult Social Care and Health,ASCH,Third Party Payments,ECA,05/09/2016,06-13149,417.22,Beeston Lodge Nursing Home
Nottinghamshire County Council,1111/1001,Adult Social Care and Health,ASCH,Third Party Payments,ECA,05/09/2016,06-13156,417.22,Willowcroft Care Home
Nottinghamshire County Council,1111/1001,Adult Social Care and Health,ASCH,Third Party Payments,ECA,05/09/2016,06-13162,417.22,Willowcroft Care Home
Nottinghamshire County Council,1111/1001,Adult Social Care and Health,ASCH,Third Party Payments,ECA,05/09/2016,06-13164,417.22,Willowcroft Care Home
Nottinghamshire County Council,1111/1001,Adult Social Care and Health,ASCH,Third Party Payments,ECA,05/09/2016,06-13204,574.2,Ashfield Nursing Home
Nottinghamshire County Council,1111/1001,Adult Social Care and Health,ASCH,Third Party Payments,ECA,05/09/2016,06-13206,417.22,Ashfield Nursing Home
Nottinghamshire County Council,1111/1001,Adult Social Care and Health,ASCH,Third Party Payments,ECA,05/09/2016,06-13208,417.22,Ashfield Nursing Home
Nottinghamshire County Council,1111/1001,Adult Social Care and Health,ASCH,Third Party Payments,ECA,05/09/2016,06-13210,417.22,Ashfield Nursing Home
Nottinghamshire County Council,1111/1001,Adult Social Care and Health,ASCH,Third Party Payments,ECA,05/09/2016,06-13212,417.22,Ashfield Nursing Home
Nottinghamshire County Council,1111/1001,Adult Social Care and Health,ASCH,Third Party Payments,ECA,05/09/2016,06-13214,417.22,Ashfield Nursing Home
Nottinghamshire County Council,1111/1001,Adult Social Care and Health,ASCH,Third Party Payments,ECA,05/09/2016,06-13216,151.71,Ashfield Nursing Home
Nottinghamshire County Council,1111/1001,Adult Social Care and Health,ASCH,Third Party Payments,ECA,05/09/2016,06-13218,417.22,Ashfield Nursing Home
Nottinghamshire County Council,1111/1001,Adult Social Care and Health,ASCH,Third Party Payments,ECA,05/09/2016,06-13277,417.22,Benton House
Nottinghamshire County Council,1111/1001,Adult Social Care and Health,ASCH,Third Party Payments,ECA,05/09/2016,06-13292,417.22,The Grand Care Home
Nottinghamshire County Council,1111/1001,Adult Social Care and Health,ASCH,Third Party Payments,ECA,05/09/2016,06-13294,417.22,Carlton Care Home
Nottinghamshire County Council,1111/1001,Adult Social Care and Health,ASCH,Third Party Payments,ECA,05/09/2016,06-13296,417.22,Carlton Care Home
Nottinghamshire County Council,1111/1001,Adult Social Care and Health,ASCH,Third Party Payments,ECA,05/09/2016,06-13298,417.22,Carlton Care Home
Nottinghamshire County Council,1111/1001,Adult Social Care and Health,ASCH,Third Party Payments,ECA,05/09/2016,06-13300,417.22,Carlton Care Home
Nottinghamshire County Council,1111/1001,Adult Social Care and Health,ASCH,Third Party Payments,ECA,05/09/2016,06-13302,309.75,Carlton Care Home
Nottinghamshire County Council,1111/1001,Adult Social Care and Health,ASCH,Third Party Payments,ECA,05/09/2016,06-13304,417.22,Carlton Care Home
Nottinghamshire County Council,1111/1001,Adult Social Care and Health,ASCH,Third Party Payments,ECA,05/09/2016,06-13306,417.22,Carlton Care Home
Nottinghamshire County Council,1111/1001,Adult Social Care and Health,ASCH,Third Party Payments,ECA,05/09/2016,06-13308,417.22,Carlton Care Home
Nottinghamshire County Council,1111/1001,Adult Social Care and Health,ASCH,Third Party Payments,ECA,05/09/2016,06-13341,297.11,The Shires Care Centre
Nottinghamshire County Council,1111/1001,Adult Social Care and Health,ASCH,Third Party Payments,ECA,05/09/2016,06-13344,385.61,The Shires Care Centre
Nottinghamshire County Council,1111/1001,Adult Social Care and Health,ASCH,Third Party Payments,ECA,05/09/2016,06-13392,354,Red Oaks Care Community
Nottinghamshire County Council,1111/1001,Adult Social Care and Health,ASCH,Third Party Payments,ECA,05/09/2016,06-13394,354,Red Oaks Care Community
Nottinghamshire County Council,1111/1001,Adult Social Care and Health,ASCH,Third Party Payments,ECA,05/09/2016,06-13398,354,Red Oaks Care Community
Nottinghamshire County Council,1111/1001,Adult Social Care and Health,ASCH,Third Party Payments,ECA,05/09/2016,06-13401,354,Red Oaks Care Community
Nottinghamshire County Council,1111/1001,Adult Social Care and Health,ASCH,Third Party Payments,ECA,05/09/2016,06-13403,354,Red Oaks Care Community
Nottinghamshire County Council,1111/1001,Adult Social Care and Health,ASCH,Third Party Payments,ECA,05/09/2016,06-13405,354,Red Oaks Care Community
Nottinghamshire County Council,1111/1001,Adult Social Care and Health,ASCH,Third Party Payments,ECA,05/09/2016,06-13410,354,Red Oaks Care Community
Nottinghamshire County Council,1111/1001,Adult Social Care and Health,ASCH,Third Party Payments,ECA,05/09/2016,06-13414,354,Red Oaks Care Community
Nottinghamshire County Council,1111/1001,Adult Social Care and Health,ASCH,Third Party Payments,ECA,05/09/2016,06-13416,354,Red Oaks Care Community
Nottinghamshire County Council,1111/1001,Adult Social Care and Health,ASCH,Third Party Payments,ECA,12/09/2016,06-13960,417.22,Oaks Care Centre
Nottinghamshire County Council,1111/1001,Adult Social Care and Health,ASCH,Third Party Payments,ECA,12/09/2016,06-13962,417.22,Oaks Care Centre
Nottinghamshire County Council,1111/1001,Adult Social Care and Health,ASCH,Third Party Payments,ECA,12/09/2016,06-13968,417.22,Oaks Care Centre
Nottinghamshire County Council,1111/1001,Adult Social Care and Health,ASCH,Third Party Payments,ECA,12/09/2016,06-13972,417.22,Oaks Care Centre
Nottinghamshire County Council,1111/1001,Adult Social Care and Health,ASCH,Third Party Payments,ECA,12/09/2016,06-13982,31.61,Charnwood House
Nottinghamshire County Council,1111/1001,Adult Social Care and Health,ASCH,Third Party Payments,ECA,12/09/2016,06-13984,417.22,Charnwood House
Nottinghamshire County Council,1111/1001,Adult Social Care and Health,ASCH,Third Party Payments,ECA,12/09/2016,06-13986,417.22,Charnwood House
Nottinghamshire County Council,1111/1001,Adult Social Care and Health,ASCH,Third Party Payments,ECA,12/09/2016,06-13989,417.22,Charnwood House
Nottinghamshire County Council,1111/1001,Adult Social Care and Health,ASCH,Third Party Payments,ECA,12/09/2016,06-13991,417.22,Charnwood House
